Body Name,Body Ref,Service Area Categorisation,Expense Type,Payment Date,Transaction Ref,Total Amount,Capital/Revenue,Supplier ID,Supplier Name
Shropshire,00GG,Children's Services - Home to School Transport,Transport-Related Expenditure - Contract Hire and Operating Leases,05/07/2021,3249825,"2,189.00",Revenue,1000220,Arriva Midlands Ltd
Shropshire,00GG,Children's Services - Placements: Residential Placements,Transport-Related Expenditure - Public Transport,05/07/2021,3250559,80.99,Revenue,1000256,Chelmaren Childrens Home Ac
Shropshire,00GG,Children's Services - Placements: Residential Placements,Supplies & Services - Equipment Furniture and Materials,05/07/2021,3250559,0.82,Revenue,1000256,Chelmaren Childrens Home Ac
Shropshire,00GG,Children's Services - Placements: Residential Placements,Supplies & Services - Catering,05/07/2021,3250559,565.21,Revenue,1000256,Chelmaren Childrens Home Ac
Shropshire,00GG,Children's Services - Placements: Residential Placements,Supplies & Services - Printing Stationery and General Office Expenses,05/07/2021,3250559,2.50,Revenue,1000256,Chelmaren Childrens Home Ac
Shropshire,00GG,Children's Services - Placements: Residential Placements,Supplies & Services - Services,05/07/2021,3250559,244.61,Revenue,1000256,Chelmaren Childrens Home Ac
Shropshire,00GG,Children's Services - Placements: Residential Placements,Third Party Payments - Other Establishments,05/07/2021,3250559,226.33,Revenue,1000256,Chelmaren Childrens Home Ac
Shropshire,00GG,Place - Corporate Landlord - Leisure,Premises-Related Expenditure - Repairs alterations and maintenance of buildings,05/07/2021,11306972,"1,384.55",Revenue,1000322,R M W Electrical Services Ltd
Shropshire,00GG,Place - Corporate Landlord - Leisure,Premises-Related Expenditure - Repairs alterations and maintenance of buildings,05/07/2021,11306973,820.43,Revenue,1000322,R M W Electrical Services Ltd
Shropshire,00GG,Place - Property Services Group,Premises-Related Expenditure - Repairs alterations and maintenance of buildings,05/07/2021,11306909,509.40,Revenue,1000324,David Rogers Electrical Contractors Ltd
Shropshire,00GG,Place - Corporate Landlord - Admin Buildings,Premises-Related Expenditure - Repairs alterations and maintenance of buildings,05/07/2021,11306916,444.75,Revenue,1000324,David Rogers Electrical Contractors Ltd
Shropshire,00GG,Children's Services - Non-Delegated Primary DSG,Premises-Related Expenditure - Repairs alterations and maintenance of buildings,05/07/2021,11306917,552.50,Revenue,1000324,David Rogers Electrical Contractors Ltd
Shropshire,00GG,Place - Corporate Landlord -  Economic Development,Premises-Related Expenditure - Repairs alterations and maintenance of buildings,05/07/2021,11306949,"2,891.73",Revenue,1000411,Cool Services Ltd
Shropshire,00GG,Place - Corporate Landlord - Libraries,Premises-Related Expenditure - Repairs alterations and maintenance of buildings,05/07/2021,11306919,753.00,Revenue,1000797,D R & J Orritt
Shropshire,00GG,Capital - Corporate Landlord Capital,Non Revenue - Non Revenue,05/07/2021,11306901,900.00,Capital,1000854,Thomas Consulting Ltd
Shropshire,00GG,Children's Services - Placements: Adoption Service,Supplies & Services - Services,05/07/2021,11306654,"1,890.00",Revenue,1001472,P M Burns
Shropshire,00GG,Children's Services - Placements: Adoption Service,Supplies & Services - Services,05/07/2021,11306751,630.00,Revenue,1001472,P M Burns
Shropshire,00GG,Legal and Democratic Services - Legal Services � Child Care,Supplies & Services - Services,05/07/2021,3253008,750.00,Revenue,1001738,Joanna Chadwick
Shropshire,00GG,Children's Services - Placements: Residential Placements,Third Party Payments - Other Establishments,05/07/2021,11306746,"20,450.40",Revenue,1002017,Bryn Melyn Care Ltd
Shropshire,00GG,Children's Services - Placements: Residential Placements,Third Party Payments - Other Establishments,05/07/2021,11306747,"22,174.29",Revenue,1002017,Bryn Melyn Care Ltd
Shropshire,00GG,Place - Highways (Operations),Supplies & Services - Grants and Subscriptions,05/07/2021,3251246,"1,440.00",Revenue,1002400,Coreley Parish Council
Shropshire,00GG,Place - Theatre Services,Supplies & Services - Services,05/07/2021,3248930,"1,174.98",Revenue,1002666,Sony Pictures Releasing (United Kingdom)
Shropshire,00GG,Children's Services - Learning & Skills Business Support,Employees - Indirect Employee Expenses,05/07/2021,3252463,"11,790.00",Revenue,1002854,Tes Global Limited
Shropshire,00GG,Place - Environment and Transport (Public Transport),Transport-Related Expenditure - Contract Hire and Operating Leases,05/07/2021,3251052,434.00,Revenue,1003158,Car Hire (Day Of Swansea) Ltd
Shropshire,00GG,Place - Corporate Landlord - Mardol House & Tannery,Premises-Related Expenditure - Energy Costs,05/07/2021,3252388,"2,834.84",Revenue,1003705,West Mercia Energy
Shropshire,00GG,Place - Corporate Landlord - Mardol House & Tannery,Premises-Related Expenditure - Energy Costs,05/07/2021,3252400,"2,827.14",Revenue,1003705,West Mercia Energy
Shropshire,00GG,Adult Services - Care Management - Social Work Teams,Supplies & Services - Communications and Computing,05/07/2021,3252597,"4,000.00",Revenue,1003783,Virtual College Ltd
Shropshire,00GG,Place - Corporate Landlord - Adult Services,Premises-Related Expenditure - Rents,05/07/2021,3247017,"2,314.98",Revenue,1003789,Terry Smith Rental
Shropshire,00GG,Capital - Corporate Landlord Capital,Non Revenue - Non Revenue,05/07/2021,11306879,"3,065.00",Capital,1003809,Slr Consulting Ltd
Shropshire,00GG,Capital - Corporate Landlord Capital,Non Revenue - Non Revenue,05/07/2021,11306880,"1,192.00",Capital,1003809,Slr Consulting Ltd
Shropshire,00GG,Adult Services - Independent Living,Third Party Payments - Private Contractors,05/07/2021,3252665,"8,500.00",Revenue,1003898,Connexus Homes Limited
Shropshire,00GG,Place - Property Services Group,Premises-Related Expenditure - Repairs alterations and maintenance of buildings,05/07/2021,11306993,"1,945.14",Revenue,1004103,Walker Fire (Uk) Ltd
Shropshire,00GG,Children's Services - Disabled Children's Team,Third Party Payments - Private Contractors,05/07/2021,11306763,"1,402.02",Revenue,1004799,Newcross Healthcare Solutions
Shropshire,00GG,Children's Services - Looked After Children Education,Third Party Payments - Other Establishments,05/07/2021,3252434,800.00,Revenue,1005310,Whitchurch CE Junior Academy
Shropshire,00GG,Children's Services - Disabled Children's Team,Third Party Payments - Private Contractors,05/07/2021,11306802,592.00,Revenue,1008037,Battlefield Healthcare Ltd
Shropshire,00GG,Children's Services - Disabled Children's Team,Third Party Payments - Private Contractors,05/07/2021,11306807,592.00,Revenue,1008037,Battlefield Healthcare Ltd
Shropshire,00GG,Children's Services - Disabled Children's Team,Third Party Payments - Private Contractors,05/07/2021,11306808,592.00,Revenue,1008037,Battlefield Healthcare Ltd
Shropshire,00GG,Adult Services - Social Care Community Purchasing,Third Party Payments - Private Contractors,05/07/2021,11306837,533.84,Revenue,1008086,Personal redaction
Shropshire,00GG,Place - Property Services Group,Premises-Related Expenditure - Repairs alterations and maintenance of buildings,05/07/2021,3249048,"3,617.00",Revenue,1008556,J Rogers & Sons
Shropshire,00GG,Capital - Unallocated School Capital,Non Revenue - Non Revenue,05/07/2021,11306882,"2,950.00",Capital,1008574,Taylors Mechanical Ltd
Shropshire,00GG,Place - Corporate Landlord - Youth Centres & Community,Premises-Related Expenditure - Repairs alterations and maintenance of buildings,05/07/2021,11306899,"1,222.16",Revenue,1008574,Taylors Mechanical Ltd
Shropshire,00GG,Adult Services - Housing Options,Premises-Related Expenditure - Repairs alterations and maintenance of buildings,05/07/2021,11306861,548.04,Revenue,1008604,Pp Electrical Services (Shropshire) Ltd
Shropshire,00GG,Place - Corporate Landlord - Leisure,Premises-Related Expenditure - Repairs alterations and maintenance of buildings,05/07/2021,11306868,900.13,Revenue,1008604,Pp Electrical Services (Shropshire) Ltd
Shropshire,00GG,Place - Economic Growth,Supplies & Services - Services,05/07/2021,3252080,600.00,Revenue,1008891,Good 2 Great Ltd
Shropshire,00GG,Place - Property Services Group,Premises-Related Expenditure - Repairs alterations and maintenance of buildings,05/07/2021,11306844,"1,555.82",Revenue,1009380,MEB Total Limited
Shropshire,00GG,Place - Property Services Group,Premises-Related Expenditure - Repairs alterations and maintenance of buildings,05/07/2021,11306849,"1,284.62",Revenue,1009380,MEB Total Limited
Shropshire,00GG,Shropshire Council Balance Sheet - Shropshire Council Balance Sheet,Non Revenue - Non Revenue,05/07/2021,24135,720.00,Revenue,1010070,Drs Direct Limited
Shropshire,00GG,Shropshire Council Balance Sheet - Shropshire Council Balance Sheet,Non Revenue - Non Revenue,05/07/2021,24136,"1,080.00",Revenue,1010070,Drs Direct Limited
Shropshire,00GG,Shropshire Council Balance Sheet - Shropshire Council Balance Sheet,Non Revenue - Non Revenue,05/07/2021,24137,720.00,Revenue,1010070,Drs Direct Limited
Shropshire,00GG,Place - Planning Services,Income - Customer and Client Receipts,05/07/2021,3252561,924.00,Revenue,1011756,Portal Plan Quest Ltd
Shropshire,00GG,Place - Planning Services,Non Revenue - Non Revenue,05/07/2021,3248468,897.00,Revenue,1012358,Ace Security Specialists Ltd
Shropshire,00GG,Children's Services - Placements: Residential Placements,Third Party Payments - Other Establishments,05/07/2021,11306749,"118,131.00",Revenue,1013603,Seashell Trust
Shropshire,00GG,Children's Services - Placements: Residential Placements,Third Party Payments - Other Establishments,05/07/2021,11306750,"84,380.00",Revenue,1013603,Seashell Trust
Shropshire,00GG,Place - Corporate Landlord - Museums & Culture,Premises-Related Expenditure - Repairs alterations and maintenance of buildings,06/07/2021,11307279,750.00,Revenue,1000322,R M W Electrical Services Ltd
Shropshire,00GG,Workforce and Transformation - Customer Services,Premises-Related Expenditure - Rents,06/07/2021,3253177,"1,485.00",Revenue,1000663,Roy Fletcher Centre
Shropshire,00GG,Workforce and Transformation - Print & Post Services,Supplies & Services - Communications and Computing,06/07/2021,3253195,"9,311.74",Revenue,1000756,Dx Network Services Ltd
Shropshire,00GG,Place - Museums & Archives,Supplies & Services - Equipment Furniture and Materials,06/07/2021,3253243,426.11,Revenue,1000885,Bikold Ltd
Shropshire,00GG,Place - Environment and Transport (Public Transport),Third Party Payments - Transport Operators,06/07/2021,3248859,"7,182.00",Revenue,1001122,The Friendly Transport Service (Shrops)
Shropshire,00GG,Workforce and Transformation - Print & Post Services,Supplies & Services - Printing Stationery and General Office Expenses,06/07/2021,3250124,"2,743.29",Revenue,1002095,Ricoh Uk Ltd
Shropshire,00GG,Workforce and Transformation - Print & Post Services,Supplies & Services - Printing Stationery and General Office Expenses,06/07/2021,3250128,"1,537.01",Revenue,1002095,Ricoh Uk Ltd
Shropshire,00GG,Workforce and Transformation - Print & Post Services,Supplies & Services - Printing Stationery and General Office Expenses,06/07/2021,3250194,527.78,Revenue,1002095,Ricoh Uk Ltd
Shropshire,00GG,Adult Services - Social Care Community Purchasing,Third Party Payments - Private Contractors,06/07/2021,11307227,900.00,Revenue,1002214,Condover College Ltd
Shropshire,00GG,Place - Environment and Transport (Public Transport),Transport-Related Expenditure - Contract Hire and Operating Leases,06/07/2021,3247825,650.51,Revenue,1002991,Lex Autolease Ltd
Shropshire,00GG,Children's Services - Home to School Transport,Transport-Related Expenditure - Contract Hire and Operating Leases,06/07/2021,3253206,"2,582.00",Revenue,1003532,A J Coombes
Shropshire,00GG,Workforce and Transformation - Print & Post Services,Supplies & Services - Communications and Computing,06/07/2021,3250123,"1,630.91",Revenue,1003729,Whistl North Limited
Shropshire,00GG,Adult Services - Housing Options,Supplies & Services - Services,06/07/2021,3252657,952.48,Revenue,1003898,Connexus Homes Limited
Shropshire,00GG,Children's Services - Home to School Transport,Transport-Related Expenditure - Contract Hire and Operating Leases,06/07/2021,3253182,972.00,Revenue,1003978,Shrewsbury Taxi Service
Shropshire,00GG,"Finance, Governance & Assurance - Finance",Non Revenue - Non Revenue,06/07/2021,3253445,"2,852.24",Revenue,1004162,Shropshire Towns & Rural Housing Ltd
Shropshire,00GG,Adult Services - Help to Change,Third Party Payments - Voluntary Associations,06/07/2021,3253344,"1,420.14",Revenue,1004568,Shropshire RCC
Shropshire,00GG,Adult Services - Help to Change,Third Party Payments - Voluntary Associations,06/07/2021,3253353,"1,420.14",Revenue,1004568,Shropshire RCC
Shropshire,00GG,Children's Services - Home to School Transport,Transport-Related Expenditure - Contract Hire and Operating Leases,06/07/2021,3253257,"1,144.00",Revenue,1004698,Bugsy'S Airports And Schools
Shropshire,00GG,Place - Environment and Transport (Public Transport),Transport-Related Expenditure - Direct Transport Costs,06/07/2021,3248212,"4,189.35",Revenue,1006053,Uk Fuels Limited
Shropshire,00GG,Children's Services - Children�s Case Management,Supplies & Services - Services,06/07/2021,3253114,959.40,Revenue,1006309,Carter Brown - The Expert Service Ltd
Shropshire,00GG,Children's Services - Children�s Case Management,Supplies & Services - Services,06/07/2021,3253418,"3,285.20",Revenue,1006309,Carter Brown - The Expert Service Ltd
Shropshire,00GG,Children's Services - Children�s Case Management,Supplies & Services - Services,06/07/2021,3253430,"2,554.00",Revenue,1006309,Carter Brown - The Expert Service Ltd
Shropshire,00GG,Adult Services - Social Care Mental Health Purchasing,Third Party Payments - Private Contractors,06/07/2021,11307226,"20,817.39",Revenue,1007860,Hengoed Park Ltd
Shropshire,00GG,Children's Services - Early Years,Third Party Payments - Other Establishments,06/07/2021,3253273,984.75,Revenue,1008317,Earlyworld Nursery
Shropshire,00GG,Children's Services - Early Years,Third Party Payments - Other Establishments,06/07/2021,3253086,984.75,Revenue,1008326,Kingfisher Nursery School
Shropshire,00GG,Children's Services - Early Years,Third Party Payments - Other Establishments,06/07/2021,3252887,"1,781.26",Revenue,1008377,Ellesmere Ducklings Pre School
Shropshire,00GG,Adult Services - Regulatory Services,Supplies & Services - Services,06/07/2021,3253267,700.00,Revenue,1009709,St Ives Chambers Fees Account
Shropshire,00GG,Place - Planning Services,Supplies & Services - Services,06/07/2021,3248464,"1,377.50",Revenue,1013010,Michael Davies - MPD Built Environment Consultants Limited
Shropshire,00GG,Place - Corporate Landlord -  Economic Development,Premises-Related Expenditure - Repairs alterations and maintenance of buildings,07/07/2021,3249000,816.82,Revenue,1000128,R G Edwards & Co Ltd
Shropshire,00GG,Capital - Unallocated School Capital,Non Revenue - Non Revenue,07/07/2021,3249026,"10,000.00",Capital,1000128,R G Edwards & Co Ltd
Shropshire,00GG,Place - Property Services Group,Premises-Related Expenditure - Repairs alterations and maintenance of buildings,07/07/2021,3249029,611.52,Revenue,1000128,R G Edwards & Co Ltd
Shropshire,00GG,Place - Corporate Landlord - Museums & Culture,Premises-Related Expenditure - Repairs alterations and maintenance of buildings,07/07/2021,11305472,448.00,Revenue,1000128,R G Edwards & Co Ltd
Shropshire,00GG,Place - Corporate Landlord - Leisure,Premises-Related Expenditure - Repairs alterations and maintenance of buildings,07/07/2021,11305473,"2,860.00",Revenue,1000128,R G Edwards & Co Ltd
Shropshire,00GG,Place - Property Services Group,Premises-Related Expenditure - Repairs alterations and maintenance of buildings,07/07/2021,11305590,486.70,Revenue,1000322,R M W Electrical Services Ltd
Shropshire,00GG,Place - Corporate Landlord -  Economic Development,Premises-Related Expenditure - Repairs alterations and maintenance of buildings,07/07/2021,11303323,450.75,Revenue,1000324,David Rogers Electrical Contractors Ltd
Shropshire,00GG,Place - Corporate Landlord -  Highways,Premises-Related Expenditure - Repairs alterations and maintenance of buildings,07/07/2021,11305451,479.50,Revenue,1000324,David Rogers Electrical Contractors Ltd
Shropshire,00GG,Capital - Housing Services Capital,Non Revenue - Non Revenue,07/07/2021,3250156,"30,000.00",Capital,1001043,Severnside Housing
Shropshire,00GG,Children's Services - Placements: Residential Placements,Third Party Payments - Other Establishments,07/07/2021,11307438,"15,000.00",Revenue,1001133,Action For Children
Shropshire,00GG,Adult Services - Care Management - Assistive Equipment & Technology,Premises-Related Expenditure - Repairs alterations and maintenance of buildings,07/07/2021,11305517,743.00,Revenue,1001663,Lift & Engineering Services Ltd
Shropshire,00GG,Adult Services - Social Care Hospital Interface Purchasing,Third Party Payments - Private Contractors,07/07/2021,11306627,"1,149.00",Revenue,1001745,Abbey Care Direct Ltd
Shropshire,00GG,Children's Services - Placements: Residential Placements,Third Party Payments - Other Establishments,07/07/2021,11307356,"4,253.57",Revenue,1002017,Bryn Melyn Care Ltd
Shropshire,00GG,Adult Services - Adult Services Training,Employees - Indirect Employee Expenses,07/07/2021,3249224,"5,000.00",Revenue,1003067,Mental Health First Aid England Cic
Shropshire,00GG,Capital - Economic Growth Capital,Non Revenue - Non Revenue,07/07/2021,3246702,"34,131.16",Capital,1003454,Western Power Distribution
Shropshire,00GG,Place - Museums & Archives,Supplies & Services - Equipment Furniture and Materials,07/07/2021,3253555,485.96,Revenue,1003696,Farrah'S Of Harrogate
Shropshire,00GG,Capital - Primary School Capital,Non Revenue - Non Revenue,07/07/2021,3245229,669.30,Capital,1003773,Printworks Direct Ltd
Shropshire,00GG,"Finance, Governance & Assurance - Commissioning Development & Procurement",Employees - Direct Employee Expenses,07/07/2021,3252951,"249,109.82",Revenue,1004129,Matrix Scm Ltd
Shropshire,00GG,Place - Museums & Archives,Supplies & Services - Services,07/07/2021,3251680,"1,436.26",Revenue,1004310,Tor Systems Limited
Shropshire,00GG,Adult Services - External Providers,Third Party Payments - Private Contractors,07/07/2021,3245496,"3,634.00",Revenue,1004568,Shropshire RCC
Shropshire,00GG,Adult Services - Public Health General Management,Third Party Payments - Voluntary Associations,07/07/2021,3253559,"1,263.70",Revenue,1004568,Shropshire RCC
Shropshire,00GG,Children's Services - Placements: Adoption Service,Supplies & Services - Services,07/07/2021,11307329,"1,000.00",Revenue,1005180,Sea Change Psychotherapy Ltd
Shropshire,00GG,Children's Services - Placements: Adoption Service,Supplies & Services - Services,07/07/2021,11307331,"1,000.00",Revenue,1005180,Sea Change Psychotherapy Ltd
Shropshire,00GG,Capital - Housing Services Capital,Non Revenue - Non Revenue,07/07/2021,3250150,"4,270.00",Capital,1005449,The Excellent Ramp System Ltd
Shropshire,00GG,Children's Services - Placements: Foster Care,Third Party Payments - Other Establishments,07/07/2021,11307445,"2,680.71",Revenue,1006063,Children Always First Ltd
Shropshire,00GG,Children's Services - Placements: Foster Care,Third Party Payments - Other Establishments,07/07/2021,11307456,"2,680.71",Revenue,1006063,Children Always First Ltd
Shropshire,00GG,Children's Services - Placements: Foster Care,Third Party Payments - Other Establishments,07/07/2021,11307457,"2,680.71",Revenue,1006063,Children Always First Ltd
Shropshire,00GG,Children's Services - Placements: Foster Care,Third Party Payments - Other Establishments,07/07/2021,11307458,"2,680.71",Revenue,1006063,Children Always First Ltd
Shropshire,00GG,Adult Services - Social Care Hospital Interface Purchasing,Third Party Payments - Private Contractors,07/07/2021,11306623,"1,589.22",Revenue,1006202,Sinai Care Solutions Ltd
Shropshire,00GG,Adult Services - Social Care Hospital Interface Purchasing,Third Party Payments - Private Contractors,07/07/2021,11306624,"12,480.00",Revenue,1006202,Sinai Care Solutions Ltd
Shropshire,00GG,Adult Services - Social Care Hospital Interface Purchasing,Third Party Payments - Private Contractors,07/07/2021,11306625,"2,825.28",Revenue,1006202,Sinai Care Solutions Ltd
Shropshire,00GG,Children's Services - Placements: Foster Care,Third Party Payments - Other Establishments,07/07/2021,11307792,609.18,Revenue,1006547,Belinda Rogers
Shropshire,00GG,Children's Services - Placements: Residential Placements,Employees - Direct Employee Expenses,07/07/2021,3253816,"1,147.76",Revenue,1006553,Randstad Public Services Ltd
Shropshire,00GG,Adult Services - Social Care Community Purchasing,Transfer Payments - Adult Social Services Clients,07/07/2021,11307286,"9,172.36",Revenue,1008102,North Shropshire Home Care Ltd
Shropshire,00GG,Children's Services - Early Years,Third Party Payments - Other Establishments,07/07/2021,3253261,"1,300.00",Revenue,1008323,Nesscliffe House Nursery School
Shropshire,00GG,Children's Services - Looked After Children (LAC) Service,Third Party Payments - Other Establishments,07/07/2021,3252889,530.00,Revenue,1008372,Wem Playmates Nursery
Shropshire,00GG,Children's Services - Non-Delegated Secondary DSG,Premises-Related Expenditure - Repairs alterations and maintenance of buildings,07/07/2021,3243861,675.60,Revenue,1008554,W T Rowley & Sons
Shropshire,00GG,Place - Property Services Group,Premises-Related Expenditure - Repairs alterations and maintenance of buildings,07/07/2021,3252923,419.00,Revenue,1008554,W T Rowley & Sons
Shropshire,00GG,Children's Services - Non-Delegated Primary DSG,Premises-Related Expenditure - Repairs alterations and maintenance of buildings,07/07/2021,3252910,"2,024.07",Revenue,1008580,Eric Neville Catering Supplies Ltd
Shropshire,00GG,Place - Outdoor Partnerships,Supplies & Services - Services,07/07/2021,3245192,567.00,Revenue,1009936,Shropshire Verti Drain & Turf Services
Shropshire,00GG,Capital - Corporate Landlord Capital,Non Revenue - Non Revenue,07/07/2021,3252386,"2,325.00",Capital,1010187,Lyndon Goode Architects Ltd
Shropshire,00GG,Capital - Corporate Landlord Capital,Non Revenue - Non Revenue,07/07/2021,3252391,"2,750.00",Capital,1010187,Lyndon Goode Architects Ltd
Shropshire,00GG,Capital - Corporate Landlord Capital,Non Revenue - Non Revenue,07/07/2021,3252403,"1,512.00",Capital,1010187,Lyndon Goode Architects Ltd
Shropshire,00GG,Capital - Corporate Landlord Capital,Non Revenue - Non Revenue,07/07/2021,3252416,"2,750.00",Capital,1010187,Lyndon Goode Architects Ltd
Shropshire,00GG,Capital - Corporate Landlord Capital,Non Revenue - Non Revenue,07/07/2021,3252421,"2,325.00",Capital,1010187,Lyndon Goode Architects Ltd
Shropshire,00GG,Adult Services - Public Health General Management,Supplies & Services - Grants and Subscriptions,07/07/2021,3252396,"6,040.00",Revenue,1010428,Crane Quality Counselling
Shropshire,00GG,Children's Services - Placements: Foster Care,Supplies & Services - Services,07/07/2021,11307407,964.29,Revenue,1010742,Anew Young People'S Services Ltd
Shropshire,00GG,Children's Services - Placements: Foster Care,Supplies & Services - Services,07/07/2021,11307408,549.91,Revenue,1010742,Anew Young People'S Services Ltd
Shropshire,00GG,Adult Services - External Providers,Third Party Payments - Private Contractors,07/07/2021,3253669,"2,000.00",Revenue,1011264,Working Together (Ludlow)
Shropshire,00GG,Legal and Democratic Services - Legal Services � Child Care,Supplies & Services - Services,07/07/2021,3248895,800.00,Revenue,1011395,Rachel Jones
Shropshire,00GG,Children's Services - Special Educational Needs & Disability,Third Party Payments - Other Establishments,07/07/2021,3253844,563.40,Revenue,1012583,Little Bears Day Care
Shropshire,00GG,Adult Services - Projects,Supplies & Services - Services,07/07/2021,3253704,"1,000.00",Revenue,1012738,MSG Consultancy Limited
Shropshire,00GG,Place - Shire Catering,Supplies & Services - Grants and Subscriptions,07/07/2021,3253833,949.00,Revenue,1013360,CHAS 2013 Ltd
Shropshire,00GG,Place - Environment and Transport (Public Transport),Transport-Related Expenditure - Contract Hire and Operating Leases,07/07/2021,3248491,541.92,Revenue,1013739,Absolute Personnel
Shropshire,00GG,Place - Environment and Transport (Public Transport),Third Party Payments - Transport Operators,08/07/2021,3249423,"3,401.00",Revenue,1000220,Arriva Midlands Ltd
Shropshire,00GG,Place - Outdoor Partnerships,Premises-Related Expenditure - Repairs alterations and maintenance of buildings,08/07/2021,3245725,"4,142.48",Revenue,1000308,Brissco Equipment Ltd
Shropshire,00GG,Place - Corporate Landlord - Museums & Culture,Premises-Related Expenditure - Repairs alterations and maintenance of buildings,08/07/2021,11306976,714.01,Revenue,1000322,R M W Electrical Services Ltd
Shropshire,00GG,Place - Highways (Operations),Supplies & Services - Services,08/07/2021,3246832,"2,800.00",Revenue,1000428,Compass Minerals Uk Limited
Shropshire,00GG,Place - Shire Catering,Supplies & Services - Catering,08/07/2021,3254359,"1,113.20",Revenue,1000769,The Little Food Company Limited
Shropshire,00GG,Place - Shire Catering,Supplies & Services - Catering,08/07/2021,3254553,"1,100.80",Revenue,1000769,The Little Food Company Limited
Shropshire,00GG,Place - Shire Catering,Supplies & Services - Communications and Computing,08/07/2021,3246788,"1,785.27",Revenue,1000831,Cunningham Cash Registers Ltd
Shropshire,00GG,Place - Shire Catering,Supplies & Services - Catering,08/07/2021,3250530,"1,254.60",Revenue,1000926,Options Management
Shropshire,00GG,Workforce and Transformation - ICT Services,Supplies & Services - Communications and Computing,08/07/2021,3246426,"1,933.50",Revenue,1000933,Xma Ltd
Shropshire,00GG,Adult Services - External Providers,Third Party Payments - Private Contractors,08/07/2021,3254386,"64,808.33",Revenue,1000946,Age UK (WIPS)
Shropshire,00GG,Place - Highways (Operations),Supplies & Services - Grants and Subscriptions,08/07/2021,3251964,"1,500.00",Revenue,1002141,Oswestry Rural Parish Council
Shropshire,00GG,Adult Services - Social Care Community Purchasing,Third Party Payments - Private Contractors,08/07/2021,11306641,"2,197.80",Revenue,1002214,Condover College Ltd
Shropshire,00GG,Place - Highways (Operations),Supplies & Services - Grants and Subscriptions,08/07/2021,3251742,"1,500.00",Revenue,1002327,Shawbury Parish Council
Shropshire,00GG,Place - Highways (Operations),Supplies & Services - Grants and Subscriptions,08/07/2021,3251973,"1,500.00",Revenue,1002417,Grinshill Parish Council
Shropshire,00GG,Place - Highways (Operations),Supplies & Services - Grants and Subscriptions,08/07/2021,3252249,"1,500.00",Revenue,1002423,Hopton Cangeford Stoke St Millborough Pc
Shropshire,00GG,Place - Highways (Operations),Supplies & Services - Grants and Subscriptions,08/07/2021,3251971,691.66,Revenue,1002431,Llanfair Waterdine Parish Council
Shropshire,00GG,Place - Highways (Operations),Supplies & Services - Grants and Subscriptions,08/07/2021,3251984,587.00,Revenue,1002434,Longden Parish Council
Shropshire,00GG,Place - Highways (Operations),Supplies & Services - Grants and Subscriptions,08/07/2021,3251982,"1,500.00",Revenue,1002446,Myddle & Broughton Parish Council
Shropshire,00GG,Place - Highways (Operations),Supplies & Services - Grants and Subscriptions,08/07/2021,3251969,"1,500.00",Revenue,1002448,Neen Savage Parish Council
Shropshire,00GG,Place - Highways (Operations),Supplies & Services - Grants and Subscriptions,08/07/2021,3251957,"1,500.00",Revenue,1002454,Norton-In-Hales Parish Council
Shropshire,00GG,Place - Highways (Operations),Supplies & Services - Grants and Subscriptions,08/07/2021,3251733,750.00,Revenue,1002459,Richards Castle Parish Council
Shropshire,00GG,Place - Highways (Operations),Supplies & Services - Grants and Subscriptions,08/07/2021,3252231,"1,500.00",Revenue,1002470,Stottesdon And Sidbury Parish Council
Shropshire,00GG,Place - Highways (Operations),Supplies & Services - Grants and Subscriptions,08/07/2021,3252182,"1,500.00",Revenue,1002473,Sutton-Upon-Tern Parish Council
Shropshire,00GG,Place - Highways (Operations),Supplies & Services - Grants and Subscriptions,08/07/2021,3252223,"1,500.00",Revenue,1002483,Weston-Under-Redcastle Parish Council
Shropshire,00GG,Adult Services - Social Care Hospital Interface Purchasing,Third Party Payments - Private Contractors,08/07/2021,11306635,504.00,Revenue,1002725,Bluebird Care (Shropshire Care Ltd)
Shropshire,00GG,Adult Services - Adult Services Training,Supplies & Services - Equipment Furniture and Materials,08/07/2021,3246488,"1,040.00",Revenue,1003067,Mental Health First Aid England Cic
Shropshire,00GG,Place - Shire Catering,Income - Customer and Client Receipts,08/07/2021,3252287,"17,980.83",Revenue,1004737,Longlands Primary School
Shropshire,00GG,Children's Services - Disabled Children's Team,Employees - Direct Employee Expenses,08/07/2021,3247493,"2,184.00",Revenue,1005988,Nonstop Recruitment Ltd
Shropshire,00GG,Children's Services - Disabled Children's Team,Employees - Direct Employee Expenses,08/07/2021,3247527,"2,730.00",Revenue,1005988,Nonstop Recruitment Ltd
Shropshire,00GG,Legal and Democratic Services - Legal Services � Child Care,Employees - Direct Employee Expenses,08/07/2021,3247418,821.52,Revenue,1006330,Sellick Partnership Limited
Shropshire,00GG,Legal and Democratic Services - Legal Services � Child Care,Employees - Direct Employee Expenses,08/07/2021,3247445,"1,035.26",Revenue,1006330,Sellick Partnership Limited
Shropshire,00GG,Children's Services - Special Educational Needs & Disability,Third Party Payments - Other Establishments,08/07/2021,3254637,"4,050.00",Revenue,1008366,Hidden Treasures
Shropshire,00GG,Children's Services - Special Educational Needs & Disability,Third Party Payments - Other Establishments,08/07/2021,3254611,"1,300.00",Revenue,1008445,Caroline Holloway
Shropshire,00GG,Children's Services - Non-Delegated Primary DSG,Premises-Related Expenditure - Repairs alterations and maintenance of buildings,08/07/2021,3252874,590.00,Revenue,1008554,W T Rowley & Sons
Shropshire,00GG,Place - Corporate Landlord - Admin Buildings,Premises-Related Expenditure - Repairs alterations and maintenance of buildings,08/07/2021,3253849,463.04,Revenue,1008554,W T Rowley & Sons
Shropshire,00GG,Children's Services - Non-Delegated Primary DSG,Premises-Related Expenditure - Repairs alterations and maintenance of buildings,08/07/2021,3252896,515.75,Revenue,1008560,M W D Services
Shropshire,00GG,Children's Services - Non-Delegated Primary DSG,Premises-Related Expenditure - Repairs alterations and maintenance of buildings,08/07/2021,3252846,878.22,Revenue,1008580,Eric Neville Catering Supplies Ltd
Shropshire,00GG,Children's Services - Home to School Transport,Transport-Related Expenditure - Contract Hire and Operating Leases,08/07/2021,3254479,936.00,Revenue,1008999,Personal redaction
Shropshire,00GG,Children's Services - Home to School Transport,Transport-Related Expenditure - Contract Hire and Operating Leases,08/07/2021,3254502,717.60,Revenue,1009215,Personal redaction
Shropshire,00GG,Workforce and Transformation - Welfare & Reform,Transfer Payments - Housing Benefits,08/07/2021,3253645,"2,021.26",Revenue,1009315,Shropshire Council Housing Rents
Shropshire,00GG,Adult Services - Social Care Community Purchasing,Transfer Payments - Adult Social Services Clients,08/07/2021,11308177,"16,520.85",Revenue,1009940,M&S Care Solutions (A)
Shropshire,00GG,Capital - Corporate Landlord Capital,Non Revenue - Non Revenue,08/07/2021,3252405,"5,640.00",Capital,1010187,Lyndon Goode Architects Ltd
Shropshire,00GG,Capital - Corporate Landlord Capital,Non Revenue - Non Revenue,08/07/2021,3252414,"5,640.00",Capital,1010187,Lyndon Goode Architects Ltd
Shropshire,00GG,Place - Shire Catering,Premises-Related Expenditure - Rents,08/07/2021,3246711,"1,387.50",Revenue,1010416,Shrubbery House Account
Shropshire,00GG,Adult Services - Social Care Hospital Interface Purchasing,Third Party Payments - Private Contractors,08/07/2021,11306639,674.44,Revenue,1011337,Willow Care North Shropshire Ltd
Shropshire,00GG,Children's Services - Home to School Transport,Transport-Related Expenditure - Contract Hire and Operating Leases,08/07/2021,3254488,633.60,Revenue,1011617,Personal redaction
Shropshire,00GG,Children's Services - Home to School Transport,Transport-Related Expenditure - Contract Hire and Operating Leases,08/07/2021,3254511,570.00,Revenue,1012580,Elliotts Direct Travel
Shropshire,00GG,Children's Services - Home to School Transport,Transport-Related Expenditure - Contract Hire and Operating Leases,08/07/2021,3254523,883.50,Revenue,1012580,Elliotts Direct Travel
Shropshire,00GG,Legal and Democratic Services - Legal Services � Child Care,Supplies & Services - Services,08/07/2021,3246757,650.00,Revenue,1012986,Sarah Morgan
Shropshire,00GG,Capital - Social Care Operations Capital,Non Revenue - Non Revenue,08/07/2021,3249155,"5,171.60",Capital,1013348,Safespaces (Cornholme) Ltd
Shropshire,00GG,Place - Corporate Landlord - Leisure,Premises-Related Expenditure - Repairs alterations and maintenance of buildings,09/07/2021,3252825,"3,560.65",Revenue,1000101,Cooper & Williams Ltd
Shropshire,00GG,Adult Services - Internal Providers - Nursing Services,Supplies & Services - Equipment Furniture and Materials,09/07/2021,3253204,"4,214.00",Revenue,1000223,Arjo Uk Limited
Shropshire,00GG,Adult Services - Internal Providers - Nursing Services,Supplies & Services - Communications and Computing,09/07/2021,3253204,50.00,Revenue,1000223,Arjo Uk Limited
Shropshire,00GG,Place - Highways (Streetworks),Supplies & Services - Services,09/07/2021,3247724,609.84,Revenue,1000228,Midland News Association Ltd
Shropshire,00GG,Place - Highways (Streetworks),Supplies & Services - Services,09/07/2021,3247852,776.16,Revenue,1000228,Midland News Association Ltd
Shropshire,00GG,Children's Services - Placements: Residential Placements,Employees - Indirect Employee Expenses,09/07/2021,3253433,427.50,Revenue,1000228,Midland News Association Ltd
Shropshire,00GG,Place - Corporate Landlord - Leisure,Premises-Related Expenditure - Repairs alterations and maintenance of buildings,09/07/2021,11308213,420.21,Revenue,1000296,Keith Phillips & Sons Ltd
Shropshire,00GG,Place - Outdoor Partnerships,Premises-Related Expenditure - Repairs alterations and maintenance of buildings,09/07/2021,3246786,"1,137.64",Revenue,1000308,Brissco Equipment Ltd
Shropshire,00GG,Place - Property Services Group,Premises-Related Expenditure - Repairs alterations and maintenance of buildings,09/07/2021,11306979,696.23,Revenue,1000322,R M W Electrical Services Ltd
Shropshire,00GG,Place - Corporate Landlord - Youth Centres & Community,Premises-Related Expenditure - Repairs alterations and maintenance of buildings,09/07/2021,11306980,"2,541.40",Revenue,1000322,R M W Electrical Services Ltd
Shropshire,00GG,Place - Outdoor Partnerships,Premises-Related Expenditure - Repairs alterations and maintenance of buildings,09/07/2021,11307280,"1,590.14",Revenue,1000322,R M W Electrical Services Ltd
Shropshire,00GG,Place - Corporate Landlord - Car Parks,Premises-Related Expenditure - Rents,09/07/2021,3254917,"42,000.00",Revenue,1000355,Shrops Horticultural Society
Shropshire,00GG,Place - Planning Services,Supplies & Services - Services,09/07/2021,3253870,"4,736.00",Revenue,1000401,Telford & Wrekin Council
Shropshire,00GG,Adult Services - Social Care Community Purchasing,Third Party Payments - Private Contractors,09/07/2021,11308239,"4,296.28",Revenue,1000472,Headway Shropshire
Shropshire,00GG,Place - Museums & Archives,Supplies & Services - Equipment Furniture and Materials,09/07/2021,3254808,501.92,Revenue,1000637,Wynnstay Group Plc
Shropshire,00GG,Children's Services - Special Educational Needs & Disability,Supplies & Services - Equipment Furniture and Materials,09/07/2021,3247598,"8,589.90",Revenue,1000642,Smirthwaite Ltd
Shropshire,00GG,Place - Corporate Landlord - Admin Buildings,Premises-Related Expenditure - Repairs alterations and maintenance of buildings,09/07/2021,11307049,959.50,Revenue,1000724,Gunnebo Uk Ltd
Shropshire,00GG,Workforce and Transformation - ICT Services,Supplies & Services - Communications and Computing,09/07/2021,3247990,876.00,Revenue,1000753,Stone Computers Ltd
Shropshire,00GG,Children's Services - Home to School Transport,Transport-Related Expenditure - Contract Hire and Operating Leases,09/07/2021,3248853,"1,099.80",Revenue,1000755,Herefordshire Council
Shropshire,00GG,Capital - Unallocated School Capital,Non Revenue - Non Revenue,09/07/2021,11305441,810.00,Capital,1000854,Thomas Consulting Ltd
Shropshire,00GG,Adult Services - Housing Options,Premises-Related Expenditure - Rents,09/07/2021,3247332,"3,200.00",Revenue,1000861,Shropshire & West Mids Agricultural Soc
Shropshire,00GG,Adult Services - Social Care Hospital Interface Purchasing,Third Party Payments - Private Contractors,09/07/2021,11308238,568.98,Revenue,1000882,Surecare Shropshire Ltd
Shropshire,00GG,Place - Shire Catering,Supplies & Services - Catering,09/07/2021,3254159,945.44,Revenue,1000926,Options Management
Shropshire,00GG,Workforce and Transformation - ICT Services,Supplies & Services - Communications and Computing,09/07/2021,3247641,"1,940.00",Revenue,1000933,Xma Ltd
Shropshire,00GG,Workforce and Transformation - ICT Services,Supplies & Services - Communications and Computing,09/07/2021,3247649,"14,210.00",Revenue,1000933,Xma Ltd
Shropshire,00GG,Adult Services - Social Care Community Purchasing,Third Party Payments - Private Contractors,09/07/2021,11308237,"1,960.80",Revenue,1000974,Castlecare Residential Homes
Shropshire,00GG,Adult Services - Social Care Community Purchasing,Third Party Payments - Private Contractors,09/07/2021,11306642,"12,600.00",Revenue,1001105,Prestige Nursing Ltd
Shropshire,00GG,Adult Services - Social Care Community Purchasing,Third Party Payments - Private Contractors,09/07/2021,11306643,"2,940.00",Revenue,1001105,Prestige Nursing Ltd
Shropshire,00GG,Adult Services - Social Care Hospital Interface Purchasing,Third Party Payments - Private Contractors,09/07/2021,11308236,768.00,Revenue,1001105,Prestige Nursing Ltd
Shropshire,00GG,Capital - Unallocated School Capital,Non Revenue - Non Revenue,09/07/2021,11308193,"5,027.00",Capital,1001338,Astor-Bannerman (Medical) Ltd
Shropshire,00GG,Workforce and Transformation - Human Resources Operations,Supplies & Services - Equipment Furniture and Materials,09/07/2021,3248128,680.00,Revenue,1001730,Noss Ltd
Shropshire,00GG,Place - Environment and Transport (Parking),Supplies & Services - Equipment Furniture and Materials,09/07/2021,3247656,"1,940.92",Revenue,1001797,Flowbird
Shropshire,00GG,Adult Services - Substance Misuse (Ringfanced),Third Party Payments - Health Authorities,09/07/2021,3246803,658.06,Revenue,1001875,Orion Medical Supplies Ltd
Shropshire,00GG,Adult Services - Internal Providers - Nursing Services,Supplies & Services - Equipment Furniture and Materials,09/07/2021,3247582,739.86,Revenue,1001937,Gompels Healthcare Ltd
Shropshire,00GG,Adult Services - Internal Providers - Nursing Services,Supplies & Services - Clothes Uniforms and Laundry,09/07/2021,3247582,127.00,Revenue,1001937,Gompels Healthcare Ltd
Shropshire,00GG,Workforce and Transformation - Print & Post Services,Supplies & Services - Printing Stationery and General Office Expenses,09/07/2021,3248462,"3,088.57",Revenue,1002095,Ricoh Uk Ltd
Shropshire,00GG,Workforce and Transformation - Print & Post Services,Supplies & Services - Printing Stationery and General Office Expenses,09/07/2021,3248465,"2,614.66",Revenue,1002095,Ricoh Uk Ltd
Shropshire,00GG,Place - Shire Catering,Supplies & Services - Equipment Furniture and Materials,09/07/2021,3246990,"3,400.00",Revenue,1002113,Hampton Knight
Shropshire,00GG,Adult Services - Social Care Community Purchasing,Third Party Payments - Private Contractors,09/07/2021,11308243,"1,800.00",Revenue,1002214,Condover College Ltd
Shropshire,00GG,Adult Services - Social Care Community Purchasing,Third Party Payments - Private Contractors,09/07/2021,11308245,"2,400.00",Revenue,1002214,Condover College Ltd
Shropshire,00GG,Place - Planning Services,Supplies & Services - Communications and Computing,09/07/2021,3246901,"4,282.32",Revenue,1002257,Idox Software Limited
Shropshire,00GG,Adult Services - Internal Providers - Day Services,Supplies & Services - Equipment Furniture and Materials,09/07/2021,3252934,"4,098.00",Revenue,1002307,Shaw Healthcare (Fm Services) Ltd
Shropshire,00GG,Place - Theatre Services,Supplies & Services - Services,09/07/2021,3248890,"1,332.02",Revenue,1002511,The Walt Disney Company Ltd
Shropshire,00GG,Place - Theatre Services,Supplies & Services - Services,09/07/2021,3248915,565.29,Revenue,1002511,The Walt Disney Company Ltd
Shropshire,00GG,Place - Corporate Landlord - Leisure,Premises-Related Expenditure - Repairs alterations and maintenance of buildings,09/07/2021,11306970,"1,636.00",Revenue,1002541,Brooke Edgley Specialist Technical Servi
Shropshire,00GG,Adult Services - Care Management - Social Work Teams,Supplies & Services - Services,09/07/2021,3249214,980.00,Revenue,1002702,Sajkum Ltd t/a Sajeev Kumar Kshemendran
Shropshire,00GG,Workforce and Transformation - Human Resources Operations,Supplies & Services - Services,09/07/2021,3254704,"3,665.00",Revenue,1003010,Penna Plc
Shropshire,00GG,Workforce and Transformation - Human Resources Operations,Supplies & Services - Services,09/07/2021,3254718,"4,583.33",Revenue,1003010,Penna Plc
Shropshire,00GG,Place - Environment and Transport (Street Scene),Premises-Related Expenditure - Repairs alterations and maintenance of buildings,09/07/2021,3248129,"2,229.70",Revenue,1003065,Timberplay Ltd
Shropshire,00GG,Place - Corporate Landlord - Children's Services,Premises-Related Expenditure - Rents,09/07/2021,3249385,"2,065.00",Revenue,1003483,Shropshire Community Health Nhs Trust
Shropshire,00GG,Place - Corporate Landlord - Youth Centres & Community,Premises-Related Expenditure - Grounds maintenance costs,09/07/2021,3247260,440.00,Revenue,1003618,Gavin Tree Specialists Ltd
Shropshire,00GG,Place - Property Services Group,Premises-Related Expenditure - Repairs alterations and maintenance of buildings,09/07/2021,11305463,"2,000.00",Revenue,1003639,Gtaccess Limited
Shropshire,00GG,Place - Corporate Landlord - Adult Services,Premises-Related Expenditure - Rents,09/07/2021,3247023,"1,930.00",Revenue,1003789,Terry Smith Rental
Shropshire,00GG,Children's Services - Non-Delegated Primary DSG,Premises-Related Expenditure - Repairs alterations and maintenance of buildings,09/07/2021,11308227,"2,275.00",Revenue,1003811,Northern Steeplejacks (Edinburgh) Ltd
Shropshire,00GG,Place - Corporate Landlord - Children's Services,Premises-Related Expenditure - Repairs alterations and maintenance of buildings,09/07/2021,11308227,175.00,Revenue,1003811,Northern Steeplejacks (Edinburgh) Ltd
Shropshire,00GG,Place - Corporate Landlord - Museums & Culture,Premises-Related Expenditure - Repairs alterations and maintenance of buildings,09/07/2021,11308227,175.00,Revenue,1003811,Northern Steeplejacks (Edinburgh) Ltd
Shropshire,00GG,Place - Property Services Group,Premises-Related Expenditure - Repairs alterations and maintenance of buildings,09/07/2021,11308227,"1,400.00",Revenue,1003811,Northern Steeplejacks (Edinburgh) Ltd
Shropshire,00GG,Legal and Democratic Services - Legal Services � Child Care,Supplies & Services - Services,09/07/2021,3248753,650.00,Revenue,1004298,Miss Kathryn Anslow
Shropshire,00GG,Place - Corporate Landlord - Libraries,Premises-Related Expenditure - Rents,09/07/2021,3247036,"3,550.00",Revenue,1004300,Halls Holdings Ltd (Commercial Rents)
Shropshire,00GG,Children's Services - Home to School Transport,Transport-Related Expenditure - Contract Hire and Operating Leases,09/07/2021,3248507,"2,187.50",Revenue,1004382,Abc-Countdown Cars Ltd
Shropshire,00GG,Children's Services - Home to School Transport,Transport-Related Expenditure - Contract Hire and Operating Leases,09/07/2021,3248552,528.00,Revenue,1004382,Abc-Countdown Cars Ltd
Shropshire,00GG,Children's Services - Home to School Transport,Transport-Related Expenditure - Contract Hire and Operating Leases,09/07/2021,3248560,451.00,Revenue,1004382,Abc-Countdown Cars Ltd
Shropshire,00GG,Place - Corporate Landlord - Mardol House & Tannery,Supplies & Services - Printing Stationery and General Office Expenses,09/07/2021,3254609,450.00,Revenue,1004594,Shrewsbury Business Improvement Dist Ltd
Shropshire,00GG,Capital - Housing Services Capital,Non Revenue - Non Revenue,09/07/2021,3253225,"2,700.00",Capital,1004765,M W Knight & Sons Ltd
Shropshire,00GG,Place - Theatre Services,Third Party Payments - Private Contractors,09/07/2021,3254940,"2,032.05",Revenue,1004790,Maple Tree Entertainment Limited
Shropshire,00GG,Adult Services - Social Care Hospital Interface Purchasing,Third Party Payments - Private Contractors,09/07/2021,11308242,794.61,Revenue,1004909,Phoenix Homecare And Support Ltd
Shropshire,00GG,Legal and Democratic Services - Legal Services � Child Care,Employees - Direct Employee Expenses,09/07/2021,3249236,"1,929.00",Revenue,1005215,The Oyster Partnership Ltd
Shropshire,00GG,Adult Services - Substance Misuse (Ringfanced),Third Party Payments - Private Contractors,09/07/2021,3246938,"24,363.89",Revenue,1005459,We Are With You
Shropshire,00GG,Adult Services - Substance Misuse (Ringfanced),Third Party Payments - Private Contractors,09/07/2021,3246959,"23,149.49",Revenue,1005459,We Are With You
Shropshire,00GG,Children's Services - Placements: Adoption Service,Supplies & Services - Services,09/07/2021,11307369,935.00,Revenue,1005548,Rgt Training & Consultancy Ltd
Shropshire,00GG,Children's Services - Placements: Adoption Service,Supplies & Services - Services,09/07/2021,11307377,"1,275.00",Revenue,1005548,Rgt Training & Consultancy Ltd
Shropshire,00GG,Children's Services - Placements: Adoption Service,Supplies & Services - Services,09/07/2021,11307378,552.50,Revenue,1005548,Rgt Training & Consultancy Ltd
Shropshire,00GG,Children's Services - Placements: Placement Staffing,Employees - Direct Employee Expenses,09/07/2021,3247536,"2,042.40",Revenue,1005988,Nonstop Recruitment Ltd
Shropshire,00GG,Place - Environment and Transport (Public Transport),Transport-Related Expenditure - Direct Transport Costs,09/07/2021,3254425,"4,920.47",Revenue,1006053,Uk Fuels Limited
Shropshire,00GG,Workforce and Transformation - Organisational Development,Supplies & Services - Services,09/07/2021,3247388,"8,400.00",Revenue,1006467,Ascensio Limited
Shropshire,00GG,Children's Services - Placements: Residential Placements,Employees - Direct Employee Expenses,09/07/2021,3253385,454.68,Revenue,1006553,Randstad Public Services Ltd
Shropshire,00GG,Adult Services - Independent Living,Third Party Payments - Private Contractors,09/07/2021,3253971,"5,000.00",Revenue,1007816,Transhouse (Oswestry) Ltd
Shropshire,00GG,Adult Services - External Providers,Third Party Payments - Private Contractors,09/07/2021,3254893,"2,000.00",Revenue,1008066,Lower Bush Farm Cic
Shropshire,00GG,Adult Services - Social Care Community Purchasing,Third Party Payments - Private Contractors,09/07/2021,11247739,"16,981.00",Revenue,1008120,Barra House (Adelphi Care Services Ltd)
Shropshire,00GG,Adult Services - Social Care Community Purchasing,Third Party Payments - Private Contractors,09/07/2021,11261072,"16,981.00",Revenue,1008120,Barra House (Adelphi Care Services Ltd)
Shropshire,00GG,Adult Services - Social Care Community Purchasing,Third Party Payments - Private Contractors,09/07/2021,11271858,"16,981.00",Revenue,1008120,Barra House (Adelphi Care Services Ltd)
Shropshire,00GG,Adult Services - Social Care Community Purchasing,Third Party Payments - Private Contractors,09/07/2021,11282858,"16,981.00",Revenue,1008120,Barra House (Adelphi Care Services Ltd)
Shropshire,00GG,Adult Services - Social Care Community Purchasing,Third Party Payments - Private Contractors,09/07/2021,11290337,"16,981.00",Revenue,1008120,Barra House (Adelphi Care Services Ltd)
Shropshire,00GG,Adult Services - Social Care Community Purchasing,Third Party Payments - Private Contractors,09/07/2021,11300331,"16,981.00",Revenue,1008120,Barra House (Adelphi Care Services Ltd)
Shropshire,00GG,Adult Services - Social Care Community Purchasing,Third Party Payments - Private Contractors,09/07/2021,11306275,"16,981.00",Revenue,1008120,Barra House (Adelphi Care Services Ltd)
Shropshire,00GG,Adult Services - External Providers,Third Party Payments - Private Contractors,09/07/2021,3254990,"2,000.00",Revenue,1008137,Fordhall Community Land Initiative Ltd
Shropshire,00GG,Place - Corporate Landlord -  Economic Development,Premises-Related Expenditure - Repairs alterations and maintenance of buildings,09/07/2021,11308226,716.09,Revenue,1008557,Advanced Wastewater & Drainage Limited
Shropshire,00GG,Capital - Corporate Landlord Capital,Non Revenue - Non Revenue,09/07/2021,3178083,"4,031.77",Capital,1008559,Mant Ltd
Shropshire,00GG,Capital - Social Care Operations Capital,Non Revenue - Non Revenue,09/07/2021,3252810,685.95,Capital,1008560,M W D Services
Shropshire,00GG,Capital - Social Care Operations Capital,Non Revenue - Non Revenue,09/07/2021,3253041,497.45,Capital,1008560,M W D Services
Shropshire,00GG,Capital - Corporate Landlord Capital,Non Revenue - Non Revenue,09/07/2021,3196800,"2,470.00",Capital,1008561,E Davies & Son
Shropshire,00GG,Workforce and Transformation - ICT Digital Transformation Project,Supplies & Services - Communications and Computing,09/07/2021,3251697,"20,125.00",Revenue,1010102,Hitachi Solutions Europe
Shropshire,00GG,Children's Services - Looked After Children Education,Third Party Payments - Other Establishments,09/07/2021,3249121,"2,482.50",Revenue,1010386,Embrace Physical Education Ltd
Shropshire,00GG,Place - Outdoor Partnerships,Premises-Related Expenditure - Repairs alterations and maintenance of buildings,09/07/2021,3250138,550.00,Revenue,1010666,A P Dudleston
Shropshire,00GG,Place - Property Services Group,Premises-Related Expenditure - Repairs alterations and maintenance of buildings,09/07/2021,11306939,475.00,Revenue,1010948,Automated Building & Energy Controls Ltd
Shropshire,00GG,Adult Services - Social Care Hospital Interface Purchasing,Third Party Payments - Private Contractors,09/07/2021,11307238,657.27,Revenue,1011337,Willow Care North Shropshire Ltd
Shropshire,00GG,Adult Services - External Providers,Third Party Payments - Private Contractors,09/07/2021,3254960,"2,413.79",Revenue,1012054,Willow Lodge (Shropshire) Limited
Shropshire,00GG,Children's Services - Looked After Children (LAC) -  Leaving Care Team (18 +),Supplies & Services - Services,09/07/2021,3253767,814.20,Revenue,1012392,Select Care Solutions Ltd
Shropshire,00GG,Children's Services - Children�s Case Management,Employees - Direct Employee Expenses,09/07/2021,3247504,"1,335.60",Revenue,1013053,Frontline Staffing Ltd
Shropshire,00GG,Children's Services - Children�s Social Care and Safeguarding Management,Employees - Direct Employee Expenses,09/07/2021,3247957,"2,070.00",Revenue,1013211,Eden Brown Ltd
Shropshire,00GG,Children's Services - Looked After Children Education,Third Party Payments - Other Establishments,09/07/2021,3246970,"2,145.00",Revenue,1014202,J Lucas-Garner T/A Reach for Inclusion
Shropshire,00GG,Children's Services - Looked After Children Education,Third Party Payments - Other Establishments,09/07/2021,3246984,"1,960.00",Revenue,1014202,J Lucas-Garner T/A Reach for Inclusion
Shropshire,00GG,Children's Services - Looked After Children Education,Third Party Payments - Other Establishments,09/07/2021,3247000,546.25,Revenue,1014202,J Lucas-Garner T/A Reach for Inclusion
Shropshire,00GG,Children's Services - Looked After Children Education,Third Party Payments - Other Establishments,09/07/2021,3247106,"1,050.00",Revenue,1014202,J Lucas-Garner T/A Reach for Inclusion
Shropshire,00GG,Adult Services - Social Care Community Purchasing,Transfer Payments - Adult Social Services Clients,09/07/2021,11308240,"19,152.00",Revenue,1014654,Rialto Care & Support Ltd
Shropshire,00GG,Workforce and Transformation - ICT Services,Supplies & Services - Communications and Computing,09/07/2021,3247129,"2,569.95",Revenue,1015536,Avoira Ltd
Shropshire,00GG,Place - Planning Services,Supplies & Services - Services,12/07/2021,3254835,498.96,Revenue,1000228,Midland News Association Ltd
Shropshire,00GG,Place - Planning Services,Supplies & Services - Services,12/07/2021,3254844,720.72,Revenue,1000228,Midland News Association Ltd
Shropshire,00GG,Children's Services - Learning & Skills Business Support,Third Party Payments - Other Establishments,12/07/2021,3254537,"35,000.00",Revenue,1000470,Corbet School Technology & Language Coll
Shropshire,00GG,Capital - Unallocated School Capital,Non Revenue - Non Revenue,12/07/2021,3254805,"25,402.95",Capital,1000752,Window & Door Contract Services
Shropshire,00GG,Workforce and Transformation - Print & Post Services,Supplies & Services - Communications and Computing,12/07/2021,3253655,"20,000.00",Revenue,1000793,Pitney Bowes Ltd - Postage by Phone
Shropshire,00GG,Place - Highways (Bridges and Structures),Third Party Payments - Private Contractors,12/07/2021,3251963,"1,079.50",Revenue,1000819,Environment Agency
Shropshire,00GG,Children's Services - Quality & Assurance: Learning & Development,Employees - Indirect Employee Expenses,12/07/2021,3211398,"-1,006.00",Revenue,1000879,Team-Teach
Shropshire,00GG,Children's Services - Quality & Assurance: Learning & Development,Employees - Indirect Employee Expenses,12/07/2021,3244241,675.00,Revenue,1000879,Team-Teach
Shropshire,00GG,Children's Services - Quality & Assurance: Learning & Development,Employees - Indirect Employee Expenses,12/07/2021,3254665,"1,495.00",Revenue,1000879,Team-Teach
Shropshire,00GG,Place - Shire Catering,Supplies & Services - Catering,12/07/2021,3254006,893.38,Revenue,1000926,Options Management
Shropshire,00GG,Place - Shire Catering,Supplies & Services - Catering,12/07/2021,3254035,873.76,Revenue,1000926,Options Management
Shropshire,00GG,Workforce and Transformation - ICT Services,Supplies & Services - Communications and Computing,12/07/2021,3247700,"2,140.00",Revenue,1000933,Xma Ltd
Shropshire,00GG,Children's Services - Home to School Transport,Transport-Related Expenditure - Contract Hire and Operating Leases,12/07/2021,3255023,"4,430.00",Revenue,1001625,A B & C A Humphries
Shropshire,00GG,Adult Services - Registrars and Coroners,Supplies & Services - Communications and Computing,12/07/2021,3253670,"4,250.00",Revenue,1001748,Zipporah Ltd
Shropshire,00GG,Place - Assistant Director Commercial Services,Supplies & Services - Services,12/07/2021,3255012,"11,970.00",Revenue,1001978,Apse
Shropshire,00GG,Children's Services - Learning & Skills Business Support,Supplies & Services - Services,12/07/2021,3255231,"7,083.00",Revenue,1002379,Broseley Town Council
Shropshire,00GG,Adult Services - Care Management - Transport,Transport-Related Expenditure - Contract Hire and Operating Leases,12/07/2021,3255121,"1,080.00",Revenue,1002881,B Khan
Shropshire,00GG,Workforce and Transformation - Human Resources Operations,Supplies & Services - Services,12/07/2021,3254668,"2,085.00",Revenue,1003010,Penna Plc
Shropshire,00GG,Workforce and Transformation - Human Resources Operations,Supplies & Services - Services,12/07/2021,3254669,"7,112.00",Revenue,1003010,Penna Plc
Shropshire,00GG,Workforce and Transformation - Human Resources Operations,Supplies & Services - Services,12/07/2021,3254672,"1,500.00",Revenue,1003010,Penna Plc
Shropshire,00GG,Children's Services - Children�s Case Management,Supplies & Services - Services,12/07/2021,3255390,"4,520.00",Revenue,1003225,Lower Bush Farm
Shropshire,00GG,Children's Services - Learning & Skills Business Support,Supplies & Services - Services,12/07/2021,3255104,"1,130.00",Revenue,1003374,Lee Bolton Monier-Willams
Shropshire,00GG,Legal and Democratic Services - Elections,Premises-Related Expenditure - Rents,12/07/2021,3255235,"21,655.80",Revenue,1003814,Shropshire Community Leisure Trust
Shropshire,00GG,Adult Services - Housing Options,Premises-Related Expenditure - Repairs alterations and maintenance of buildings,12/07/2021,3254966,"1,464.52",Revenue,1004162,Shropshire Towns & Rural Housing Ltd
Shropshire,00GG,Children's Services - Learning & Skills Business Support,Third Party Payments - Other Establishments,12/07/2021,3254533,"35,000.00",Revenue,1004555,Sir John Talbots
Shropshire,00GG,Place - Assistant Director Economy & Place,Non Revenue - Non Revenue,12/07/2021,3254916,"112,466.91",Revenue,1004594,Shrewsbury Business Improvement Dist Ltd
Shropshire,00GG,Place - Shire Catering,Supplies & Services - Catering,12/07/2021,3255254,603.72,Revenue,1004972,Handmade Speciality Products
Shropshire,00GG,Place - Highways (Bridges and Structures),Supplies & Services - Services,12/07/2021,3253001,"12,903.50",Revenue,1005384,Sharpe Pritchard Solicitors And Parliame
Shropshire,00GG,Children's Services - Looked After Children (LAC) Service,Employees - Direct Employee Expenses,12/07/2021,3255318,"2,147.60",Revenue,1005988,Nonstop Recruitment Ltd
Shropshire,00GG,Capital - Housing Services Capital,Non Revenue - Non Revenue,12/07/2021,3255209,"2,210.00",Capital,1008669,Shire Stairlifts Ltd
Shropshire,00GG,Capital - Housing Services Capital,Non Revenue - Non Revenue,12/07/2021,3255199,"12,455.00",Capital,1009278,Candor Care Limited
Shropshire,00GG,Capital - Housing Services Capital,Non Revenue - Non Revenue,12/07/2021,3255201,"5,135.00",Capital,1009278,Candor Care Limited
Shropshire,00GG,Place - Corporate Landlord - Adult Services,Premises-Related Expenditure - Rents,12/07/2021,3255189,"11,401.52",Revenue,1009315,Shropshire Council Housing Rents
Shropshire,00GG,Capital - Unallocated School Capital,Non Revenue - Non Revenue,12/07/2021,3252869,"86,653.50",Capital,1010310,Read Construction Holdings Limited
Shropshire,00GG,Place - Corporate Landlord - Mardol House & Tannery,Supplies & Services - Printing Stationery and General Office Expenses,12/07/2021,3250856,798.75,Revenue,1010705,Sjf Design & Print
Shropshire,00GG,Children's Services - Learning & Skills Business Support,Third Party Payments - Other Establishments,12/07/2021,3254546,"35,000.00",Revenue,1011680,Csat T/As Meole Brace School
Shropshire,00GG,Children's Services - Learning & Skills Business Support,Third Party Payments - Other Establishments,12/07/2021,3254538,"35,000.00",Revenue,1011681,Csat T/As Mary Webb School
Shropshire,00GG,Children's Services - Children�s Case Management,Employees - Direct Employee Expenses,12/07/2021,3255399,"1,620.23",Revenue,1013053,Frontline Staffing Ltd
Shropshire,00GG,Place - Shire Catering,Supplies & Services - Services,12/07/2021,3255075,900.00,Revenue,1013876,Batchley First School
Shropshire,00GG,Legal and Democratic Services - Elections,Supplies & Services - Communications and Computing,12/07/2021,3255257,"1,304.72",Revenue,1014774,Royal Mail Group Ltd
Shropshire,00GG,Legal and Democratic Services - Elections,Supplies & Services - Communications and Computing,12/07/2021,3255264,"5,791.95",Revenue,1014774,Royal Mail Group Ltd
Shropshire,00GG,Place - Highways (Streetworks),Supplies & Services - Services,13/07/2021,3255021,831.60,Revenue,1000228,Midland News Association Ltd
Shropshire,00GG,Legal and Democratic Services - Democratic Services,Supplies & Services - Expenses,13/07/2021,3255284,13.66,Revenue,1000255,Legal & Democratic Servs Imp Ac
Shropshire,00GG,Legal and Democratic Services - Legal Services,Supplies & Services - Services,13/07/2021,3255284,"1,065.00",Revenue,1000255,Legal & Democratic Servs Imp Ac
Shropshire,00GG,Legal and Democratic Services - Legal Services � Child Care,Supplies & Services - Services,13/07/2021,3255284,"22,805.00",Revenue,1000255,Legal & Democratic Servs Imp Ac
Shropshire,00GG,Capital - Housing Services Capital,Non Revenue - Non Revenue,13/07/2021,3255558,"2,316.00",Capital,1000306,Security Wise Ltd
Shropshire,00GG,Place - Environment and Transport (Parking),Income - Customer and Client Receipts,13/07/2021,3252818,"42,887.35",Revenue,1000613,Morris & Co
Shropshire,00GG,Place - Corporate Landlord - Adult Services,Premises-Related Expenditure - Repairs alterations and maintenance of buildings,13/07/2021,3254817,"1,788.94",Revenue,1000752,Window & Door Contract Services
Shropshire,00GG,Place - Corporate Landlord - Admin Buildings,Premises-Related Expenditure - Repairs alterations and maintenance of buildings,13/07/2021,11308517,680.00,Revenue,1000854,Thomas Consulting Ltd
Shropshire,00GG,Place - Shire Catering,Supplies & Services - Catering,13/07/2021,3254212,839.72,Revenue,1000926,Options Management
Shropshire,00GG,Children's Services - Home to School Transport,Transport-Related Expenditure - Contract Hire and Operating Leases,13/07/2021,3255570,"2,375.00",Revenue,1001729,Concorde Travel Of Shrewsbury
Shropshire,00GG,Capital - Housing Services Capital,Non Revenue - Non Revenue,13/07/2021,3255603,"7,103.38",Capital,1001884,A Bate Building Contractor Ltd
Shropshire,00GG,Workforce and Transformation - Print & Post Services,Supplies & Services - Communications and Computing,13/07/2021,3250469,"2,828.75",Revenue,1003729,Whistl North Limited
Shropshire,00GG,Place - Property Services Group,Premises-Related Expenditure - Repairs alterations and maintenance of buildings,13/07/2021,11308523,575.00,Revenue,1003941,Mark One Safety Solutions Limited
Shropshire,00GG,Place - Corporate Landlord - Admin Buildings,Premises-Related Expenditure - Repairs alterations and maintenance of buildings,13/07/2021,11308508,"1,420.00",Revenue,1004402,Rmf (Landscaping) Ltd
Shropshire,00GG,Children's Services - Looked After Children (LAC) Service,Supplies & Services - Services,13/07/2021,3255712,606.33,Revenue,1004773,Alpha Biolaboratories Legal Limited
Shropshire,00GG,Children's Services - Special Educational Needs & Disability,Supplies & Services - Services,13/07/2021,3249017,"3,482.10",Revenue,1005052,Hampton'S Resourcing
Shropshire,00GG,Children's Services - Looked After Children (LAC) Service,Supplies & Services - Services,13/07/2021,3255675,580.00,Revenue,1005189,Lextox
Shropshire,00GG,Children's Services - Looked After Children (LAC) Service,Supplies & Services - Services,13/07/2021,3255703,875.00,Revenue,1005189,Lextox
Shropshire,00GG,Adult Services - Social Care Hospital Interface Purchasing,Third Party Payments - Private Contractors,13/07/2021,11308452,"1,291.20",Revenue,1005424,Willow Home Care Ltd
Shropshire,00GG,Adult Services - Social Care Hospital Interface Purchasing,Third Party Payments - Private Contractors,13/07/2021,11308453,"1,982.40",Revenue,1005424,Willow Home Care Ltd
Shropshire,00GG,Place - Environment and Transport (Public Transport),Transport-Related Expenditure - Direct Transport Costs,13/07/2021,3250078,"5,774.26",Revenue,1006053,Uk Fuels Limited
Shropshire,00GG,Place - Environment and Transport (Strategic),Supplies & Services - Services,13/07/2021,3255782,"17,710.50",Revenue,1006124,Learncycling
Shropshire,00GG,Legal and Democratic Services - Legal Services � Child Care,Employees - Direct Employee Expenses,13/07/2021,3253112,"1,007.24",Revenue,1006330,Sellick Partnership Limited
Shropshire,00GG,Children's Services - Placements: Residential Placements,Employees - Direct Employee Expenses,13/07/2021,3255468,421.00,Revenue,1006553,Randstad Public Services Ltd
Shropshire,00GG,Children's Services - Learning & Skills Business Support,Supplies & Services - Services,13/07/2021,3255590,"2,330.10",Revenue,1008407,Kym Crippin
Shropshire,00GG,Place - Corporate Landlord - Traveller Sites,Premises-Related Expenditure - Repairs alterations and maintenance of buildings,13/07/2021,11308547,440.02,Revenue,1008557,Advanced Wastewater & Drainage Limited
Shropshire,00GG,Children's Services - Non-Delegated Primary DSG,Premises-Related Expenditure - Repairs alterations and maintenance of buildings,13/07/2021,11308552,"2,431.00",Revenue,1008557,Advanced Wastewater & Drainage Limited
Shropshire,00GG,Place - Corporate Landlord - Traveller Sites,Premises-Related Expenditure - Repairs alterations and maintenance of buildings,13/07/2021,11308555,427.50,Revenue,1008557,Advanced Wastewater & Drainage Limited
Shropshire,00GG,Place - Corporate Landlord - Children's Services,Premises-Related Expenditure - Repairs alterations and maintenance of buildings,13/07/2021,11308558,483.35,Revenue,1008557,Advanced Wastewater & Drainage Limited
Shropshire,00GG,Place - Corporate Landlord -  Highways,Premises-Related Expenditure - Repairs alterations and maintenance of buildings,13/07/2021,11308609,946.27,Revenue,1008557,Advanced Wastewater & Drainage Limited
Shropshire,00GG,Place - Corporate Landlord -  Economic Development,Premises-Related Expenditure - Repairs alterations and maintenance of buildings,13/07/2021,11308615,"1,349.02",Revenue,1008557,Advanced Wastewater & Drainage Limited
Shropshire,00GG,Children's Services - Placements: Residential Placements,Premises-Related Expenditure - Repairs alterations and maintenance of buildings,13/07/2021,3254802,564.08,Revenue,1008560,M W D Services
Shropshire,00GG,Place - Corporate Landlord - Youth Centres & Community,Premises-Related Expenditure - Repairs alterations and maintenance of buildings,13/07/2021,3254810,615.95,Revenue,1008560,M W D Services
Shropshire,00GG,Capital - Primary School Capital,Non Revenue - Non Revenue,13/07/2021,11308496,440.00,Capital,1008604,Pp Electrical Services (Shropshire) Ltd
Shropshire,00GG,Place - Corporate Landlord - Mardol House & Tannery,Premises-Related Expenditure - Repairs alterations and maintenance of buildings,13/07/2021,11308501,615.22,Revenue,1008604,Pp Electrical Services (Shropshire) Ltd
Shropshire,00GG,Capital - Housing Services Capital,Non Revenue - Non Revenue,13/07/2021,3255441,"6,509.26",Capital,1009035,W S Building Services (Shropshire) Ltd
Shropshire,00GG,Capital - Housing Services Capital,Non Revenue - Non Revenue,13/07/2021,3255463,"1,522.88",Capital,1009035,W S Building Services (Shropshire) Ltd
Shropshire,00GG,Capital - Housing Services Capital,Non Revenue - Non Revenue,13/07/2021,3255622,"10,000.00",Capital,1009035,W S Building Services (Shropshire) Ltd
Shropshire,00GG,Adult Services - Social Care Hospital Interface Purchasing,Third Party Payments - Private Contractors,13/07/2021,11308455,806.32,Revenue,1010010,Hands On Care Shropshire Ltd
Shropshire,00GG,Adult Services - Social Care Hospital Interface Purchasing,Third Party Payments - Private Contractors,13/07/2021,11308458,729.60,Revenue,1010010,Hands On Care Shropshire Ltd
Shropshire,00GG,Adult Services - Social Care Hospital Interface Purchasing,Third Party Payments - Private Contractors,13/07/2021,11308460,864.00,Revenue,1010010,Hands On Care Shropshire Ltd
Shropshire,00GG,Children's Services - Placements: Adoption Service,Supplies & Services - Services,13/07/2021,3255618,"3,200.00",Revenue,1011303,The Family Place Ltd
Shropshire,00GG,Children's Services - Home to School Transport,Transport-Related Expenditure - Contract Hire and Operating Leases,13/07/2021,3255619,705.50,Revenue,1012580,Elliotts Direct Travel
Shropshire,00GG,Children's Services - Looked After Children (LAC) Service,Supplies & Services - Services,13/07/2021,3255419,"2,000.00",Revenue,1012826,John Vater QC
Shropshire,00GG,Place - Planning Services,Supplies & Services - Services,13/07/2021,3248466,"1,539.00",Revenue,1013010,Michael Davies - MPD Built Environment Consultants Limited
Shropshire,00GG,Children's Services - Non-Delegated Primary DSG,Premises-Related Expenditure - Repairs alterations and maintenance of buildings,13/07/2021,3254801,801.25,Revenue,1014012,Henry Williams And Son (Roads) Ltd
Shropshire,00GG,Legal and Democratic Services - Elections,Supplies & Services - Communications and Computing,13/07/2021,3255472,"9,291.80",Revenue,1014774,Royal Mail Group Ltd
Shropshire,00GG,Children's Services - Home to School Transport,Transport-Related Expenditure - Contract Hire and Operating Leases,14/07/2021,3252546,"3,582.00",Revenue,1000198,Longmynd Travel Ltd
Shropshire,00GG,Children's Services - Home to School Transport,Transport-Related Expenditure - Contract Hire and Operating Leases,14/07/2021,3252549,"3,501.00",Revenue,1000198,Longmynd Travel Ltd
Shropshire,00GG,Children's Services - Home to School Transport,Transport-Related Expenditure - Contract Hire and Operating Leases,14/07/2021,3252557,"2,556.00",Revenue,1000198,Longmynd Travel Ltd
Shropshire,00GG,Children's Services - Home to School Transport,Transport-Related Expenditure - Contract Hire and Operating Leases,14/07/2021,3252559,"3,636.00",Revenue,1000198,Longmynd Travel Ltd
Shropshire,00GG,Children's Services - Home to School Transport,Transport-Related Expenditure - Contract Hire and Operating Leases,14/07/2021,3252564,"2,890.00",Revenue,1000198,Longmynd Travel Ltd
Shropshire,00GG,Children's Services - Home to School Transport,Transport-Related Expenditure - Contract Hire and Operating Leases,14/07/2021,3252569,"1,440.00",Revenue,1000198,Longmynd Travel Ltd
Shropshire,00GG,Children's Services - Home to School Transport,Transport-Related Expenditure - Contract Hire and Operating Leases,14/07/2021,3252724,"18,197.10",Revenue,1000198,Longmynd Travel Ltd
Shropshire,00GG,Place - Libraries,Supplies & Services - Equipment Furniture and Materials,14/07/2021,3250580,"1,552.84",Revenue,1000290,Peters Ltd
Shropshire,00GG,Children's Services - Home to School Transport,Transport-Related Expenditure - Contract Hire and Operating Leases,14/07/2021,3252605,"3,024.00",Revenue,1000766,Birch Travel Ltd
Shropshire,00GG,Children's Services - Home to School Transport,Transport-Related Expenditure - Contract Hire and Operating Leases,14/07/2021,3252606,"2,655.00",Revenue,1000766,Birch Travel Ltd
Shropshire,00GG,Children's Services - Home to School Transport,Transport-Related Expenditure - Contract Hire and Operating Leases,14/07/2021,3252619,"1,422.00",Revenue,1000766,Birch Travel Ltd
Shropshire,00GG,Children's Services - Home to School Transport,Transport-Related Expenditure - Contract Hire and Operating Leases,14/07/2021,3252621,"2,574.00",Revenue,1000766,Birch Travel Ltd
Shropshire,00GG,Children's Services - Home to School Transport,Transport-Related Expenditure - Contract Hire and Operating Leases,14/07/2021,3252622,"3,024.00",Revenue,1000766,Birch Travel Ltd
Shropshire,00GG,Place - Corporate Landlord - Admin Buildings,Premises-Related Expenditure - Repairs alterations and maintenance of buildings,14/07/2021,11306935,"1,261.72",Revenue,1000787,Gas Alarm Systems Ltd
Shropshire,00GG,Place - Highways (Bridges and Structures),Third Party Payments - Private Contractors,14/07/2021,3255233,"1,079.50",Revenue,1000819,Environment Agency
Shropshire,00GG,Legal and Democratic Services - Elections,Premises-Related Expenditure - Rents,14/07/2021,3256013,875.00,Revenue,1001181,Shropshire Education & Conference Centre
Shropshire,00GG,Adult Services - External Providers,Third Party Payments - Private Contractors,14/07/2021,3256047,"51,058.33",Revenue,1001217,Citizens Advice Shropshire
Shropshire,00GG,Place - Shire Catering,Supplies & Services - Catering,14/07/2021,11308639,719.93,Revenue,1001530,Bidfood
Shropshire,00GG,Place - Shire Catering,Supplies & Services - Catering,14/07/2021,11308647,558.22,Revenue,1001530,Bidfood
Shropshire,00GG,Place - Shire Catering,Supplies & Services - Catering,14/07/2021,11308648,715.91,Revenue,1001530,Bidfood
Shropshire,00GG,Place - Shire Catering,Supplies & Services - Catering,14/07/2021,11308653,638.03,Revenue,1001530,Bidfood
Shropshire,00GG,Place - Shire Catering,Supplies & Services - Catering,14/07/2021,11308657,686.08,Revenue,1001530,Bidfood
Shropshire,00GG,Place - Shire Catering,Supplies & Services - Catering,14/07/2021,11308659,501.58,Revenue,1001530,Bidfood
Shropshire,00GG,Place - Shire Catering,Supplies & Services - Catering,14/07/2021,11308660,889.43,Revenue,1001530,Bidfood
Shropshire,00GG,Place - Shire Catering,Supplies & Services - Catering,14/07/2021,11308669,776.28,Revenue,1001530,Bidfood
Shropshire,00GG,Place - Shire Catering,Supplies & Services - Catering,14/07/2021,11308673,704.64,Revenue,1001530,Bidfood
Shropshire,00GG,Place - Shire Catering,Supplies & Services - Catering,14/07/2021,11308674,616.45,Revenue,1001530,Bidfood
Shropshire,00GG,Place - Shire Catering,Supplies & Services - Catering,14/07/2021,11308687,685.15,Revenue,1001530,Bidfood
Shropshire,00GG,Place - Shire Catering,Supplies & Services - Catering,14/07/2021,11308688,586.52,Revenue,1001530,Bidfood
Shropshire,00GG,Place - Shire Catering,Supplies & Services - Catering,14/07/2021,11308690,613.86,Revenue,1001530,Bidfood
Shropshire,00GG,Place - Shire Catering,Supplies & Services - Catering,14/07/2021,11308691,587.36,Revenue,1001530,Bidfood
Shropshire,00GG,Place - Shire Catering,Supplies & Services - Catering,14/07/2021,11308694,638.44,Revenue,1001530,Bidfood
Shropshire,00GG,Place - Shire Catering,Supplies & Services - Catering,14/07/2021,11308704,829.05,Revenue,1001530,Bidfood
Shropshire,00GG,Place - Shire Catering,Supplies & Services - Catering,14/07/2021,11308715,759.17,Revenue,1001530,Bidfood
Shropshire,00GG,Place - Shire Catering,Supplies & Services - Catering,14/07/2021,11308721,628.33,Revenue,1001530,Bidfood
Shropshire,00GG,Place - Shire Catering,Supplies & Services - Catering,14/07/2021,11308730,512.85,Revenue,1001530,Bidfood
Shropshire,00GG,Place - Shire Catering,Supplies & Services - Catering,14/07/2021,11308735,"1,159.80",Revenue,1001530,Bidfood
Shropshire,00GG,Place - Shire Catering,Supplies & Services - Catering,14/07/2021,11308747,850.16,Revenue,1001530,Bidfood
Shropshire,00GG,Place - Shire Catering,Supplies & Services - Catering,14/07/2021,11308750,595.00,Revenue,1001530,Bidfood
Shropshire,00GG,Place - Shire Catering,Supplies & Services - Catering,14/07/2021,11308757,742.95,Revenue,1001530,Bidfood
Shropshire,00GG,Place - Shire Catering,Supplies & Services - Catering,14/07/2021,11308762,495.17,Revenue,1001530,Bidfood
Shropshire,00GG,Place - Shire Catering,Supplies & Services - Catering,14/07/2021,11308766,871.02,Revenue,1001530,Bidfood
Shropshire,00GG,Place - Shire Catering,Supplies & Services - Catering,14/07/2021,11308768,732.91,Revenue,1001530,Bidfood
Shropshire,00GG,Place - Shire Catering,Supplies & Services - Catering,14/07/2021,11308777,872.54,Revenue,1001530,Bidfood
Shropshire,00GG,Place - Shire Catering,Supplies & Services - Catering,14/07/2021,11308786,595.05,Revenue,1001530,Bidfood
Shropshire,00GG,Place - Shire Catering,Supplies & Services - Catering,14/07/2021,11308787,613.33,Revenue,1001530,Bidfood
Shropshire,00GG,Place - Shire Catering,Supplies & Services - Catering,14/07/2021,11308789,523.25,Revenue,1001530,Bidfood
Shropshire,00GG,Place - Shire Catering,Supplies & Services - Catering,14/07/2021,11308796,608.09,Revenue,1001530,Bidfood
Shropshire,00GG,Place - Shire Catering,Supplies & Services - Catering,14/07/2021,11308800,"1,019.17",Revenue,1001530,Bidfood
Shropshire,00GG,Place - Shire Catering,Supplies & Services - Catering,14/07/2021,11308802,582.62,Revenue,1001530,Bidfood
Shropshire,00GG,Place - Shire Catering,Supplies & Services - Catering,14/07/2021,11308810,906.92,Revenue,1001530,Bidfood
Shropshire,00GG,Place - Shire Catering,Supplies & Services - Catering,14/07/2021,11308812,597.13,Revenue,1001530,Bidfood
Shropshire,00GG,Place - Shire Catering,Supplies & Services - Catering,14/07/2021,11308814,"1,322.66",Revenue,1001530,Bidfood
Shropshire,00GG,Place - Shire Catering,Supplies & Services - Catering,14/07/2021,11308816,604.89,Revenue,1001530,Bidfood
Shropshire,00GG,Place - Shire Catering,Supplies & Services - Catering,14/07/2021,11308828,590.63,Revenue,1001530,Bidfood
Shropshire,00GG,Place - Shire Catering,Supplies & Services - Catering,14/07/2021,11308833,653.52,Revenue,1001530,Bidfood
Shropshire,00GG,Place - Shire Catering,Supplies & Services - Catering,14/07/2021,11308834,947.79,Revenue,1001530,Bidfood
Shropshire,00GG,Place - Shire Catering,Supplies & Services - Catering,14/07/2021,11308840,739.16,Revenue,1001530,Bidfood
Shropshire,00GG,Place - Shire Catering,Supplies & Services - Catering,14/07/2021,11308858,509.98,Revenue,1001530,Bidfood
Shropshire,00GG,Place - Shire Catering,Supplies & Services - Catering,14/07/2021,11308862,555.81,Revenue,1001530,Bidfood
Shropshire,00GG,Place - Shire Catering,Supplies & Services - Equipment Furniture and Materials,14/07/2021,3250611,13.08,Revenue,1001901,Shire Services Worcester Imp 
Shropshire,00GG,Place - Shire Catering,Supplies & Services - Catering,14/07/2021,3250611,392.08,Revenue,1001901,Shire Services Worcester Imp 
Shropshire,00GG,Place - Shire Catering,Supplies & Services - Communications and Computing,14/07/2021,3250611,250.00,Revenue,1001901,Shire Services Worcester Imp 
Shropshire,00GG,Place - Highways (Operations),Supplies & Services - Grants and Subscriptions,14/07/2021,3250905,"3,000.00",Revenue,1002069,Bayston Hill Parish Council
Shropshire,00GG,Adult Services - Public Health General Management,Supplies & Services - Grants and Subscriptions,14/07/2021,3247842,"7,000.00",Revenue,1002313,Shrewsbury Town In The Community
Shropshire,00GG,Place - Highways (Operations),Supplies & Services - Grants and Subscriptions,14/07/2021,3250907,"1,500.00",Revenue,1002362,All Stretton Smethcott & Woolstaston Pc
Shropshire,00GG,Place - Highways (Operations),Supplies & Services - Grants and Subscriptions,14/07/2021,3250918,"1,500.00",Revenue,1002365,Astley Abbotts Parish Council
Shropshire,00GG,Place - Highways (Operations),Supplies & Services - Grants and Subscriptions,14/07/2021,3251015,780.00,Revenue,1002375,Bitterley Parish Council
Shropshire,00GG,Place - Highways (Operations),Supplies & Services - Grants and Subscriptions,14/07/2021,3251010,"1,500.00",Revenue,1002379,Broseley Town Council
Shropshire,00GG,Place - Highways (Operations),Supplies & Services - Grants and Subscriptions,14/07/2021,3251209,"1,500.00",Revenue,1002382,Cardington Parish Council
Shropshire,00GG,Place - Highways (Operations),Supplies & Services - Grants and Subscriptions,14/07/2021,3251220,"3,000.00",Revenue,1002384,Chelmarsh Parish Council
Shropshire,00GG,Place - Highways (Operations),Supplies & Services - Grants and Subscriptions,14/07/2021,3251249,"1,500.00",Revenue,1002386,Chetton Parish Council
Shropshire,00GG,Place - Highways (Operations),Supplies & Services - Grants and Subscriptions,14/07/2021,3251205,600.00,Revenue,1002401,Cound Parish Council
Shropshire,00GG,Place - Highways (Operations),Supplies & Services - Grants and Subscriptions,14/07/2021,3251231,625.00,Revenue,1002402,Craven Arms Town Council
Shropshire,00GG,Place - Highways (Operations),Supplies & Services - Grants and Subscriptions,14/07/2021,3251226,"1,000.00",Revenue,1002404,Culmington Parish Council
Shropshire,00GG,Place - Highways (Operations),Supplies & Services - Grants and Subscriptions,14/07/2021,3251233,"1,500.00",Revenue,1002406,Ditton Priors Parish Council
Shropshire,00GG,Place - Highways (Operations),Supplies & Services - Grants and Subscriptions,14/07/2021,3251217,"1,500.00",Revenue,1002408,Eardington Parish Council
Shropshire,00GG,Place - Highways (Operations),Supplies & Services - Grants and Subscriptions,14/07/2021,3251212,"1,500.00",Revenue,1002415,Great Hanwood Parish Council
Shropshire,00GG,Place - Highways (Operations),Supplies & Services - Grants and Subscriptions,14/07/2021,3251222,"1,375.00",Revenue,1002416,Great Ness & Little Ness Parish Council
Shropshire,00GG,Place - Highways (Operations),Supplies & Services - Grants and Subscriptions,14/07/2021,3251016,"1,500.00",Revenue,1002496,Aston Botterell B & C N Parish Council
Shropshire,00GG,Place - Highways (Operations),Supplies & Services - Grants and Subscriptions,14/07/2021,3250916,"1,500.00",Revenue,1002497,Billingsley Deuxhill G & M S Parish Cou
Shropshire,00GG,"Finance, Governance & Assurance - Emergency Planning",Supplies & Services - Equipment Furniture and Materials,14/07/2021,3247925,740.05,Revenue,1002924,K J Electronics Systems Ltd
Shropshire,00GG,Place - Environment and Transport (Public Transport),Transport-Related Expenditure - Contract Hire and Operating Leases,14/07/2021,3250040,739.50,Revenue,1002991,Lex Autolease Ltd
Shropshire,00GG,"Finance, Governance & Assurance - Risk Management and Insurance",Supplies & Services - Equipment Furniture and Materials,14/07/2021,3255915,"50,188.49",Revenue,1003166,Gallagher Bassett International Ltd
Shropshire,00GG,Place - Corporate Landlord -  Economic Development,Premises-Related Expenditure - Repairs alterations and maintenance of buildings,14/07/2021,11308525,"1,200.00",Revenue,1003333,IDEA Ingham Energy Ltd
Shropshire,00GG,Children's Services - Special Educational Needs & Disability,Supplies & Services - Equipment Furniture and Materials,14/07/2021,3253920,660.00,Revenue,1003409,Crisis Prevention Institute
Shropshire,00GG,Place - Corporate Landlord - Mardol House & Tannery,Premises-Related Expenditure - Water Services,14/07/2021,3254438,"1,681.66",Revenue,1003705,West Mercia Energy
Shropshire,00GG,Place - Corporate Landlord - Mardol House & Tannery,Premises-Related Expenditure - Water Services,14/07/2021,3254447,"1,315.02",Revenue,1003705,West Mercia Energy
Shropshire,00GG,Place - Outdoor Partnerships,Premises-Related Expenditure - Repairs alterations and maintenance of buildings,14/07/2021,3252243,776.15,Revenue,1003763,S D Vaughan & Son
Shropshire,00GG,"Finance, Governance & Assurance - Commissioning Development & Procurement",Employees - Direct Employee Expenses,14/07/2021,3252930,"220,632.68",Revenue,1004129,Matrix Scm Ltd
Shropshire,00GG,Children's Services - Special Educational Needs & Disability,Third Party Payments - Other Establishments,14/07/2021,3253477,905.00,Revenue,1004947,Bitterley C Of E Primary School
Shropshire,00GG,Place - Economic Growth,Supplies & Services - Services,14/07/2021,3255872,"3,474.47",Revenue,1005471,Shrewsbury Colleges Group
Shropshire,00GG,Capital - Economic Growth Capital,Non Revenue - Non Revenue,14/07/2021,3255633,"-193,500.00",Capital,1006058,Personal redaction
Shropshire,00GG,Capital - Economic Growth Capital,Non Revenue - Non Revenue,14/07/2021,3255735,"193,500.00",Capital,1006058,Personal redaction
Shropshire,00GG,Children's Services - Looked After Children (LAC) Service,Employees - Direct Employee Expenses,14/07/2021,3255328,834.02,Revenue,1006330,Sellick Partnership Limited
Shropshire,00GG,Children's Services - Placements: Residential Placements,Employees - Direct Employee Expenses,14/07/2021,3253374,454.68,Revenue,1006553,Randstad Public Services Ltd
Shropshire,00GG,Children's Services - Placements: Residential Placements,Employees - Direct Employee Expenses,14/07/2021,3253429,648.34,Revenue,1006553,Randstad Public Services Ltd
Shropshire,00GG,Children's Services - Placements: Residential Placements,Employees - Direct Employee Expenses,14/07/2021,3253809,997.68,Revenue,1006553,Randstad Public Services Ltd
Shropshire,00GG,Place - Outdoor Partnerships,Supplies & Services - Services,14/07/2021,3248828,"3,674.00",Revenue,1009771,Hahn Plastics Ltd
Shropshire,00GG,Children's Services - Compass & Assesment,Supplies & Services - Services,14/07/2021,3247995,515.00,Revenue,1009907,Inese Fletcher
Shropshire,00GG,Workforce and Transformation - Occupational Health & Safety & ICT Approvals,Employees - Direct Employee Expenses,14/07/2021,3249431,600.00,Revenue,1010070,Drs Direct Limited
Shropshire,00GG,Adult Services - Social Care Hospital Interface Purchasing,Third Party Payments - Private Contractors,14/07/2021,11308249,588.60,Revenue,1010097,Quil Care Group
Shropshire,00GG,Adult Services - Social Care Hospital Interface Purchasing,Third Party Payments - Private Contractors,14/07/2021,11308250,588.60,Revenue,1010097,Quil Care Group
Shropshire,00GG,Place - Assistant Director Economy & Place,Non Revenue - Non Revenue,14/07/2021,3247568,"42,301.86",Revenue,1010141,Oswestry Bid Limited
Shropshire,00GG,Children's Services - Special Educational Needs & Disability,Third Party Payments - Other Establishments,14/07/2021,3253488,"6,820.00",Revenue,1010727,Empower Trust
Shropshire,00GG,Children's Services - Looked After Children (LAC) Service,Supplies & Services - Services,14/07/2021,3249082,"2,872.80",Revenue,1012033,MEWA LLP
Shropshire,00GG,Capital - HRA Dwellings Capital,Non Revenue - Non Revenue,14/07/2021,3254471,"130,000.00",Capital,1013037,Gough-Thomas & Scott Solicitors
Shropshire,00GG,Legal and Democratic Services - Legal Services � Child Care,Supplies & Services - Services,14/07/2021,3256052,750.00,Revenue,1013890,Kathryn Taylor
Shropshire,00GG,Children's Services - Placements: Adoption Service,Supplies & Services - Services,14/07/2021,3246867,"4,400.00",Revenue,1013929,J A Foulkes Ltd
Shropshire,00GG,Children's Services - Placements: Residential Placements,Premises-Related Expenditure - Repairs alterations and maintenance of buildings,15/07/2021,11305484,"1,651.51",Revenue,1000128,R G Edwards & Co Ltd
Shropshire,00GG,Place - Corporate Landlord - Children's Services,Premises-Related Expenditure - Repairs alterations and maintenance of buildings,15/07/2021,11305485,"1,715.78",Revenue,1000128,R G Edwards & Co Ltd
Shropshire,00GG,Capital - Social Care Operations Capital,Non Revenue - Non Revenue,15/07/2021,11305488,"1,330.10",Capital,1000128,R G Edwards & Co Ltd
Shropshire,00GG,Capital - Unallocated School Capital,Non Revenue - Non Revenue,15/07/2021,11305489,"1,335.16",Capital,1000128,R G Edwards & Co Ltd
Shropshire,00GG,Capital - Unallocated School Capital,Non Revenue - Non Revenue,15/07/2021,3255025,"8,046.38",Capital,1000219,Welch & Phillips Ltd
Shropshire,00GG,Children's Services - Home to School Transport,Transport-Related Expenditure - Contract Hire and Operating Leases,15/07/2021,3254382,"3,781.00",Revenue,1000220,Arriva Midlands Ltd
Shropshire,00GG,Place - Environment and Transport (Public Transport),Third Party Payments - Transport Operators,15/07/2021,3256922,"62,613.00",Revenue,1000220,Arriva Midlands Ltd
Shropshire,00GG,Place - Environment and Transport (Public Transport),Third Party Payments - Transport Operators,15/07/2021,3256926,"55,554.10",Revenue,1000220,Arriva Midlands Ltd
Shropshire,00GG,Place - Planning Services,Supplies & Services - Services,15/07/2021,3249795,720.72,Revenue,1000228,Midland News Association Ltd
Shropshire,00GG,Capital - Corporate Landlord Capital,Non Revenue - Non Revenue,15/07/2021,11309703,"15,216.40",Capital,1000306,Security Wise Ltd
Shropshire,00GG,Capital - Corporate Landlord Capital,Non Revenue - Non Revenue,15/07/2021,11309704,"-15,216.40",Capital,1000306,Security Wise Ltd
Shropshire,00GG,Capital - Corporate Landlord Capital,Non Revenue - Non Revenue,15/07/2021,11309705,"2,152.08",Capital,1000306,Security Wise Ltd
Shropshire,00GG,Place - Leisure,Premises-Related Expenditure - Repairs alterations and maintenance of buildings,15/07/2021,11305560,782.13,Revenue,1000324,David Rogers Electrical Contractors Ltd
Shropshire,00GG,Place - Highways (Streetworks),Third Party Payments - Private Contractors,15/07/2021,3256078,"30,163.00",Revenue,1000347,Staffordshire County Council
Shropshire,00GG,Children's Services - Home to School Transport,Transport-Related Expenditure - Contract Hire and Operating Leases,15/07/2021,3256335,"6,840.00",Revenue,1000378,Tanat Valley Coaches
Shropshire,00GG,Children's Services - Special Educational Needs & Disability,Third Party Payments - Other Establishments,15/07/2021,3256385,"1,800.00",Revenue,1000530,Shropshire Youth Association
Shropshire,00GG,Adult Services - Regulatory Services,Supplies & Services - Communications and Computing,15/07/2021,11309690,"4,302.00",Revenue,1000661,British Telecommunications Plc (One Bill)
Shropshire,00GG,Workforce and Transformation - ICT Services,Supplies & Services - Communications and Computing,15/07/2021,11309690,"-2,024.96",Revenue,1000661,British Telecommunications Plc (One Bill)
Shropshire,00GG,Children's Services - Home to School Transport,Transport-Related Expenditure - Contract Hire and Operating Leases,15/07/2021,3257393,868.45,Revenue,1000748,Brian Davies & Son Ltd
Shropshire,00GG,Children's Services - Home to School Transport,Transport-Related Expenditure - Contract Hire and Operating Leases,15/07/2021,3257394,"1,500.05",Revenue,1000748,Brian Davies & Son Ltd
Shropshire,00GG,Children's Services - Home to School Transport,Transport-Related Expenditure - Contract Hire and Operating Leases,15/07/2021,3257407,"1,089.00",Revenue,1000748,Brian Davies & Son Ltd
Shropshire,00GG,Children's Services - Home to School Transport,Transport-Related Expenditure - Contract Hire and Operating Leases,15/07/2021,3257408,"1,881.00",Revenue,1000748,Brian Davies & Son Ltd
Shropshire,00GG,Adult Services - Independent Living,Third Party Payments - Othet Local Authorities,15/07/2021,3256704,"25,116.10",Revenue,1000755,Herefordshire Council
Shropshire,00GG,Place - Shire Catering,Supplies & Services - Catering,15/07/2021,3256296,"1,038.80",Revenue,1000769,The Little Food Company Limited
Shropshire,00GG,Place - Shire Catering,Supplies & Services - Catering,15/07/2021,3256960,"1,232.18",Revenue,1000769,The Little Food Company Limited
Shropshire,00GG,Place - Shire Catering,Supplies & Services - Catering,15/07/2021,3256971,"1,119.00",Revenue,1000769,The Little Food Company Limited
Shropshire,00GG,Workforce and Transformation - Print & Post Services,Supplies & Services - Communications and Computing,15/07/2021,3256709,"9,000.00",Revenue,1000793,Pitney Bowes Ltd - Postage by Phone
Shropshire,00GG,Place - Shire Catering,Supplies & Services - Catering,15/07/2021,3256365,854.24,Revenue,1000926,Options Management
Shropshire,00GG,Place - Shire Catering,Supplies & Services - Catering,15/07/2021,3256605,"1,204.44",Revenue,1000926,Options Management
Shropshire,00GG,Place - Shire Catering,Supplies & Services - Catering,15/07/2021,3256739,"1,042.84",Revenue,1000926,Options Management
Shropshire,00GG,Place - Shire Catering,Supplies & Services - Catering,15/07/2021,3256753,"1,066.94",Revenue,1000926,Options Management
Shropshire,00GG,Children's Services - Placements: Residential Placements,Premises-Related Expenditure - Cleaning and domestic supplies,15/07/2021,3257534,33.91,Revenue,1001027,SC Ifton House Imprest Account
Shropshire,00GG,Children's Services - Placements: Residential Placements,Transport-Related Expenditure - Direct Transport Costs,15/07/2021,3257534,19.96,Revenue,1001027,SC Ifton House Imprest Account
Shropshire,00GG,Children's Services - Placements: Residential Placements,Transport-Related Expenditure - Public Transport,15/07/2021,3257534,27.23,Revenue,1001027,SC Ifton House Imprest Account
Shropshire,00GG,Children's Services - Placements: Residential Placements,Supplies & Services - Equipment Furniture and Materials,15/07/2021,3257534,75.12,Revenue,1001027,SC Ifton House Imprest Account
Shropshire,00GG,Children's Services - Placements: Residential Placements,Supplies & Services - Catering,15/07/2021,3257534,657.16,Revenue,1001027,SC Ifton House Imprest Account
Shropshire,00GG,Children's Services - Placements: Residential Placements,Supplies & Services - Printing Stationery and General Office Expenses,15/07/2021,3257534,2.50,Revenue,1001027,SC Ifton House Imprest Account
Shropshire,00GG,Children's Services - Placements: Residential Placements,Supplies & Services - Services,15/07/2021,3257534,162.05,Revenue,1001027,SC Ifton House Imprest Account
Shropshire,00GG,Children's Services - Placements: Residential Placements,Third Party Payments - Other Establishments,15/07/2021,3257534,141.17,Revenue,1001027,SC Ifton House Imprest Account
Shropshire,00GG,Adult Services - Social Care Community Purchasing,Third Party Payments - Private Contractors,15/07/2021,11308252,"12,600.00",Revenue,1001105,Prestige Nursing Ltd
Shropshire,00GG,Adult Services - Social Care Community Purchasing,Third Party Payments - Private Contractors,15/07/2021,11308253,"2,940.00",Revenue,1001105,Prestige Nursing Ltd
Shropshire,00GG,Children's Services - Special Educational Needs & Disability,Third Party Payments - Other Agencies,15/07/2021,3248063,"8,783.33",Revenue,1001217,Citizens Advice Shropshire
Shropshire,00GG,Adult Services - Care Management - Assistive Equipment & Technology,Third Party Payments - Private Contractors,15/07/2021,3248159,"8,610.36",Revenue,1001771,Just Checking Ltd
Shropshire,00GG,Capital - Highways Capital,Non Revenue - Non Revenue,15/07/2021,3257650,"101,631.34",Capital,1001846,Mcphillips (Wellington) Ltd
Shropshire,00GG,Capital - Corporate Landlord Capital,Non Revenue - Non Revenue,15/07/2021,3252798,"117,008.96",Capital,1001857,Bow Construction Ltd
Shropshire,00GG,Place - Shire Catering,Supplies & Services - Miscellaneous Expenses,15/07/2021,3256511,626.42,Revenue,1001870,Schoolcomms
Shropshire,00GG,Children's Services - Compass & Assesment,Supplies & Services - Clothes Uniforms and Laundry,15/07/2021,3251945,26.00,Revenue,1002233,Havenbrook Imprest
Shropshire,00GG,Children's Services - Placements: Residential Placements,Premises-Related Expenditure - Cleaning and domestic supplies,15/07/2021,3251945,22.08,Revenue,1002233,Havenbrook Imprest
Shropshire,00GG,Children's Services - Placements: Residential Placements,Transport-Related Expenditure - Direct Transport Costs,15/07/2021,3251945,2.00,Revenue,1002233,Havenbrook Imprest
Shropshire,00GG,Children's Services - Placements: Residential Placements,Supplies & Services - Equipment Furniture and Materials,15/07/2021,3251945,402.13,Revenue,1002233,Havenbrook Imprest
Shropshire,00GG,Children's Services - Placements: Residential Placements,Supplies & Services - Catering,15/07/2021,3251945,318.61,Revenue,1002233,Havenbrook Imprest
Shropshire,00GG,Children's Services - Placements: Residential Placements,Third Party Payments - Other Establishments,15/07/2021,3251945,98.66,Revenue,1002233,Havenbrook Imprest
Shropshire,00GG,Place - Environment and Transport (Public Transport),Third Party Payments - Transport Operators,15/07/2021,3248873,"2,061.65",Revenue,1002337,Dial-A-Ride
Shropshire,00GG,Place - Highways (Operations),Supplies & Services - Grants and Subscriptions,15/07/2021,3257533,640.00,Revenue,1002462,Sheriffhales Parish Council
Shropshire,00GG,Place - Highways (Operations),Supplies & Services - Grants and Subscriptions,15/07/2021,3257474,"1,435.00",Revenue,1002491,Woore Parish Council
Shropshire,00GG,Children's Services - Special Educational Needs & Disability,Third Party Payments - Other Establishments,15/07/2021,3256735,"1,250.00",Revenue,1002575,Crossbar Coaching
Shropshire,00GG,Capital - Unallocated School Capital,Non Revenue - Non Revenue,15/07/2021,11308200,"2,680.00",Capital,1002914,Aib Solutions Ltd
Shropshire,00GG,Capital - Planning Policy Capital,Non Revenue - Non Revenue,15/07/2021,3256907,"40,000.00",Capital,1002921,The Wrekin Housing Group Ltd
Shropshire,00GG,Place - Shire Catering,Supplies & Services - Catering,15/07/2021,3253968,573.90,Revenue,1002955,Theos Food Service Ltd
Shropshire,00GG,Place - Environment and Transport (Public Transport),Third Party Payments - Transport Operators,15/07/2021,3248295,562.40,Revenue,1003491,Bridgnorth Community Transport Group
Shropshire,00GG,Place - Environment and Transport (Public Transport),Third Party Payments - Transport Operators,15/07/2021,3248310,705.90,Revenue,1003491,Bridgnorth Community Transport Group
Shropshire,00GG,Place - Environment and Transport (Public Transport),Third Party Payments - Transport Operators,15/07/2021,3248848,"5,270.30",Revenue,1003491,Bridgnorth Community Transport Group
Shropshire,00GG,Adult Services - Bereavement Services,Premises-Related Expenditure - Water Services,15/07/2021,11305600,36.26,Revenue,1003705,West Mercia Energy
Shropshire,00GG,Adult Services - Enable,Premises-Related Expenditure - Energy Costs,15/07/2021,11305600,"1,259.18",Revenue,1003705,West Mercia Energy
Shropshire,00GG,Adult Services - Internal Providers - Day Services,Premises-Related Expenditure - Energy Costs,15/07/2021,11305600,805.60,Revenue,1003705,West Mercia Energy
Shropshire,00GG,Adult Services - Regulatory Services,Premises-Related Expenditure - Energy Costs,15/07/2021,11305600,27.48,Revenue,1003705,West Mercia Energy
Shropshire,00GG,Children's Services - Early Help Family Hubs,Premises-Related Expenditure - Energy Costs,15/07/2021,11305600,290.56,Revenue,1003705,West Mercia Energy
Shropshire,00GG,Children's Services - Placements: Residential Placements,Premises-Related Expenditure - Energy Costs,15/07/2021,11305600,"4,434.30",Revenue,1003705,West Mercia Energy
Shropshire,00GG,Place - Corporate Landlord -  Economic Development,Premises-Related Expenditure - Energy Costs,15/07/2021,11305600,"7,943.90",Revenue,1003705,West Mercia Energy
Shropshire,00GG,Place - Corporate Landlord -  Economic Development,Premises-Related Expenditure - Water Services,15/07/2021,11305600,"14,869.02",Revenue,1003705,West Mercia Energy
Shropshire,00GG,Place - Corporate Landlord -  Environmental & Regulatory Service,Premises-Related Expenditure - Energy Costs,15/07/2021,11305600,647.04,Revenue,1003705,West Mercia Energy
Shropshire,00GG,Place - Corporate Landlord -  Environmental & Regulatory Service,Premises-Related Expenditure - Water Services,15/07/2021,11305600,"3,036.66",Revenue,1003705,West Mercia Energy
Shropshire,00GG,Place - Corporate Landlord -  Highways,Premises-Related Expenditure - Energy Costs,15/07/2021,11305600,"7,552.18",Revenue,1003705,West Mercia Energy
Shropshire,00GG,Place - Corporate Landlord -  Highways,Premises-Related Expenditure - Water Services,15/07/2021,11305600,"25,214.24",Revenue,1003705,West Mercia Energy
Shropshire,00GG,Place - Corporate Landlord - Admin Buildings,Premises-Related Expenditure - Energy Costs,15/07/2021,11305600,"66,188.84",Revenue,1003705,West Mercia Energy
Shropshire,00GG,Place - Corporate Landlord - Admin Buildings,Premises-Related Expenditure - Water Services,15/07/2021,11305600,"28,753.14",Revenue,1003705,West Mercia Energy
Shropshire,00GG,Place - Corporate Landlord - Adult Services,Premises-Related Expenditure - Energy Costs,15/07/2021,11305600,"5,533.82",Revenue,1003705,West Mercia Energy
Shropshire,00GG,Place - Corporate Landlord - Adult Services,Premises-Related Expenditure - Water Services,15/07/2021,11305600,"6,858.04",Revenue,1003705,West Mercia Energy
Shropshire,00GG,Place - Corporate Landlord - Car Parks,Premises-Related Expenditure - Energy Costs,15/07/2021,11305600,"10,506.44",Revenue,1003705,West Mercia Energy
Shropshire,00GG,Place - Corporate Landlord - Car Parks,Premises-Related Expenditure - Water Services,15/07/2021,11305600,"39,068.18",Revenue,1003705,West Mercia Energy
Shropshire,00GG,Place - Corporate Landlord - Children's Services,Premises-Related Expenditure - Energy Costs,15/07/2021,11305600,"3,038.06",Revenue,1003705,West Mercia Energy
Shropshire,00GG,Place - Corporate Landlord - Leisure,Premises-Related Expenditure - Energy Costs,15/07/2021,11305600,"9,221.84",Revenue,1003705,West Mercia Energy
Shropshire,00GG,Place - Corporate Landlord - Leisure,Premises-Related Expenditure - Water Services,15/07/2021,11305600,"1,578.56",Revenue,1003705,West Mercia Energy
Shropshire,00GG,Place - Corporate Landlord - Libraries,Premises-Related Expenditure - Energy Costs,15/07/2021,11305600,"20,210.22",Revenue,1003705,West Mercia Energy
Shropshire,00GG,Place - Corporate Landlord - Libraries,Premises-Related Expenditure - Water Services,15/07/2021,11305600,"5,228.34",Revenue,1003705,West Mercia Energy
Shropshire,00GG,Place - Corporate Landlord - Mardol House & Tannery,Premises-Related Expenditure - Water Services,15/07/2021,11305600,"29,299.74",Revenue,1003705,West Mercia Energy
Shropshire,00GG,Place - Corporate Landlord - Museums & Culture,Premises-Related Expenditure - Energy Costs,15/07/2021,11305600,"28,594.90",Revenue,1003705,West Mercia Energy
Shropshire,00GG,Place - Corporate Landlord - Museums & Culture,Premises-Related Expenditure - Water Services,15/07/2021,11305600,"-9,825.86",Revenue,1003705,West Mercia Energy
Shropshire,00GG,Place - Corporate Landlord - Smallholdings,Premises-Related Expenditure - Water Services,15/07/2021,11305600,"1,178.30",Revenue,1003705,West Mercia Energy
Shropshire,00GG,Place - Corporate Landlord - Traveller Sites,Premises-Related Expenditure - Energy Costs,15/07/2021,11305600,"9,195.90",Revenue,1003705,West Mercia Energy
Shropshire,00GG,Place - Corporate Landlord - Traveller Sites,Premises-Related Expenditure - Water Services,15/07/2021,11305600,"-21,562.18",Revenue,1003705,West Mercia Energy
Shropshire,00GG,Place - Corporate Landlord - Youth Centres & Community,Premises-Related Expenditure - Energy Costs,15/07/2021,11305600,"8,389.12",Revenue,1003705,West Mercia Energy
Shropshire,00GG,Place - Corporate Landlord - Youth Centres & Community,Premises-Related Expenditure - Water Services,15/07/2021,11305600,"16,448.76",Revenue,1003705,West Mercia Energy
Shropshire,00GG,Place - Environment and Transport (Parking),Premises-Related Expenditure - Energy Costs,15/07/2021,11305600,302.00,Revenue,1003705,West Mercia Energy
Shropshire,00GG,Place - Environment and Transport (Parking),Premises-Related Expenditure - Water Services,15/07/2021,11305600,0.00,Revenue,1003705,West Mercia Energy
Shropshire,00GG,Place - Highways (Operations),Supplies & Services - Services,15/07/2021,11305600,"110,828.30",Revenue,1003705,West Mercia Energy
Shropshire,00GG,Place - Leisure,Premises-Related Expenditure - Energy Costs,15/07/2021,11305600,"3,058.38",Revenue,1003705,West Mercia Energy
Shropshire,00GG,Place - Outdoor Partnerships,Premises-Related Expenditure - Energy Costs,15/07/2021,11305600,"1,257.32",Revenue,1003705,West Mercia Energy
Shropshire,00GG,Place - Outdoor Partnerships,Premises-Related Expenditure - Water Services,15/07/2021,11305600,"3,419.70",Revenue,1003705,West Mercia Energy
Shropshire,00GG,Place - Corporate Landlord - Traveller Sites,Premises-Related Expenditure - Repairs alterations and maintenance of buildings,15/07/2021,11309752,"1,176.26",Revenue,1004103,Walker Fire (Uk) Ltd
Shropshire,00GG,Place - Corporate Landlord - Libraries,Premises-Related Expenditure - Repairs alterations and maintenance of buildings,15/07/2021,11309738,940.00,Revenue,1004414,Aspect Fire Solutions Ltd
Shropshire,00GG,Children's Services - Education Psychology Service,Supplies & Services - Services,15/07/2021,3256762,"1,500.00",Revenue,1004634,Seven Resourcing Ltd
Shropshire,00GG,Children's Services - Special Educational Needs & Disability,Supplies & Services - Services,15/07/2021,3257651,"1,658.22",Revenue,1004644,Amica Coleman
Shropshire,00GG,Children's Services - Home to School Transport,Transport-Related Expenditure - Contract Hire and Operating Leases,15/07/2021,3253055,"1,304.00",Revenue,1004760,Alexanders Of Wem Taxis
Shropshire,00GG,Adult Services - Internal Providers - Nursing Services,Employees - Direct Employee Expenses,15/07/2021,3256784,"4,324.96",Revenue,1004799,Newcross Healthcare Solutions
Shropshire,00GG,Adult Services - Housing Options,Premises-Related Expenditure - Repairs alterations and maintenance of buildings,15/07/2021,11305562,68.74,Revenue,1004827,Graham Asset Management Ltd
Shropshire,00GG,Children's Services - Early Help Family Hubs,Premises-Related Expenditure - Repairs alterations and maintenance of buildings,15/07/2021,11305562,73.88,Revenue,1004827,Graham Asset Management Ltd
Shropshire,00GG,Children's Services - Non-Delegated Primary DSG,Premises-Related Expenditure - Repairs alterations and maintenance of buildings,15/07/2021,11305562,"5,299.66",Revenue,1004827,Graham Asset Management Ltd
Shropshire,00GG,Children's Services - Non-Delegated Secondary DSG,Premises-Related Expenditure - Repairs alterations and maintenance of buildings,15/07/2021,11305562,426.84,Revenue,1004827,Graham Asset Management Ltd
Shropshire,00GG,Children's Services - Shropshire Music Service,Premises-Related Expenditure - Repairs alterations and maintenance of buildings,15/07/2021,11305562,28.90,Revenue,1004827,Graham Asset Management Ltd
Shropshire,00GG,Place - Corporate Landlord -  Economic Development,Premises-Related Expenditure - Repairs alterations and maintenance of buildings,15/07/2021,11305562,567.42,Revenue,1004827,Graham Asset Management Ltd
Shropshire,00GG,Place - Corporate Landlord -  Environmental & Regulatory Service,Premises-Related Expenditure - Repairs alterations and maintenance of buildings,15/07/2021,11305562,40.72,Revenue,1004827,Graham Asset Management Ltd
Shropshire,00GG,Place - Corporate Landlord -  Highways,Premises-Related Expenditure - Repairs alterations and maintenance of buildings,15/07/2021,11305562,160.24,Revenue,1004827,Graham Asset Management Ltd
Shropshire,00GG,Place - Corporate Landlord - Admin Buildings,Premises-Related Expenditure - Repairs alterations and maintenance of buildings,15/07/2021,11305562,764.84,Revenue,1004827,Graham Asset Management Ltd
Shropshire,00GG,Place - Corporate Landlord - Adult Services,Premises-Related Expenditure - Repairs alterations and maintenance of buildings,15/07/2021,11305562,637.44,Revenue,1004827,Graham Asset Management Ltd
Shropshire,00GG,Place - Corporate Landlord - Children's Services,Premises-Related Expenditure - Repairs alterations and maintenance of buildings,15/07/2021,11305562,204.02,Revenue,1004827,Graham Asset Management Ltd
Shropshire,00GG,Place - Corporate Landlord - Leisure,Premises-Related Expenditure - Repairs alterations and maintenance of buildings,15/07/2021,11305562,316.88,Revenue,1004827,Graham Asset Management Ltd
Shropshire,00GG,Place - Corporate Landlord - Libraries,Premises-Related Expenditure - Repairs alterations and maintenance of buildings,15/07/2021,11305562,486.72,Revenue,1004827,Graham Asset Management Ltd
Shropshire,00GG,Place - Corporate Landlord - Mardol House & Tannery,Premises-Related Expenditure - Repairs alterations and maintenance of buildings,15/07/2021,11305562,669.98,Revenue,1004827,Graham Asset Management Ltd
Shropshire,00GG,Place - Corporate Landlord - Museums & Culture,Premises-Related Expenditure - Repairs alterations and maintenance of buildings,15/07/2021,11305562,553.70,Revenue,1004827,Graham Asset Management Ltd
Shropshire,00GG,Place - Corporate Landlord - Traveller Sites,Premises-Related Expenditure - Repairs alterations and maintenance of buildings,15/07/2021,11305562,766.16,Revenue,1004827,Graham Asset Management Ltd
Shropshire,00GG,Place - Corporate Landlord - Youth Centres & Community,Premises-Related Expenditure - Repairs alterations and maintenance of buildings,15/07/2021,11305562,281.64,Revenue,1004827,Graham Asset Management Ltd
Shropshire,00GG,Place - Culture & Heritage Manager,Premises-Related Expenditure - Repairs alterations and maintenance of buildings,15/07/2021,11305562,77.50,Revenue,1004827,Graham Asset Management Ltd
Shropshire,00GG,Place - Environment and Transport (Parking),Premises-Related Expenditure - Repairs alterations and maintenance of buildings,15/07/2021,11305562,45.96,Revenue,1004827,Graham Asset Management Ltd
Shropshire,00GG,Place - Highways (Operations),Premises-Related Expenditure - Repairs alterations and maintenance of buildings,15/07/2021,11305562,43.34,Revenue,1004827,Graham Asset Management Ltd
Shropshire,00GG,Place - Outdoor Partnerships,Premises-Related Expenditure - Repairs alterations and maintenance of buildings,15/07/2021,11305562,246.32,Revenue,1004827,Graham Asset Management Ltd
Shropshire,00GG,Place - Property & Development,Premises-Related Expenditure - Repairs alterations and maintenance of buildings,15/07/2021,11305562,"5,242.72",Revenue,1004827,Graham Asset Management Ltd
Shropshire,00GG,Place - Property Services Group,Premises-Related Expenditure - Repairs alterations and maintenance of buildings,15/07/2021,11305562,"1,352.56",Revenue,1004827,Graham Asset Management Ltd
Shropshire,00GG,Children's Services - Special Educational Needs & Disability,Supplies & Services - Services,15/07/2021,3256733,595.00,Revenue,1004881,Prime Resolution Limited
Shropshire,00GG,Place - Corporate Landlord - Adult Services,Supplies & Services - Services,15/07/2021,3256062,"1,006.00",Revenue,1005283,Gowling Wlg (Uk) Llp
Shropshire,00GG,Workforce and Transformation - Communications & Engagement,Supplies & Services - Services,15/07/2021,3257643,600.00,Revenue,1005852,Wiggly Worm Media Ltd
Shropshire,00GG,Adult Services - Regulatory Services,Supplies & Services - Grants and Subscriptions,15/07/2021,3254921,975.00,Revenue,1005872,Safe Apps Limited
Shropshire,00GG,Children's Services - Placements: Placement Staffing,Employees - Direct Employee Expenses,15/07/2021,3248904,"2,518.96",Revenue,1005988,Nonstop Recruitment Ltd
Shropshire,00GG,Children's Services - Disabled Children's Team,Employees - Direct Employee Expenses,15/07/2021,3250325,"2,730.00",Revenue,1005988,Nonstop Recruitment Ltd
Shropshire,00GG,Children's Services - Looked After Children (LAC) Service,Employees - Direct Employee Expenses,15/07/2021,3255292,"2,693.60",Revenue,1005988,Nonstop Recruitment Ltd
Shropshire,00GG,Children's Services - Placements: Placement Staffing,Employees - Direct Employee Expenses,15/07/2021,3256810,"2,518.96",Revenue,1005988,Nonstop Recruitment Ltd
Shropshire,00GG,Place - Shrewsbury Shopping Centres (Commercial),Supplies & Services - Services,15/07/2021,3257147,465.00,Revenue,1006058,Personal redaction
Shropshire,00GG,Capital - Highways Capital,Non Revenue - Non Revenue,15/07/2021,3256384,"2,052.00",Capital,1006327,Albrighton Estate Llp
Shropshire,00GG,Legal and Democratic Services - Legal Services � Child Care,Employees - Direct Employee Expenses,15/07/2021,3253180,"1,112.21",Revenue,1006330,Sellick Partnership Limited
Shropshire,00GG,Children's Services - Early Years,Third Party Payments - Other Establishments,15/07/2021,3257001,"1,170.00",Revenue,1008315,Whittington Under Fives Playgroups
Shropshire,00GG,Children's Services - Early Years,Third Party Payments - Other Establishments,15/07/2021,3255630,909.00,Revenue,1008342,Holy Trinity Playgroup
Shropshire,00GG,Children's Services - Early Years,Third Party Payments - Other Establishments,15/07/2021,3256699,785.85,Revenue,1008347,Crowgate Child Centre
Shropshire,00GG,Children's Services - Early Years,Third Party Payments - Other Establishments,15/07/2021,3256973,"3,900.00",Revenue,1008409,Oswestry School Prepcare Nursery
Shropshire,00GG,Children's Services - Early Years,Third Party Payments - Other Establishments,15/07/2021,3257360,"1,320.00",Revenue,1008448,The Mulberry Bush Day Nursery
Shropshire,00GG,Children's Services - Early Years,Third Party Payments - Other Establishments,15/07/2021,3253970,"2,570.25",Revenue,1008491,Bumblebees Bronington
Shropshire,00GG,Capital - HRA Dwellings Capital,Non Revenue - Non Revenue,15/07/2021,11309723,775.80,Capital,1008557,Advanced Wastewater & Drainage Limited
Shropshire,00GG,Capital - HRA Dwellings Capital,Non Revenue - Non Revenue,15/07/2021,11309726,"1,034.40",Capital,1008557,Advanced Wastewater & Drainage Limited
Shropshire,00GG,Capital - HRA Dwellings Capital,Non Revenue - Non Revenue,15/07/2021,11309727,"1,034.40",Capital,1008557,Advanced Wastewater & Drainage Limited
Shropshire,00GG,Place - Property Services Group,Premises-Related Expenditure - Repairs alterations and maintenance of buildings,15/07/2021,11309707,495.00,Revenue,1008574,Taylors Mechanical Ltd
Shropshire,00GG,Children's Services - Non-Delegated Primary DSG,Premises-Related Expenditure - Repairs alterations and maintenance of buildings,15/07/2021,3252799,"6,475.35",Revenue,1008580,Eric Neville Catering Supplies Ltd
Shropshire,00GG,Legal and Democratic Services - Legal Services � Child Care,Supplies & Services - Services,15/07/2021,3253185,950.00,Revenue,1009781,Helen Arthur
Shropshire,00GG,Place - Corporate Landlord - Museums & Culture,Premises-Related Expenditure - Repairs alterations and maintenance of buildings,15/07/2021,11308564,907.50,Revenue,1010409,Concept Elevators (Uk) Limited
Shropshire,00GG,Children's Services - Education Psychology Service,Income - Customer and Client Receipts,15/07/2021,3251785,"1,260.00",Revenue,1010588,Baet T/A St Georges Clun
Shropshire,00GG,Children's Services - Special Educational Needs & Disability,Transfer Payments - Adult Social Services Clients,15/07/2021,3251515,580.00,Revenue,1011622,Kerri Lansdale
Shropshire,00GG,Children's Services - Disabled Children's Team,Transport-Related Expenditure - Contract Hire and Operating Leases,15/07/2021,3257199,934.15,Revenue,1012064,IRFAN MAQSOOD
Shropshire,00GG,Place - Environment and Transport (Public Transport),Third Party Payments - Transport Operators,15/07/2021,3248843,"8,263.95",Revenue,1012185,Oswestry Community Action (Qube)
Shropshire,00GG,Adult Services - Housing Options,Premises-Related Expenditure - Repairs alterations and maintenance of buildings,15/07/2021,11306838,575.00,Revenue,1012354,James Troop & Co Ltd
Shropshire,00GG,Adult Services - Registrars and Coroners,Supplies & Services - Services,15/07/2021,3249807,682.00,Revenue,1012418,University Hospitals of Leicester NHS Trust
Shropshire,00GG,Children's Services - Education Psychology Service,Supplies & Services - Services,15/07/2021,3250114,"7,500.00",Revenue,1012644,Commercial redaction
Shropshire,00GG,Children's Services - Home to School Transport,Transport-Related Expenditure - Contract Hire and Operating Leases,15/07/2021,3256807,990.00,Revenue,1012677,Mudasar's Taxis
Shropshire,00GG,Children's Services - Children�s Case Management,Employees - Direct Employee Expenses,15/07/2021,3249098,"1,620.23",Revenue,1013053,Frontline Staffing Ltd
Shropshire,00GG,Capital - Highways Capital,Non Revenue - Non Revenue,15/07/2021,3256624,761.10,Capital,1013684,Strutt & Parker Llp
Shropshire,00GG,Legal and Democratic Services - Legal Services,Supplies & Services - Services,15/07/2021,3257670,700.00,Revenue,1015524,Avril Rushe
Shropshire,00GG,Place - Property Services Group,Premises-Related Expenditure - Repairs alterations and maintenance of buildings,16/07/2021,3248999,"1,562.00",Revenue,1000128,R G Edwards & Co Ltd
Shropshire,00GG,Place - Highways (Streetworks),Supplies & Services - Services,16/07/2021,3249823,776.16,Revenue,1000228,Midland News Association Ltd
Shropshire,00GG,Place - Highways (Streetworks),Supplies & Services - Services,16/07/2021,3249868,"1,108.80",Revenue,1000228,Midland News Association Ltd
Shropshire,00GG,Children's Services - Early Years,Supplies & Services - Services,16/07/2021,3256996,484.46,Revenue,1000237,N Power
Shropshire,00GG,Place - Museums & Archives,Premises-Related Expenditure - Repairs alterations and maintenance of buildings,16/07/2021,3251711,758.23,Revenue,1000322,R M W Electrical Services Ltd
Shropshire,00GG,Place - Property Services Group,Premises-Related Expenditure - Repairs alterations and maintenance of buildings,16/07/2021,11307023,561.79,Revenue,1000322,R M W Electrical Services Ltd
Shropshire,00GG,Place - Corporate Landlord - Libraries,Premises-Related Expenditure - Repairs alterations and maintenance of buildings,16/07/2021,11307281,485.70,Revenue,1000322,R M W Electrical Services Ltd
Shropshire,00GG,Place - Property Services Group,Premises-Related Expenditure - Repairs alterations and maintenance of buildings,16/07/2021,11308575,456.13,Revenue,1000322,R M W Electrical Services Ltd
Shropshire,00GG,Place - Corporate Landlord - Admin Buildings,Premises-Related Expenditure - Repairs alterations and maintenance of buildings,16/07/2021,11308576,621.16,Revenue,1000322,R M W Electrical Services Ltd
Shropshire,00GG,Children's Services - Looked After Children (LAC) -  Leaving Care Team (18 +),Supplies & Services - Services,16/07/2021,3253516,"3,661.52",Revenue,1000401,Telford & Wrekin Council
Shropshire,00GG,Adult Services - Trading Standards & Licensing,Supplies & Services - Grants and Subscriptions,16/07/2021,3252296,"7,272.00",Revenue,1000403,Warwickshire County Council
Shropshire,00GG,Adult Services - Housing Options,Supplies & Services - Services,16/07/2021,3251046,426.00,Revenue,1000498,Glyn Upton Removals
Shropshire,00GG,Adult Services - Registrars and Coroners,Supplies & Services - Services,16/07/2021,3252311,"8,262.60",Revenue,1000534,Royal Shrewsbury Hospital Nhs Trust
Shropshire,00GG,Children's Services - Special Educational Needs & Disability,Supplies & Services - Equipment Furniture and Materials,16/07/2021,3249388,"2,742.00",Revenue,1000642,Smirthwaite Ltd
Shropshire,00GG,Adult Services - Social Care Community Purchasing,Third Party Payments - Private Contractors,16/07/2021,11309302,"6,286.33",Revenue,1000701,The Strettons Mayfair Trust
Shropshire,00GG,Adult Services - Social Care Community Purchasing,Third Party Payments - Private Contractors,16/07/2021,11309308,504.00,Revenue,1000701,The Strettons Mayfair Trust
Shropshire,00GG,Workforce and Transformation - ICT Services,Supplies & Services - Communications and Computing,16/07/2021,3249394,"8,760.00",Revenue,1000753,Stone Computers Ltd
Shropshire,00GG,Workforce and Transformation - ICT Services,Supplies & Services - Communications and Computing,16/07/2021,3249446,"2,628.00",Revenue,1000753,Stone Computers Ltd
Shropshire,00GG,Place - Shire Catering,Supplies & Services - Catering,16/07/2021,3257056,"1,132.20",Revenue,1000769,The Little Food Company Limited
Shropshire,00GG,Children's Services - Children�s Case Management,Supplies & Services - Services,16/07/2021,3250585,"1,000.00",Revenue,1000924,Wace Morgan Solicitors
Shropshire,00GG,Place - Theatre Services,Supplies & Services - Equipment Furniture and Materials,16/07/2021,3252105,"1,050.00",Revenue,1001637,St John Ambulance Shropshire
Shropshire,00GG,Capital - Primary School Capital,Non Revenue - Non Revenue,16/07/2021,3256347,"16,640.00",Capital,1001651,Ccs Media
Shropshire,00GG,Legal and Democratic Services - Legal Services � Child Care,Supplies & Services - Services,16/07/2021,3253172,950.00,Revenue,1001738,Joanna Chadwick
Shropshire,00GG,Place - Environment and Transport (Parking),Supplies & Services - Equipment Furniture and Materials,16/07/2021,3251795,"10,368.66",Revenue,1001797,Flowbird
Shropshire,00GG,Adult Services - Care Management - Social Work Teams,Supplies & Services - Services,16/07/2021,3251447,980.00,Revenue,1002702,Sajkum Ltd t/a Sajeev Kumar Kshemendran
Shropshire,00GG,Adult Services - Social Care Hospital Interface Purchasing,Third Party Payments - Private Contractors,16/07/2021,11309305,"2,329.88",Revenue,1002725,Bluebird Care (Shropshire Care Ltd)
Shropshire,00GG,Adult Services - Social Care Hospital Interface Purchasing,Third Party Payments - Private Contractors,16/07/2021,11309306,"-1,164.94",Revenue,1002725,Bluebird Care (Shropshire Care Ltd)
Shropshire,00GG,Place - Environment and Transport (Public Transport),Transport-Related Expenditure - Contract Hire and Operating Leases,16/07/2021,3250978,"1,976.54",Revenue,1002991,Lex Autolease Ltd
Shropshire,00GG,Children's Services - Looked After Children Education,Third Party Payments - Other Establishments,16/07/2021,3251009,960.00,Revenue,1003225,Lower Bush Farm
Shropshire,00GG,Place - Highways (Operations),Third Party Payments - Private Contractors,16/07/2021,3254850,550.00,Revenue,1003236,A Clayton Contracting Ltd
Shropshire,00GG,Place - Highways (Operations),Third Party Payments - Private Contractors,16/07/2021,3254855,957.00,Revenue,1003236,A Clayton Contracting Ltd
Shropshire,00GG,Place - Highways (Operations),Third Party Payments - Private Contractors,16/07/2021,3254860,928.00,Revenue,1003236,A Clayton Contracting Ltd
Shropshire,00GG,Place - Museums & Archives,Supplies & Services - Equipment Furniture and Materials,16/07/2021,3253167,503.80,Revenue,1003696,Farrah'S Of Harrogate
Shropshire,00GG,Children's Services - Placements: Foster Care,Third Party Payments - Other Establishments,16/07/2021,11309451,"3,498.66",Revenue,1003706,The Children'S Family Trust
Shropshire,00GG,Children's Services - Placements: Foster Care,Third Party Payments - Other Establishments,16/07/2021,11309453,"3,255.00",Revenue,1003706,The Children'S Family Trust
Shropshire,00GG,Children's Services - Placements: Foster Care,Third Party Payments - Other Establishments,16/07/2021,11309472,"3,428.60",Revenue,1003706,The Children'S Family Trust
Shropshire,00GG,Children's Services - Children�s Case Management,Third Party Payments - Private Contractors,16/07/2021,3250139,786.14,Revenue,1003719,Newstart Networks Cic
Shropshire,00GG,Children's Services - Placements: Adoption Service,Supplies & Services - Services,16/07/2021,11309479,625.00,Revenue,1004380,Hannah Bridge
Shropshire,00GG,Adult Services - Internal Providers - Nursing Services,Employees - Direct Employee Expenses,16/07/2021,3251398,"1,475.68",Revenue,1004799,Newcross Healthcare Solutions
Shropshire,00GG,Place - Leisure,Premises-Related Expenditure - Repairs alterations and maintenance of buildings,16/07/2021,3252719,479.17,Revenue,1004837,The 3-18 Education Trust T/A William Brookes School
Shropshire,00GG,Place - Leisure,Premises-Related Expenditure - Energy Costs,16/07/2021,3252719,"4,744.44",Revenue,1004837,The 3-18 Education Trust T/A William Brookes School
Shropshire,00GG,Place - Leisure,Premises-Related Expenditure - Rates,16/07/2021,3252719,847.55,Revenue,1004837,The 3-18 Education Trust T/A William Brookes School
Shropshire,00GG,Place - Leisure,Premises-Related Expenditure - Water Services,16/07/2021,3252719,348.54,Revenue,1004837,The 3-18 Education Trust T/A William Brookes School
Shropshire,00GG,Place - Leisure,Premises-Related Expenditure - Cleaning and domestic supplies,16/07/2021,3252719,"1,000.00",Revenue,1004837,The 3-18 Education Trust T/A William Brookes School
Shropshire,00GG,Adult Services - Sexual Health,Supplies & Services - Communications and Computing,16/07/2021,3257235,"8,500.00",Revenue,1004910,South Staffs Lpc
Shropshire,00GG,Place - Shire Catering,Supplies & Services - Equipment Furniture and Materials,16/07/2021,3254273,851.36,Revenue,1005013,Nobisco Limited
Shropshire,00GG,Adult Services - Social Care Community Purchasing,Third Party Payments - Private Contractors,16/07/2021,11309298,"1,600.00",Revenue,1005126,E R Hindmarch
Shropshire,00GG,Children's Services - Children�s Case Management,Supplies & Services - Services,16/07/2021,3251518,565.00,Revenue,1005189,Lextox
Shropshire,00GG,Children's Services - Compass & Assesment,Supplies & Services - Services,16/07/2021,3254536,"1,115.00",Revenue,1005189,Lextox
Shropshire,00GG,Children's Services - Children�s Case Management,Supplies & Services - Services,16/07/2021,3256979,"1,175.00",Revenue,1005189,Lextox
Shropshire,00GG,Place - Planning Services,Supplies & Services - Services,16/07/2021,3251660,"1,612.50",Revenue,1005215,The Oyster Partnership Ltd
Shropshire,00GG,Legal and Democratic Services - Legal Services � Child Care,Employees - Direct Employee Expenses,16/07/2021,3253135,"2,461.20",Revenue,1005215,The Oyster Partnership Ltd
Shropshire,00GG,Place - Highways (Operations),Supplies & Services - Communications and Computing,16/07/2021,3249763,633.54,Revenue,1005689,Lucy Zodion Ltd
Shropshire,00GG,Workforce and Transformation - ICT Services,Supplies & Services - Communications and Computing,16/07/2021,3250476,"21,296.78",Revenue,1005963,Maintel Europe Limited
Shropshire,00GG,Legal and Democratic Services - Legal Services � Child Care,Supplies & Services - Services,16/07/2021,3253093,650.00,Revenue,1006104,Richard Alomo
Shropshire,00GG,Legal and Democratic Services - Legal Services � Child Care,Supplies & Services - Services,16/07/2021,3253099,700.00,Revenue,1006104,Richard Alomo
Shropshire,00GG,Children's Services - Looked After Children (LAC) Service,Supplies & Services - Services,16/07/2021,3253368,510.15,Revenue,1006309,Carter Brown - The Expert Service Ltd
Shropshire,00GG,Children's Services - Quality & Assurance: Learning & Development,Supplies & Services - Services,16/07/2021,3256768,"1,011.00",Revenue,1006309,Carter Brown - The Expert Service Ltd
Shropshire,00GG,Children's Services - Looked After Children (LAC) Service,Employees - Direct Employee Expenses,16/07/2021,3255294,834.02,Revenue,1006330,Sellick Partnership Limited
Shropshire,00GG,Children's Services - Early Years,Third Party Payments - Other Establishments,16/07/2021,3257263,"1,800.00",Revenue,1008363,Spring RAF Shawbury
Shropshire,00GG,Place - Museums & Archives,Premises-Related Expenditure - Repairs alterations and maintenance of buildings,16/07/2021,3255920,480.00,Revenue,1008604,Pp Electrical Services (Shropshire) Ltd
Shropshire,00GG,Children's Services - Non-Delegated Primary DSG,Premises-Related Expenditure - Repairs alterations and maintenance of buildings,16/07/2021,3255927,420.00,Revenue,1008611,Wrekin Drain Services Ltd
Shropshire,00GG,Adult Services - Public Health General Management,Supplies & Services - Grants and Subscriptions,16/07/2021,3249126,"7,000.00",Revenue,1009761,Hands Together Ludlow
Shropshire,00GG,Legal and Democratic Services - Legal Services � Child Care,Supplies & Services - Services,16/07/2021,3253083,700.00,Revenue,1010036,Nicola Mcintosh
Shropshire,00GG,Children's Services - Special Educational Needs & Disability,Third Party Payments - Other Establishments,16/07/2021,3250290,"4,176.00",Revenue,1010729,Empower Trust
Shropshire,00GG,Children's Services - Placements: Foster Care,Supplies & Services - Services,16/07/2021,11309471,"1,750.00",Revenue,1010811,Transitional Plus Care CIC
Shropshire,00GG,Legal and Democratic Services - Legal Services � Child Care,Supplies & Services - Services,16/07/2021,3256059,"2,000.00",Revenue,1011007,Kirsty Gallacher
Shropshire,00GG,Workforce and Transformation - ICT Services,Supplies & Services - Communications and Computing,16/07/2021,3249949,"21,824.00",Revenue,1011996,Sumillion Ltd
Shropshire,00GG,Children's Services - Looked After Children (LAC) Service,Supplies & Services - Services,16/07/2021,3253399,"2,067.60",Revenue,1012033,MEWA LLP
Shropshire,00GG,Legal and Democratic Services - Legal Services � Child Care,Supplies & Services - Services,16/07/2021,3248912,"1,950.00",Revenue,1012986,Sarah Morgan
Shropshire,00GG,Adult Services - Projects,Supplies & Services - Services,16/07/2021,3251902,"5,000.00",Revenue,1013067,Steve Corton
Shropshire,00GG,Adult Services - Projects,Supplies & Services - Services,16/07/2021,3252033,"6,200.00",Revenue,1013067,Steve Corton
Shropshire,00GG,Children's Services - Learning & Skills Business Support,Supplies & Services - Communications and Computing,16/07/2021,3249786,"2,047.50",Revenue,1013093,Servelec Education Limited
Shropshire,00GG,Children's Services - Children�s Social Care and Safeguarding Management,Employees - Direct Employee Expenses,16/07/2021,3249220,"2,587.50",Revenue,1013211,Eden Brown Ltd
Shropshire,00GG,Place - Outdoor Partnerships,Premises-Related Expenditure - Cleaning and domestic supplies,16/07/2021,3248847,494.85,Revenue,1013584,Alliance Uk
Shropshire,00GG,Place - Outdoor Partnerships,Supplies & Services - Equipment Furniture and Materials,16/07/2021,3248847,17.70,Revenue,1013584,Alliance Uk
Shropshire,00GG,Legal and Democratic Services - Legal Services � Child Care,Supplies & Services - Services,16/07/2021,3253108,750.00,Revenue,1013984,Miss Louise Higgins
Shropshire,00GG,Legal and Democratic Services - Elections,Premises-Related Expenditure - Rents,16/07/2021,3255950,510.00,Revenue,1014058,Shropshire Wildlife Trading Co Ltd
Shropshire,00GG,Adult Services - Internal Providers - Day Services,Employees - Indirect Employee Expenses,16/07/2021,3252525,"1,000.00",Revenue,1014165,G J Stafford
Shropshire,00GG,Capital - Unallocated School Capital,Non Revenue - Non Revenue,16/07/2021,11306869,"6,420.00",Capital,1015596,Metrics Property Consultants Limited
Shropshire,00GG,Capital - Corporate Landlord Capital,Non Revenue - Non Revenue,20/07/2021,3249189,"10,351.68",Capital,1000128,R G Edwards & Co Ltd
Shropshire,00GG,Capital - Corporate Landlord Capital,Non Revenue - Non Revenue,20/07/2021,3249031,"17,994.25",Capital,1000173,Ian Gibbons Building Maintenance Special
Shropshire,00GG,Place - Environment and Transport (Public Transport),Third Party Payments - Transport Operators,20/07/2021,3258021,"7,200.00",Revenue,1000218,Minsterley Motors Services Ltd
Shropshire,00GG,Capital - Corporate Landlord Capital,Non Revenue - Non Revenue,20/07/2021,3255824,"33,371.97",Capital,1000219,Welch & Phillips Ltd
Shropshire,00GG,Adult Services - Social Care Community Purchasing,Third Party Payments - Private Contractors,20/07/2021,11310008,"4,237.92",Revenue,1000472,Headway Shropshire
Shropshire,00GG,Adult Services - Social Care Community Purchasing,Third Party Payments - Private Contractors,20/07/2021,11310010,"50,359.60",Revenue,1000472,Headway Shropshire
Shropshire,00GG,Adult Services - Social Care Community Purchasing,Third Party Payments - Private Contractors,20/07/2021,11310011,"12,482.02",Revenue,1000472,Headway Shropshire
Shropshire,00GG,Adult Services - Social Care Mental Health Purchasing,Third Party Payments - Private Contractors,20/07/2021,11310012,"41,200.60",Revenue,1000472,Headway Shropshire
Shropshire,00GG,Adult Services - Social Care Community Purchasing,Third Party Payments - Private Contractors,20/07/2021,11310013,"1,726.56",Revenue,1000472,Headway Shropshire
Shropshire,00GG,Place - Corporate Landlord - Adult Services,Premises-Related Expenditure - Rents,20/07/2021,3257399,"27,626.88",Revenue,1000569,Bournville Village Trust
Shropshire,00GG,Place - Corporate Landlord - Admin Buildings,Premises-Related Expenditure - Cleaning and domestic supplies,20/07/2021,3258055,"1,016.00",Revenue,1000763,Phs Group Plc
Shropshire,00GG,Place - Shire Catering,Supplies & Services - Catering,20/07/2021,3254695,913.04,Revenue,1000926,Options Management
Shropshire,00GG,Adult Services - Social Care Hospital Interface Purchasing,Third Party Payments - Private Contractors,20/07/2021,11310003,"1,600.00",Revenue,1000975,Allcare Shropshire Ltd
Shropshire,00GG,Adult Services - Social Care Hospital Interface Purchasing,Third Party Payments - Private Contractors,20/07/2021,11308468,"1,167.39",Revenue,1001105,Prestige Nursing Ltd
Shropshire,00GG,Adult Services - Social Care Hospital Interface Purchasing,Third Party Payments - Private Contractors,20/07/2021,11308469,892.71,Revenue,1001105,Prestige Nursing Ltd
Shropshire,00GG,Adult Services - Social Care Hospital Interface Purchasing,Third Party Payments - Private Contractors,20/07/2021,11308470,"2,746.80",Revenue,1001105,Prestige Nursing Ltd
Shropshire,00GG,Adult Services - Social Care Community Purchasing,Third Party Payments - Private Contractors,20/07/2021,11310001,"2,317.16",Revenue,1001360,Adelphi Care Services Limited
Shropshire,00GG,"Finance, Governance & Assurance - Commissioning Development & Procurement",Supplies & Services - PFI and PPP Schemes,20/07/2021,3257884,"296,867.39",Revenue,1001513,Integrated Care Solutions (Shropshire)Lt
Shropshire,00GG,Adult Services - Social Care Community Purchasing,Third Party Payments - Private Contractors,20/07/2021,11309993,"1,134.00",Revenue,1002214,Condover College Ltd
Shropshire,00GG,Adult Services - Social Care Community Purchasing,Third Party Payments - Private Contractors,20/07/2021,11309994,"3,599.10",Revenue,1002214,Condover College Ltd
Shropshire,00GG,Adult Services - Social Care Community Purchasing,Third Party Payments - Private Contractors,20/07/2021,11309995,"2,790.00",Revenue,1002214,Condover College Ltd
Shropshire,00GG,Adult Services - Social Care Hospital Interface Purchasing,Third Party Payments - Private Contractors,20/07/2021,11309992,984.00,Revenue,1002725,Bluebird Care (Shropshire Care Ltd)
Shropshire,00GG,Place - Highways (Operations),Third Party Payments - Private Contractors,20/07/2021,3254048,"1,160.00",Revenue,1003236,A Clayton Contracting Ltd
Shropshire,00GG,Place - Highways (Operations),Third Party Payments - Private Contractors,20/07/2021,3257103,"2,400.00",Revenue,1003236,A Clayton Contracting Ltd
Shropshire,00GG,Children's Services - Home to School Transport,Transport-Related Expenditure - Contract Hire and Operating Leases,20/07/2021,3252360,"2,790.00",Revenue,1003303,M & S Coaches Of Herefordshire Limited
Shropshire,00GG,Workforce and Transformation - Print & Post Services,Supplies & Services - Communications and Computing,20/07/2021,3252235,"6,605.01",Revenue,1003729,Whistl North Limited
Shropshire,00GG,Children's Services - Special Educational Needs & Disability,Supplies & Services - Services,20/07/2021,3257870,"2,493.22",Revenue,1004644,Amica Coleman
Shropshire,00GG,Children's Services - Home to School Transport,Transport-Related Expenditure - Contract Hire and Operating Leases,20/07/2021,3256281,"1,216.00",Revenue,1004966,Terrance Davies T/A Mr T'S Taxis
Shropshire,00GG,Children's Services - Special Educational Needs & Disability,Supplies & Services - Services,20/07/2021,3251519,"3,095.20",Revenue,1005052,Hampton'S Resourcing
Shropshire,00GG,Adult Services - Social Care Hospital Interface Purchasing,Third Party Payments - Private Contractors,20/07/2021,11309996,"1,171.20",Revenue,1005218,La Petite Concierge
Shropshire,00GG,Place - Environment and Transport (Public Transport),Transport-Related Expenditure - Direct Transport Costs,20/07/2021,3251294,"6,292.25",Revenue,1006053,Uk Fuels Limited
Shropshire,00GG,Place - Corporate Landlord - Youth Centres & Community,Premises-Related Expenditure - Water Services,20/07/2021,3257599,951.60,Revenue,1006145,Water Plus Ltd
Shropshire,00GG,Children's Services - Looked After Children (LAC) Service,Transport-Related Expenditure - Public Transport,20/07/2021,3257916,507.50,Revenue,1006314,Veezu Midlands Limited t/a Go Carz
Shropshire,00GG,Children's Services - Special Educational Needs & Disability,Third Party Payments - Other Establishments,20/07/2021,3257917,945.00,Revenue,1008392,Farm Friends Day Nursery
Shropshire,00GG,Children's Services - Special Educational Needs & Disability,Third Party Payments - Other Establishments,20/07/2021,3257926,720.00,Revenue,1008399,Daisy Chain At Mytton Oak
Shropshire,00GG,Children's Services - Special Educational Needs & Disability,Third Party Payments - Other Establishments,20/07/2021,3257887,504.00,Revenue,1008459,Shrewsbury Prepatoria Nursery
Shropshire,00GG,Children's Services - Special Educational Needs & Disability,Third Party Payments - Other Establishments,20/07/2021,3257931,"1,035.00",Revenue,1008479,Childrensworld Cressage
Shropshire,00GG,Place - Planning Policy,Supplies & Services - Services,20/07/2021,3254828,"3,500.00",Revenue,1011330,Dbc Studio
Shropshire,00GG,Place - Shropshire Hills AONB,Transport-Related Expenditure - Public Transport,20/07/2021,3258003,488.70,Revenue,1012138,Severn Rivers Trust
Shropshire,00GG,Place - Shropshire Hills AONB,Supplies & Services - Services,20/07/2021,3258003,"4,800.00",Revenue,1012138,Severn Rivers Trust
Shropshire,00GG,Place - Planning Services,Supplies & Services - Services,20/07/2021,3252092,"1,529.50",Revenue,1013010,Michael Davies - MPD Built Environment Consultants Limited
Shropshire,00GG,Adult Services - Social Care Mental Health Purchasing,Transfer Payments - Adult Social Services Clients,20/07/2021,11308462,"21,436.80",Revenue,1014654,Rialto Care & Support Ltd
Shropshire,00GG,Adult Services - Social Care Community Purchasing,Transfer Payments - Adult Social Services Clients,20/07/2021,11308463,"24,116.40",Revenue,1014654,Rialto Care & Support Ltd
Shropshire,00GG,Adult Services - Social Care Community Purchasing,Transfer Payments - Adult Social Services Clients,20/07/2021,11308464,"21,436.80",Revenue,1014654,Rialto Care & Support Ltd
Shropshire,00GG,Adult Services - Social Care Community Purchasing,Transfer Payments - Adult Social Services Clients,20/07/2021,11308465,"21,436.80",Revenue,1014654,Rialto Care & Support Ltd
Shropshire,00GG,Adult Services - Social Care Community Purchasing,Transfer Payments - Adult Social Services Clients,20/07/2021,11308466,"19,152.00",Revenue,1014654,Rialto Care & Support Ltd
Shropshire,00GG,Children's Services - Home to School Transport,Transport-Related Expenditure - Contract Hire and Operating Leases,21/07/2021,3258004,"1,476.00",Revenue,1000153,Hodnet Service Station Taxis
Shropshire,00GG,Children's Services - Special Educational Needs & Disability,Third Party Payments - Other Establishments,21/07/2021,3257790,"5,341.86",Revenue,1000195,Church Stretton School
Shropshire,00GG,Children's Services - Home to School Transport,Transport-Related Expenditure - Contract Hire and Operating Leases,21/07/2021,3253230,"1,152.00",Revenue,1000204,Lakeside Coaches Ltd
Shropshire,00GG,Children's Services - Home to School Transport,Transport-Related Expenditure - Contract Hire and Operating Leases,21/07/2021,3253231,"3,060.00",Revenue,1000204,Lakeside Coaches Ltd
Shropshire,00GG,Children's Services - Home to School Transport,Transport-Related Expenditure - Contract Hire and Operating Leases,21/07/2021,3253282,"3,420.00",Revenue,1000204,Lakeside Coaches Ltd
Shropshire,00GG,Children's Services - Home to School Transport,Transport-Related Expenditure - Contract Hire and Operating Leases,21/07/2021,3253289,"4,050.00",Revenue,1000204,Lakeside Coaches Ltd
Shropshire,00GG,Children's Services - Home to School Transport,Transport-Related Expenditure - Contract Hire and Operating Leases,21/07/2021,3253298,"2,970.00",Revenue,1000204,Lakeside Coaches Ltd
Shropshire,00GG,Children's Services - Home to School Transport,Transport-Related Expenditure - Contract Hire and Operating Leases,21/07/2021,3253303,720.00,Revenue,1000204,Lakeside Coaches Ltd
Shropshire,00GG,Children's Services - Home to School Transport,Transport-Related Expenditure - Contract Hire and Operating Leases,21/07/2021,3253304,"3,024.00",Revenue,1000204,Lakeside Coaches Ltd
Shropshire,00GG,Children's Services - Home to School Transport,Transport-Related Expenditure - Contract Hire and Operating Leases,21/07/2021,3253313,"2,232.00",Revenue,1000204,Lakeside Coaches Ltd
Shropshire,00GG,Children's Services - Home to School Transport,Transport-Related Expenditure - Contract Hire and Operating Leases,21/07/2021,3253317,"3,690.00",Revenue,1000204,Lakeside Coaches Ltd
Shropshire,00GG,Children's Services - Home to School Transport,Transport-Related Expenditure - Contract Hire and Operating Leases,21/07/2021,3253319,"4,320.00",Revenue,1000204,Lakeside Coaches Ltd
Shropshire,00GG,Children's Services - Home to School Transport,Transport-Related Expenditure - Contract Hire and Operating Leases,21/07/2021,3253325,"3,150.00",Revenue,1000204,Lakeside Coaches Ltd
Shropshire,00GG,Children's Services - Home to School Transport,Transport-Related Expenditure - Contract Hire and Operating Leases,21/07/2021,3253334,"3,870.00",Revenue,1000204,Lakeside Coaches Ltd
Shropshire,00GG,Children's Services - Home to School Transport,Transport-Related Expenditure - Contract Hire and Operating Leases,21/07/2021,3253338,"3,546.00",Revenue,1000204,Lakeside Coaches Ltd
Shropshire,00GG,Children's Services - Home to School Transport,Transport-Related Expenditure - Contract Hire and Operating Leases,21/07/2021,3253349,512.00,Revenue,1000204,Lakeside Coaches Ltd
Shropshire,00GG,Children's Services - Home to School Transport,Transport-Related Expenditure - Contract Hire and Operating Leases,21/07/2021,3253359,"1,584.00",Revenue,1000204,Lakeside Coaches Ltd
Shropshire,00GG,Children's Services - Home to School Transport,Transport-Related Expenditure - Contract Hire and Operating Leases,21/07/2021,3253361,"1,584.00",Revenue,1000204,Lakeside Coaches Ltd
Shropshire,00GG,Children's Services - Home to School Transport,Transport-Related Expenditure - Contract Hire and Operating Leases,21/07/2021,3253362,"2,808.00",Revenue,1000204,Lakeside Coaches Ltd
Shropshire,00GG,Children's Services - Home to School Transport,Transport-Related Expenditure - Contract Hire and Operating Leases,21/07/2021,3253363,"3,708.00",Revenue,1000204,Lakeside Coaches Ltd
Shropshire,00GG,Children's Services - Home to School Transport,Transport-Related Expenditure - Contract Hire and Operating Leases,21/07/2021,3253476,"3,492.00",Revenue,1000204,Lakeside Coaches Ltd
Shropshire,00GG,Children's Services - Home to School Transport,Transport-Related Expenditure - Contract Hire and Operating Leases,21/07/2021,3253479,"2,736.00",Revenue,1000204,Lakeside Coaches Ltd
Shropshire,00GG,Children's Services - Home to School Transport,Transport-Related Expenditure - Contract Hire and Operating Leases,21/07/2021,3253485,"2,952.00",Revenue,1000204,Lakeside Coaches Ltd
Shropshire,00GG,Children's Services - Home to School Transport,Transport-Related Expenditure - Contract Hire and Operating Leases,21/07/2021,3253491,"5,040.00",Revenue,1000204,Lakeside Coaches Ltd
Shropshire,00GG,Children's Services - Home to School Transport,Transport-Related Expenditure - Contract Hire and Operating Leases,21/07/2021,3253492,"3,870.00",Revenue,1000204,Lakeside Coaches Ltd
Shropshire,00GG,Children's Services - Home to School Transport,Transport-Related Expenditure - Contract Hire and Operating Leases,21/07/2021,3253493,"3,510.00",Revenue,1000204,Lakeside Coaches Ltd
Shropshire,00GG,Children's Services - Home to School Transport,Transport-Related Expenditure - Contract Hire and Operating Leases,21/07/2021,3253513,"3,240.00",Revenue,1000204,Lakeside Coaches Ltd
Shropshire,00GG,Children's Services - Home to School Transport,Transport-Related Expenditure - Contract Hire and Operating Leases,21/07/2021,3253514,"3,312.00",Revenue,1000204,Lakeside Coaches Ltd
Shropshire,00GG,Place - Environment and Transport (Public Transport),Third Party Payments - Transport Operators,21/07/2021,3257441,"4,524.00",Revenue,1000204,Lakeside Coaches Ltd
Shropshire,00GG,Place - Environment and Transport (Public Transport),Third Party Payments - Transport Operators,21/07/2021,3257452,"4,510.00",Revenue,1000204,Lakeside Coaches Ltd
Shropshire,00GG,Children's Services - Home to School Transport,Transport-Related Expenditure - Contract Hire and Operating Leases,21/07/2021,3252823,540.00,Revenue,1000215,Ludlows Of Telford
Shropshire,00GG,Children's Services - Home to School Transport,Transport-Related Expenditure - Contract Hire and Operating Leases,21/07/2021,3252845,"2,770.00",Revenue,1000215,Ludlows Of Telford
Shropshire,00GG,Children's Services - Home to School Transport,Transport-Related Expenditure - Contract Hire and Operating Leases,21/07/2021,3252856,"3,230.00",Revenue,1000215,Ludlows Of Telford
Shropshire,00GG,Children's Services - Home to School Transport,Transport-Related Expenditure - Contract Hire and Operating Leases,21/07/2021,3252901,"2,210.00",Revenue,1000215,Ludlows Of Telford
Shropshire,00GG,Place - Environment and Transport (Public Transport),Third Party Payments - Transport Operators,21/07/2021,3257425,"1,282.84",Revenue,1000218,Minsterley Motors Services Ltd
Shropshire,00GG,Place - Environment and Transport (Public Transport),Third Party Payments - Transport Operators,21/07/2021,3258028,"7,800.00",Revenue,1000218,Minsterley Motors Services Ltd
Shropshire,00GG,Children's Services - Home to School Transport,Transport-Related Expenditure - Contract Hire and Operating Leases,21/07/2021,3257026,"2,610.00",Revenue,1000274,R D & G I Owen Ltd
Shropshire,00GG,Children's Services - Home to School Transport,Transport-Related Expenditure - Contract Hire and Operating Leases,21/07/2021,3253815,"1,096.20",Revenue,1000315,Rushbury School P.T.A Transport Ac
Shropshire,00GG,Children's Services - Home to School Transport,Transport-Related Expenditure - Contract Hire and Operating Leases,21/07/2021,3253829,"1,620.00",Revenue,1000315,Rushbury School P.T.A Transport Ac
Shropshire,00GG,Children's Services - Non-Delegated Primary DSG,Premises-Related Expenditure - Repairs alterations and maintenance of buildings,21/07/2021,11307284,"1,521.38",Revenue,1000322,R M W Electrical Services Ltd
Shropshire,00GG,Children's Services - Home to School Transport,Transport-Related Expenditure - Contract Hire and Operating Leases,21/07/2021,3256318,"6,480.00",Revenue,1000378,Tanat Valley Coaches
Shropshire,00GG,Children's Services - Home to School Transport,Transport-Related Expenditure - Contract Hire and Operating Leases,21/07/2021,3253800,"3,780.00",Revenue,1000396,Worthen Motors
Shropshire,00GG,Children's Services - Home to School Transport,Transport-Related Expenditure - Contract Hire and Operating Leases,21/07/2021,3253843,"1,224.00",Revenue,1000396,Worthen Motors
Shropshire,00GG,Children's Services - Home to School Transport,Transport-Related Expenditure - Contract Hire and Operating Leases,21/07/2021,3253168,"3,239.10",Revenue,1000405,Yarranton Bros Ltd
Shropshire,00GG,Children's Services - Home to School Transport,Transport-Related Expenditure - Contract Hire and Operating Leases,21/07/2021,3253183,"3,150.00",Revenue,1000405,Yarranton Bros Ltd
Shropshire,00GG,Children's Services - Home to School Transport,Transport-Related Expenditure - Contract Hire and Operating Leases,21/07/2021,3257930,"4,320.00",Revenue,1000424,Owens Coaches
Shropshire,00GG,Children's Services - Home to School Transport,Transport-Related Expenditure - Contract Hire and Operating Leases,21/07/2021,3257942,"3,960.00",Revenue,1000424,Owens Coaches
Shropshire,00GG,Children's Services - Home to School Transport,Transport-Related Expenditure - Contract Hire and Operating Leases,21/07/2021,3257945,"3,960.00",Revenue,1000424,Owens Coaches
Shropshire,00GG,Children's Services - Home to School Transport,Transport-Related Expenditure - Contract Hire and Operating Leases,21/07/2021,3257965,"3,384.00",Revenue,1000424,Owens Coaches
Shropshire,00GG,Children's Services - Home to School Transport,Transport-Related Expenditure - Contract Hire and Operating Leases,21/07/2021,3257967,"3,060.00",Revenue,1000424,Owens Coaches
Shropshire,00GG,Children's Services - Home to School Transport,Transport-Related Expenditure - Contract Hire and Operating Leases,21/07/2021,3257973,"2,970.00",Revenue,1000424,Owens Coaches
Shropshire,00GG,Children's Services - Home to School Transport,Transport-Related Expenditure - Contract Hire and Operating Leases,21/07/2021,3257976,"3,240.00",Revenue,1000424,Owens Coaches
Shropshire,00GG,Children's Services - Home to School Transport,Transport-Related Expenditure - Contract Hire and Operating Leases,21/07/2021,3257986,"3,204.00",Revenue,1000424,Owens Coaches
Shropshire,00GG,Children's Services - Home to School Transport,Transport-Related Expenditure - Contract Hire and Operating Leases,21/07/2021,3257987,"3,510.00",Revenue,1000424,Owens Coaches
Shropshire,00GG,Children's Services - Home to School Transport,Transport-Related Expenditure - Contract Hire and Operating Leases,21/07/2021,3257988,"3,146.22",Revenue,1000424,Owens Coaches
Shropshire,00GG,Children's Services - Special Educational Needs & Disability,Third Party Payments - Other Establishments,21/07/2021,3257792,"9,722.25",Revenue,1000470,Corbet School Technology & Language Coll
Shropshire,00GG,Adult Services - Registrars and Coroners,Supplies & Services - Services,21/07/2021,3258283,"4,251.00",Revenue,1000534,Royal Shrewsbury Hospital Nhs Trust
Shropshire,00GG,Place - Environment and Transport (Public Transport),Third Party Payments - Transport Operators,21/07/2021,3250060,"8,377.00",Revenue,1000559,Shrewsbury Community Transport Initiative Ltd T/A Shrewsbury Dial-a-Ride
Shropshire,00GG,Children's Services - Special Educational Needs & Disability,Third Party Payments - Other Establishments,21/07/2021,3257707,"20,772.21",Revenue,1000655,The Lakelands School
Shropshire,00GG,Children's Services - Home to School Transport,Transport-Related Expenditure - Contract Hire and Operating Leases,21/07/2021,3255609,"3,375.00",Revenue,1000659,Bennetts Travel (Cranberry) Ltd
Shropshire,00GG,Children's Services - Home to School Transport,Transport-Related Expenditure - Contract Hire and Operating Leases,21/07/2021,3255611,"5,832.00",Revenue,1000659,Bennetts Travel (Cranberry) Ltd
Shropshire,00GG,Children's Services - Home to School Transport,Transport-Related Expenditure - Contract Hire and Operating Leases,21/07/2021,3255614,"3,735.00",Revenue,1000659,Bennetts Travel (Cranberry) Ltd
Shropshire,00GG,Children's Services - Children�s Case Management,Transport-Related Expenditure - Contract Hire and Operating Leases,21/07/2021,3254674,"1,088.00",Revenue,1000733,A J Shakespeare
Shropshire,00GG,Workforce and Transformation - Print & Post Services,Supplies & Services - Equipment Furniture and Materials,21/07/2021,3252180,"1,004.00",Revenue,1000875,Premier Paper Group Ltd
Shropshire,00GG,Place - Shire Catering,Supplies & Services - Catering,21/07/2021,3258463,945.44,Revenue,1000926,Options Management
Shropshire,00GG,Children's Services - Home to School Transport,Transport-Related Expenditure - Contract Hire and Operating Leases,21/07/2021,3252712,"2,250.00",Revenue,1000928,Mawley Oak Garage Ltd
Shropshire,00GG,Children's Services - Home to School Transport,Transport-Related Expenditure - Contract Hire and Operating Leases,21/07/2021,3252754,"1,080.00",Revenue,1000928,Mawley Oak Garage Ltd
Shropshire,00GG,Children's Services - Home to School Transport,Transport-Related Expenditure - Contract Hire and Operating Leases,21/07/2021,3252789,"3,240.00",Revenue,1000928,Mawley Oak Garage Ltd
Shropshire,00GG,Children's Services - Home to School Transport,Transport-Related Expenditure - Contract Hire and Operating Leases,21/07/2021,3252806,"3,330.00",Revenue,1000928,Mawley Oak Garage Ltd
Shropshire,00GG,Children's Services - Home to School Transport,Transport-Related Expenditure - Contract Hire and Operating Leases,21/07/2021,3252811,"1,870.00",Revenue,1000928,Mawley Oak Garage Ltd
Shropshire,00GG,Children's Services - Home to School Transport,Transport-Related Expenditure - Contract Hire and Operating Leases,21/07/2021,3252834,"3,330.00",Revenue,1000928,Mawley Oak Garage Ltd
Shropshire,00GG,Children's Services - Home to School Transport,Transport-Related Expenditure - Contract Hire and Operating Leases,21/07/2021,3252836,"3,400.00",Revenue,1000928,Mawley Oak Garage Ltd
Shropshire,00GG,Children's Services - Home to School Transport,Transport-Related Expenditure - Contract Hire and Operating Leases,21/07/2021,3252848,"2,700.00",Revenue,1000928,Mawley Oak Garage Ltd
Shropshire,00GG,Children's Services - Home to School Transport,Transport-Related Expenditure - Contract Hire and Operating Leases,21/07/2021,3252853,"3,240.00",Revenue,1000928,Mawley Oak Garage Ltd
Shropshire,00GG,Children's Services - Home to School Transport,Transport-Related Expenditure - Contract Hire and Operating Leases,21/07/2021,3252871,"2,880.00",Revenue,1000928,Mawley Oak Garage Ltd
Shropshire,00GG,Children's Services - Home to School Transport,Transport-Related Expenditure - Contract Hire and Operating Leases,21/07/2021,3252909,"3,060.00",Revenue,1000928,Mawley Oak Garage Ltd
Shropshire,00GG,Children's Services - Home to School Transport,Transport-Related Expenditure - Contract Hire and Operating Leases,21/07/2021,3254078,684.00,Revenue,1001066,Ultimate Taxis Ltd
Shropshire,00GG,Children's Services - Home to School Transport,Transport-Related Expenditure - Contract Hire and Operating Leases,21/07/2021,3254253,"2,340.00",Revenue,1001066,Ultimate Taxis Ltd
Shropshire,00GG,Children's Services - Home to School Transport,Transport-Related Expenditure - Contract Hire and Operating Leases,21/07/2021,3256640,720.00,Revenue,1001066,Ultimate Taxis Ltd
Shropshire,00GG,Children's Services - Home to School Transport,Transport-Related Expenditure - Contract Hire and Operating Leases,21/07/2021,3256662,720.00,Revenue,1001066,Ultimate Taxis Ltd
Shropshire,00GG,Children's Services - Home to School Transport,Transport-Related Expenditure - Contract Hire and Operating Leases,21/07/2021,3254663,"2,537.50",Revenue,1001245,Mc Travel
Shropshire,00GG,Children's Services - Home to School Transport,Transport-Related Expenditure - Contract Hire and Operating Leases,21/07/2021,3254664,"1,105.00",Revenue,1001245,Mc Travel
Shropshire,00GG,Children's Services - Home to School Transport,Transport-Related Expenditure - Contract Hire and Operating Leases,21/07/2021,3257920,"1,080.00",Revenue,1001345,K M Owen
Shropshire,00GG,Children's Services - Home to School Transport,Transport-Related Expenditure - Contract Hire and Operating Leases,21/07/2021,3255499,"2,511.00",Revenue,1001380,P E Davies
Shropshire,00GG,Children's Services - Home to School Transport,Transport-Related Expenditure - Contract Hire and Operating Leases,21/07/2021,3255522,"2,502.00",Revenue,1001380,P E Davies
Shropshire,00GG,Place - Theatre Services,Supplies & Services - Equipment Furniture and Materials,21/07/2021,3251707,575.00,Revenue,1001387,Hope Valley Radio Ltd
Shropshire,00GG,Children's Services - Home to School Transport,Transport-Related Expenditure - Contract Hire and Operating Leases,21/07/2021,3254240,501.60,Revenue,1001549,Jeff'S Taxis & Minibuses
Shropshire,00GG,Children's Services - Home to School Transport,Transport-Related Expenditure - Contract Hire and Operating Leases,21/07/2021,3254492,554.50,Revenue,1001549,Jeff'S Taxis & Minibuses
Shropshire,00GG,Children's Services - Home to School Transport,Transport-Related Expenditure - Contract Hire and Operating Leases,21/07/2021,3254495,590.80,Revenue,1001549,Jeff'S Taxis & Minibuses
Shropshire,00GG,Children's Services - Home to School Transport,Transport-Related Expenditure - Contract Hire and Operating Leases,21/07/2021,3254661,"1,134.00",Revenue,1001549,Jeff'S Taxis & Minibuses
Shropshire,00GG,Children's Services - Home to School Transport,Transport-Related Expenditure - Contract Hire and Operating Leases,21/07/2021,3254710,"1,296.00",Revenue,1001549,Jeff'S Taxis & Minibuses
Shropshire,00GG,Children's Services - Home to School Transport,Transport-Related Expenditure - Contract Hire and Operating Leases,21/07/2021,3254924,"1,076.00",Revenue,1001549,Jeff'S Taxis & Minibuses
Shropshire,00GG,Children's Services - Home to School Transport,Transport-Related Expenditure - Contract Hire and Operating Leases,21/07/2021,3252653,"1,800.00",Revenue,1001563,M & L Travel
Shropshire,00GG,Children's Services - Home to School Transport,Transport-Related Expenditure - Contract Hire and Operating Leases,21/07/2021,3254969,"1,530.00",Revenue,1001710,Tracys Taxis
Shropshire,00GG,Children's Services - Home to School Transport,Transport-Related Expenditure - Contract Hire and Operating Leases,21/07/2021,3254994,680.00,Revenue,1001710,Tracys Taxis
Shropshire,00GG,Adult Services - Care Management - Transport,Transport-Related Expenditure - Contract Hire and Operating Leases,21/07/2021,3255126,525.00,Revenue,1001710,Tracys Taxis
Shropshire,00GG,Children's Services - Home to School Transport,Transport-Related Expenditure - Contract Hire and Operating Leases,21/07/2021,3253360,"2,250.00",Revenue,1001729,Concorde Travel Of Shrewsbury
Shropshire,00GG,Children's Services - Home to School Transport,Transport-Related Expenditure - Contract Hire and Operating Leases,21/07/2021,3254701,"1,800.00",Revenue,1001782,One To 1 Cars Oswestry
Shropshire,00GG,Children's Services - Home to School Transport,Transport-Related Expenditure - Contract Hire and Operating Leases,21/07/2021,3254702,"1,260.00",Revenue,1001782,One To 1 Cars Oswestry
Shropshire,00GG,Children's Services - Home to School Transport,Transport-Related Expenditure - Contract Hire and Operating Leases,21/07/2021,3257183,"1,049.00",Revenue,1001802,E J Griffiths
Shropshire,00GG,Children's Services - Home to School Transport,Transport-Related Expenditure - Contract Hire and Operating Leases,21/07/2021,3257343,"1,962.00",Revenue,1001802,E J Griffiths
Shropshire,00GG,Children's Services - Home to School Transport,Transport-Related Expenditure - Contract Hire and Operating Leases,21/07/2021,3258327,619.50,Revenue,1001802,E J Griffiths
Shropshire,00GG,Children's Services - Children�s Case Management,Transport-Related Expenditure - Contract Hire and Operating Leases,21/07/2021,3258358,609.50,Revenue,1001802,E J Griffiths
Shropshire,00GG,Adult Services - Care Management - Transport,Transport-Related Expenditure - Contract Hire and Operating Leases,21/07/2021,3256808,"2,960.00",Revenue,1001814,Mr A H Tawasin
Shropshire,00GG,Children's Services - Children�s Case Management,Transport-Related Expenditure - Contract Hire and Operating Leases,21/07/2021,3254919,693.00,Revenue,1001866,Mr T H Higgins (Taxi & Minibus Service)
Shropshire,00GG,Children's Services - Home to School Transport,Transport-Related Expenditure - Contract Hire and Operating Leases,21/07/2021,3256441,538.20,Revenue,1001866,Mr T H Higgins (Taxi & Minibus Service)
Shropshire,00GG,Children's Services - Home to School Transport,Transport-Related Expenditure - Contract Hire and Operating Leases,21/07/2021,3256455,"1,003.00",Revenue,1001866,Mr T H Higgins (Taxi & Minibus Service)
Shropshire,00GG,Children's Services - Home to School Transport,Transport-Related Expenditure - Contract Hire and Operating Leases,21/07/2021,3256461,"1,864.80",Revenue,1001866,Mr T H Higgins (Taxi & Minibus Service)
Shropshire,00GG,Children's Services - Home to School Transport,Transport-Related Expenditure - Contract Hire and Operating Leases,21/07/2021,3256469,550.00,Revenue,1001866,Mr T H Higgins (Taxi & Minibus Service)
Shropshire,00GG,Adult Services - Care Management - Transport,Transport-Related Expenditure - Contract Hire and Operating Leases,21/07/2021,3256474,728.00,Revenue,1001866,Mr T H Higgins (Taxi & Minibus Service)
Shropshire,00GG,Children's Services - Home to School Transport,Transport-Related Expenditure - Contract Hire and Operating Leases,21/07/2021,3256475,622.80,Revenue,1001866,Mr T H Higgins (Taxi & Minibus Service)
Shropshire,00GG,Children's Services - Home to School Transport,Transport-Related Expenditure - Contract Hire and Operating Leases,21/07/2021,3256492,"1,757.40",Revenue,1001866,Mr T H Higgins (Taxi & Minibus Service)
Shropshire,00GG,Children's Services - Home to School Transport,Transport-Related Expenditure - Contract Hire and Operating Leases,21/07/2021,3256496,"3,071.20",Revenue,1001866,Mr T H Higgins (Taxi & Minibus Service)
Shropshire,00GG,Adult Services - Care Management - Transport,Transport-Related Expenditure - Contract Hire and Operating Leases,21/07/2021,3256543,"1,342.00",Revenue,1001866,Mr T H Higgins (Taxi & Minibus Service)
Shropshire,00GG,Children's Services - Disabled Children's Team,Transport-Related Expenditure - Contract Hire and Operating Leases,21/07/2021,3258280,696.15,Revenue,1001866,Mr T H Higgins (Taxi & Minibus Service)
Shropshire,00GG,Children's Services - Home to School Transport,Transport-Related Expenditure - Contract Hire and Operating Leases,21/07/2021,3258280,119.85,Revenue,1001866,Mr T H Higgins (Taxi & Minibus Service)
Shropshire,00GG,Children's Services - Home to School Transport,Transport-Related Expenditure - Contract Hire and Operating Leases,21/07/2021,3253984,"3,132.00",Revenue,1002226,Beardmore Travel Services Limited
Shropshire,00GG,Children's Services - Home to School Transport,Transport-Related Expenditure - Contract Hire and Operating Leases,21/07/2021,3253996,"3,132.00",Revenue,1002226,Beardmore Travel Services Limited
Shropshire,00GG,Children's Services - Home to School Transport,Transport-Related Expenditure - Contract Hire and Operating Leases,21/07/2021,3254029,"2,430.00",Revenue,1002226,Beardmore Travel Services Limited
Shropshire,00GG,Housing Revenue Account - Supervision & Management,Supplies & Services - Miscellaneous Expenses,21/07/2021,3253774,"1,158.65",Revenue,1002335,Allpay Limited
Shropshire,00GG,"Finance, Governance & Assurance - Revenues and Benefits",Supplies & Services - Miscellaneous Expenses,21/07/2021,3253779,780.58,Revenue,1002335,Allpay Limited
Shropshire,00GG,"Finance, Governance & Assurance - Revenues and Benefits",Supplies & Services - Miscellaneous Expenses,21/07/2021,3253785,"2,293.44",Revenue,1002335,Allpay Limited
Shropshire,00GG,Place - Highways (Operations),Supplies & Services - Grants and Subscriptions,21/07/2021,3251243,"1,500.00",Revenue,1002409,Easthope Shipton & Stanton Long P C
Shropshire,00GG,Place - Highways (Operations),Supplies & Services - Grants and Subscriptions,21/07/2021,3251769,"3,000.00",Revenue,1002409,Easthope Shipton & Stanton Long P C
Shropshire,00GG,Place - Leisure,Third Party Payments - Private Contractors,21/07/2021,3251459,"3,150.00",Revenue,1002644,Nigel Bramall
Shropshire,00GG,Adult Services - Care Management - Social Work Teams,Supplies & Services - Services,21/07/2021,3251443,"1,940.00",Revenue,1002683,Dr V R Sulake
Shropshire,00GG,"Finance, Governance & Assurance - Finance",Supplies & Services - Equipment Furniture and Materials,21/07/2021,3258471,"1,040.00",Revenue,1002717,Cipfa Business Limited
Shropshire,00GG,Children's Services - Special Educational Needs & Disability,Third Party Payments - Other Establishments,21/07/2021,3254232,"6,966.67",Revenue,1002739,Bettws Lifehouse Ltd
Shropshire,00GG,Children's Services - Special Educational Needs & Disability,Third Party Payments - Other Establishments,21/07/2021,3254234,"9,366.67",Revenue,1002739,Bettws Lifehouse Ltd
Shropshire,00GG,Children's Services - Special Educational Needs & Disability,Third Party Payments - Other Establishments,21/07/2021,3254247,"8,416.66",Revenue,1002739,Bettws Lifehouse Ltd
Shropshire,00GG,Children's Services - Special Educational Needs & Disability,Third Party Payments - Other Establishments,21/07/2021,3254256,"6,966.67",Revenue,1002739,Bettws Lifehouse Ltd
Shropshire,00GG,Children's Services - Special Educational Needs & Disability,Third Party Payments - Other Establishments,21/07/2021,3254257,"13,600.00",Revenue,1002739,Bettws Lifehouse Ltd
Shropshire,00GG,Children's Services - Special Educational Needs & Disability,Third Party Payments - Other Establishments,21/07/2021,3254270,"9,366.67",Revenue,1002739,Bettws Lifehouse Ltd
Shropshire,00GG,Children's Services - Special Educational Needs & Disability,Third Party Payments - Other Establishments,21/07/2021,3254276,"8,216.67",Revenue,1002739,Bettws Lifehouse Ltd
Shropshire,00GG,Children's Services - Special Educational Needs & Disability,Third Party Payments - Other Establishments,21/07/2021,3254286,"6,416.66",Revenue,1002739,Bettws Lifehouse Ltd
Shropshire,00GG,Children's Services - Special Educational Needs & Disability,Third Party Payments - Other Establishments,21/07/2021,3254292,"6,416.66",Revenue,1002739,Bettws Lifehouse Ltd
Shropshire,00GG,Children's Services - Special Educational Needs & Disability,Third Party Payments - Other Establishments,21/07/2021,3254297,"8,416.66",Revenue,1002739,Bettws Lifehouse Ltd
Shropshire,00GG,Children's Services - Special Educational Needs & Disability,Third Party Payments - Other Establishments,21/07/2021,3254309,"6,966.67",Revenue,1002739,Bettws Lifehouse Ltd
Shropshire,00GG,Children's Services - Special Educational Needs & Disability,Third Party Payments - Other Establishments,21/07/2021,3254313,"6,416.66",Revenue,1002739,Bettws Lifehouse Ltd
Shropshire,00GG,Children's Services - Special Educational Needs & Disability,Third Party Payments - Other Establishments,21/07/2021,3254316,"6,416.66",Revenue,1002739,Bettws Lifehouse Ltd
Shropshire,00GG,Children's Services - Special Educational Needs & Disability,Third Party Payments - Other Establishments,21/07/2021,3254318,"8,416.66",Revenue,1002739,Bettws Lifehouse Ltd
Shropshire,00GG,Children's Services - Special Educational Needs & Disability,Third Party Payments - Other Establishments,21/07/2021,3254321,"13,600.00",Revenue,1002739,Bettws Lifehouse Ltd
Shropshire,00GG,Children's Services - Special Educational Needs & Disability,Third Party Payments - Other Establishments,21/07/2021,3254324,"8,416.66",Revenue,1002739,Bettws Lifehouse Ltd
Shropshire,00GG,Children's Services - Special Educational Needs & Disability,Third Party Payments - Other Establishments,21/07/2021,3254334,"13,600.00",Revenue,1002739,Bettws Lifehouse Ltd
Shropshire,00GG,Children's Services - Special Educational Needs & Disability,Third Party Payments - Other Establishments,21/07/2021,3254338,"6,416.66",Revenue,1002739,Bettws Lifehouse Ltd
Shropshire,00GG,Children's Services - Special Educational Needs & Disability,Third Party Payments - Other Establishments,21/07/2021,3254340,"8,416.66",Revenue,1002739,Bettws Lifehouse Ltd
Shropshire,00GG,Children's Services - Special Educational Needs & Disability,Third Party Payments - Other Establishments,21/07/2021,3254342,"6,965.00",Revenue,1002739,Bettws Lifehouse Ltd
Shropshire,00GG,Children's Services - Special Educational Needs & Disability,Third Party Payments - Other Establishments,21/07/2021,3254343,"8,416.66",Revenue,1002739,Bettws Lifehouse Ltd
Shropshire,00GG,Children's Services - Special Educational Needs & Disability,Third Party Payments - Other Establishments,21/07/2021,3254344,"6,416.66",Revenue,1002739,Bettws Lifehouse Ltd
Shropshire,00GG,Children's Services - Special Educational Needs & Disability,Third Party Payments - Other Establishments,21/07/2021,3254355,"6,416.66",Revenue,1002739,Bettws Lifehouse Ltd
Shropshire,00GG,Children's Services - Special Educational Needs & Disability,Third Party Payments - Other Establishments,21/07/2021,3254362,"6,416.66",Revenue,1002739,Bettws Lifehouse Ltd
Shropshire,00GG,Children's Services - Special Educational Needs & Disability,Third Party Payments - Other Establishments,21/07/2021,3254363,"8,416.66",Revenue,1002739,Bettws Lifehouse Ltd
Shropshire,00GG,Children's Services - Special Educational Needs & Disability,Third Party Payments - Other Establishments,21/07/2021,3254375,"8,416.66",Revenue,1002739,Bettws Lifehouse Ltd
Shropshire,00GG,Children's Services - Special Educational Needs & Disability,Third Party Payments - Other Establishments,21/07/2021,3254376,"6,416.66",Revenue,1002739,Bettws Lifehouse Ltd
Shropshire,00GG,Children's Services - Special Educational Needs & Disability,Third Party Payments - Other Establishments,21/07/2021,3255066,"6,966.67",Revenue,1002739,Bettws Lifehouse Ltd
Shropshire,00GG,Children's Services - Special Educational Needs & Disability,Third Party Payments - Other Establishments,21/07/2021,3255105,"9,366.67",Revenue,1002739,Bettws Lifehouse Ltd
Shropshire,00GG,Children's Services - Special Educational Needs & Disability,Third Party Payments - Other Establishments,21/07/2021,3257414,"9,366.67",Revenue,1002739,Bettws Lifehouse Ltd
Shropshire,00GG,Children's Services - Special Educational Needs & Disability,Third Party Payments - Other Establishments,21/07/2021,3258231,"9,366.67",Revenue,1002739,Bettws Lifehouse Ltd
Shropshire,00GG,Children's Services - Special Educational Needs & Disability,Third Party Payments - Other Establishments,21/07/2021,3258573,550.01,Revenue,1002739,Bettws Lifehouse Ltd
Shropshire,00GG,Children's Services - Home to School Transport,Transport-Related Expenditure - Contract Hire and Operating Leases,21/07/2021,3253096,842.40,Revenue,1003252,S D Travel
Shropshire,00GG,Children's Services - Home to School Transport,Transport-Related Expenditure - Contract Hire and Operating Leases,21/07/2021,3253686,"3,636.00",Revenue,1003252,S D Travel
Shropshire,00GG,Children's Services - Home to School Transport,Transport-Related Expenditure - Contract Hire and Operating Leases,21/07/2021,3253688,494.40,Revenue,1003252,S D Travel
Shropshire,00GG,Children's Services - Children�s Case Management,Transport-Related Expenditure - Contract Hire and Operating Leases,21/07/2021,3253701,"1,516.40",Revenue,1003252,S D Travel
Shropshire,00GG,Children's Services - Home to School Transport,Transport-Related Expenditure - Contract Hire and Operating Leases,21/07/2021,3253703,693.60,Revenue,1003252,S D Travel
Shropshire,00GG,Children's Services - Home to School Transport,Transport-Related Expenditure - Contract Hire and Operating Leases,21/07/2021,3253707,"1,076.40",Revenue,1003252,S D Travel
Shropshire,00GG,Children's Services - Home to School Transport,Transport-Related Expenditure - Contract Hire and Operating Leases,21/07/2021,3253709,442.20,Revenue,1003252,S D Travel
Shropshire,00GG,Children's Services - Home to School Transport,Transport-Related Expenditure - Contract Hire and Operating Leases,21/07/2021,3253810,417.00,Revenue,1003252,S D Travel
Shropshire,00GG,Children's Services - Home to School Transport,Transport-Related Expenditure - Contract Hire and Operating Leases,21/07/2021,3253845,"1,329.00",Revenue,1003252,S D Travel
Shropshire,00GG,Children's Services - Home to School Transport,Transport-Related Expenditure - Contract Hire and Operating Leases,21/07/2021,3253859,675.00,Revenue,1003252,S D Travel
Shropshire,00GG,Children's Services - Children�s Case Management,Transport-Related Expenditure - Contract Hire and Operating Leases,21/07/2021,3253868,"1,936.80",Revenue,1003252,S D Travel
Shropshire,00GG,Children's Services - Home to School Transport,Transport-Related Expenditure - Contract Hire and Operating Leases,21/07/2021,3253917,"1,605.00",Revenue,1003252,S D Travel
Shropshire,00GG,Children's Services - Home to School Transport,Transport-Related Expenditure - Contract Hire and Operating Leases,21/07/2021,3253938,"1,616.40",Revenue,1003252,S D Travel
Shropshire,00GG,Children's Services - Home to School Transport,Transport-Related Expenditure - Contract Hire and Operating Leases,21/07/2021,3254350,450.00,Revenue,1003252,S D Travel
Shropshire,00GG,Place - Shire Catering,Transport-Related Expenditure - Contract Hire and Operating Leases,21/07/2021,3254606,878.40,Revenue,1003252,S D Travel
Shropshire,00GG,Children's Services - Home to School Transport,Transport-Related Expenditure - Contract Hire and Operating Leases,21/07/2021,3254937,455.60,Revenue,1003252,S D Travel
Shropshire,00GG,Children's Services - Home to School Transport,Transport-Related Expenditure - Contract Hire and Operating Leases,21/07/2021,3254991,"1,859.20",Revenue,1003252,S D Travel
Shropshire,00GG,Children's Services - Home to School Transport,Transport-Related Expenditure - Contract Hire and Operating Leases,21/07/2021,3255026,830.00,Revenue,1003252,S D Travel
Shropshire,00GG,Children's Services - Home to School Transport,Transport-Related Expenditure - Contract Hire and Operating Leases,21/07/2021,3255517,"1,450.80",Revenue,1003252,S D Travel
Shropshire,00GG,Children's Services - Home to School Transport,Transport-Related Expenditure - Contract Hire and Operating Leases,21/07/2021,3253218,"4,680.00",Revenue,1003261,Richard Price
Shropshire,00GG,Children's Services - Home to School Transport,Transport-Related Expenditure - Contract Hire and Operating Leases,21/07/2021,3253171,792.00,Revenue,1003297,Mikes Cars
Shropshire,00GG,Children's Services - Home to School Transport,Transport-Related Expenditure - Contract Hire and Operating Leases,21/07/2021,3253925,624.00,Revenue,1003297,Mikes Cars
Shropshire,00GG,Children's Services - Home to School Transport,Transport-Related Expenditure - Contract Hire and Operating Leases,21/07/2021,3253953,"1,746.00",Revenue,1003297,Mikes Cars
Shropshire,00GG,Children's Services - Home to School Transport,Transport-Related Expenditure - Contract Hire and Operating Leases,21/07/2021,3253216,"1,080.00",Revenue,1003308,Longmynd Limo & Private Hire
Shropshire,00GG,Children's Services - Home to School Transport,Transport-Related Expenditure - Contract Hire and Operating Leases,21/07/2021,3253219,"1,620.00",Revenue,1003308,Longmynd Limo & Private Hire
Shropshire,00GG,Children's Services - Home to School Transport,Transport-Related Expenditure - Contract Hire and Operating Leases,21/07/2021,3253223,"1,170.00",Revenue,1003308,Longmynd Limo & Private Hire
Shropshire,00GG,Children's Services - Home to School Transport,Transport-Related Expenditure - Contract Hire and Operating Leases,21/07/2021,3255574,"1,253.00",Revenue,1003330,Paul Weston
Shropshire,00GG,Children's Services - Home to School Transport,Transport-Related Expenditure - Contract Hire and Operating Leases,21/07/2021,3256862,"1,420.00",Revenue,1003373,Carl Oliver
Shropshire,00GG,Adult Services - Adult Services Training,Supplies & Services - Equipment Furniture and Materials,21/07/2021,3250959,"3,720.00",Revenue,1003409,Crisis Prevention Institute
Shropshire,00GG,Capital - Social Care Operations Capital,Non Revenue - Non Revenue,21/07/2021,3250909,561.90,Capital,1003484,Optima Low Vision Services Ltd
Shropshire,00GG,Children's Services - Special Educational Needs & Disability,Third Party Payments - Other Establishments,21/07/2021,3257813,"2,002.89",Revenue,1003515,The Marches School
Shropshire,00GG,Children's Services - Special Educational Needs & Disability,Third Party Payments - Other Establishments,21/07/2021,3257844,"6,339.86",Revenue,1003515,The Marches School
Shropshire,00GG,Children's Services - Special Educational Needs & Disability,Third Party Payments - Other Establishments,21/07/2021,3257852,"1,338.08",Revenue,1003515,The Marches School
Shropshire,00GG,Children's Services - Home to School Transport,Transport-Related Expenditure - Contract Hire and Operating Leases,21/07/2021,3258250,"2,478.00",Revenue,1003532,A J Coombes
Shropshire,00GG,Children's Services - Home to School Transport,Transport-Related Expenditure - Contract Hire and Operating Leases,21/07/2021,3253650,"3,240.00",Revenue,1003569,A T R Taxis
Shropshire,00GG,Children's Services - Home to School Transport,Transport-Related Expenditure - Contract Hire and Operating Leases,21/07/2021,3253662,"3,240.00",Revenue,1003569,A T R Taxis
Shropshire,00GG,Children's Services - Home to School Transport,Transport-Related Expenditure - Contract Hire and Operating Leases,21/07/2021,3253886,"2,160.00",Revenue,1003569,A T R Taxis
Shropshire,00GG,Children's Services - Home to School Transport,Transport-Related Expenditure - Contract Hire and Operating Leases,21/07/2021,3253888,"1,080.00",Revenue,1003569,A T R Taxis
Shropshire,00GG,Children's Services - Home to School Transport,Transport-Related Expenditure - Contract Hire and Operating Leases,21/07/2021,3253914,"3,420.00",Revenue,1003569,A T R Taxis
Shropshire,00GG,Children's Services - Home to School Transport,Transport-Related Expenditure - Contract Hire and Operating Leases,21/07/2021,3253934,"3,240.00",Revenue,1003569,A T R Taxis
Shropshire,00GG,Children's Services - Home to School Transport,Transport-Related Expenditure - Contract Hire and Operating Leases,21/07/2021,3253947,"1,440.00",Revenue,1003569,A T R Taxis
Shropshire,00GG,Children's Services - Home to School Transport,Transport-Related Expenditure - Contract Hire and Operating Leases,21/07/2021,3253952,"2,160.00",Revenue,1003569,A T R Taxis
Shropshire,00GG,Children's Services - Home to School Transport,Transport-Related Expenditure - Contract Hire and Operating Leases,21/07/2021,3254758,"3,600.00",Revenue,1003569,A T R Taxis
Shropshire,00GG,Children's Services - Home to School Transport,Transport-Related Expenditure - Contract Hire and Operating Leases,21/07/2021,3256580,"7,560.00",Revenue,1003569,A T R Taxis
Shropshire,00GG,Children's Services - Home to School Transport,Transport-Related Expenditure - Contract Hire and Operating Leases,21/07/2021,3256586,"7,350.00",Revenue,1003569,A T R Taxis
Shropshire,00GG,Children's Services - Home to School Transport,Transport-Related Expenditure - Contract Hire and Operating Leases,21/07/2021,3257158,"7,800.00",Revenue,1003569,A T R Taxis
Shropshire,00GG,Children's Services - Home to School Transport,Transport-Related Expenditure - Contract Hire and Operating Leases,21/07/2021,3253459,720.00,Revenue,1003616,T M Higgins T/A Berwyn Cars
Shropshire,00GG,Children's Services - Home to School Transport,Transport-Related Expenditure - Contract Hire and Operating Leases,21/07/2021,3253698,"3,870.00",Revenue,1003741,Swains Coaches
Shropshire,00GG,Capital - Primary School Capital,Non Revenue - Non Revenue,21/07/2021,3250419,433.10,Capital,1003890,Cardea Solutions (Uk) Ltd
Shropshire,00GG,Children's Services - Home to School Transport,Transport-Related Expenditure - Contract Hire and Operating Leases,21/07/2021,3253452,"2,448.00",Revenue,1003978,Shrewsbury Taxi Service
Shropshire,00GG,Children's Services - Home to School Transport,Transport-Related Expenditure - Contract Hire and Operating Leases,21/07/2021,3253453,"2,448.00",Revenue,1003978,Shrewsbury Taxi Service
Shropshire,00GG,Children's Services - Home to School Transport,Transport-Related Expenditure - Contract Hire and Operating Leases,21/07/2021,3253457,"2,484.00",Revenue,1003978,Shrewsbury Taxi Service
Shropshire,00GG,Children's Services - Home to School Transport,Transport-Related Expenditure - Contract Hire and Operating Leases,21/07/2021,3253460,"1,764.00",Revenue,1003978,Shrewsbury Taxi Service
Shropshire,00GG,Children's Services - Home to School Transport,Transport-Related Expenditure - Contract Hire and Operating Leases,21/07/2021,3253463,"1,100.00",Revenue,1003978,Shrewsbury Taxi Service
Shropshire,00GG,Children's Services - Home to School Transport,Transport-Related Expenditure - Contract Hire and Operating Leases,21/07/2021,3253470,"1,620.00",Revenue,1003978,Shrewsbury Taxi Service
Shropshire,00GG,Children's Services - Home to School Transport,Transport-Related Expenditure - Contract Hire and Operating Leases,21/07/2021,3254750,"6,846.00",Revenue,1003978,Shrewsbury Taxi Service
Shropshire,00GG,Children's Services - Home to School Transport,Transport-Related Expenditure - Contract Hire and Operating Leases,21/07/2021,3254926,"3,861.00",Revenue,1003978,Shrewsbury Taxi Service
Shropshire,00GG,Children's Services - Home to School Transport,Transport-Related Expenditure - Contract Hire and Operating Leases,21/07/2021,3254928,864.00,Revenue,1003978,Shrewsbury Taxi Service
Shropshire,00GG,Children's Services - Home to School Transport,Transport-Related Expenditure - Contract Hire and Operating Leases,21/07/2021,3254934,"7,416.00",Revenue,1003978,Shrewsbury Taxi Service
Shropshire,00GG,Children's Services - Home to School Transport,Transport-Related Expenditure - Contract Hire and Operating Leases,21/07/2021,3254936,"7,056.00",Revenue,1003978,Shrewsbury Taxi Service
Shropshire,00GG,Children's Services - Home to School Transport,Transport-Related Expenditure - Contract Hire and Operating Leases,21/07/2021,3254947,"3,384.00",Revenue,1003978,Shrewsbury Taxi Service
Shropshire,00GG,Children's Services - Home to School Transport,Transport-Related Expenditure - Contract Hire and Operating Leases,21/07/2021,3254948,"4,968.00",Revenue,1003978,Shrewsbury Taxi Service
Shropshire,00GG,Children's Services - Home to School Transport,Transport-Related Expenditure - Contract Hire and Operating Leases,21/07/2021,3254968,"1,632.00",Revenue,1003978,Shrewsbury Taxi Service
Shropshire,00GG,Children's Services - Home to School Transport,Transport-Related Expenditure - Contract Hire and Operating Leases,21/07/2021,3254981,864.00,Revenue,1003978,Shrewsbury Taxi Service
Shropshire,00GG,Children's Services - Home to School Transport,Transport-Related Expenditure - Contract Hire and Operating Leases,21/07/2021,3254995,"2,584.00",Revenue,1003978,Shrewsbury Taxi Service
Shropshire,00GG,Children's Services - Looked After Children (LAC) Service,Transport-Related Expenditure - Contract Hire and Operating Leases,21/07/2021,3254997,"3,038.00",Revenue,1003978,Shrewsbury Taxi Service
Shropshire,00GG,Adult Services - Care Management - Transport,Transport-Related Expenditure - Contract Hire and Operating Leases,21/07/2021,3254998,"1,008.00",Revenue,1003978,Shrewsbury Taxi Service
Shropshire,00GG,Children's Services - Home to School Transport,Transport-Related Expenditure - Contract Hire and Operating Leases,21/07/2021,3255006,"1,008.00",Revenue,1003978,Shrewsbury Taxi Service
Shropshire,00GG,Children's Services - Home to School Transport,Transport-Related Expenditure - Contract Hire and Operating Leases,21/07/2021,3255011,"8,592.00",Revenue,1003978,Shrewsbury Taxi Service
Shropshire,00GG,Adult Services - Care Management - Transport,Transport-Related Expenditure - Contract Hire and Operating Leases,21/07/2021,3255140,"2,688.00",Revenue,1003978,Shrewsbury Taxi Service
Shropshire,00GG,Adult Services - Care Management - Transport,Transport-Related Expenditure - Contract Hire and Operating Leases,21/07/2021,3255142,896.00,Revenue,1003978,Shrewsbury Taxi Service
Shropshire,00GG,Children's Services - Home to School Transport,Transport-Related Expenditure - Contract Hire and Operating Leases,21/07/2021,3255152,968.00,Revenue,1003978,Shrewsbury Taxi Service
Shropshire,00GG,Children's Services - Home to School Transport,Transport-Related Expenditure - Contract Hire and Operating Leases,21/07/2021,3255160,900.00,Revenue,1003978,Shrewsbury Taxi Service
Shropshire,00GG,Adult Services - Care Management - Transport,Transport-Related Expenditure - Contract Hire and Operating Leases,21/07/2021,3255174,"1,260.00",Revenue,1003978,Shrewsbury Taxi Service
Shropshire,00GG,Children's Services - Home to School Transport,Transport-Related Expenditure - Contract Hire and Operating Leases,21/07/2021,3255178,"1,728.00",Revenue,1003978,Shrewsbury Taxi Service
Shropshire,00GG,Children's Services - Home to School Transport,Transport-Related Expenditure - Contract Hire and Operating Leases,21/07/2021,3255181,"1,080.00",Revenue,1003978,Shrewsbury Taxi Service
Shropshire,00GG,Children's Services - Home to School Transport,Transport-Related Expenditure - Contract Hire and Operating Leases,21/07/2021,3255236,986.00,Revenue,1003978,Shrewsbury Taxi Service
Shropshire,00GG,Children's Services - Looked After Children (LAC) Service,Transport-Related Expenditure - Contract Hire and Operating Leases,21/07/2021,3255240,980.00,Revenue,1003978,Shrewsbury Taxi Service
Shropshire,00GG,Children's Services - Home to School Transport,Transport-Related Expenditure - Contract Hire and Operating Leases,21/07/2021,3255242,"1,368.00",Revenue,1003978,Shrewsbury Taxi Service
Shropshire,00GG,Children's Services - Looked After Children (LAC) Service,Transport-Related Expenditure - Contract Hire and Operating Leases,21/07/2021,3255247,"1,072.00",Revenue,1003978,Shrewsbury Taxi Service
Shropshire,00GG,Children's Services - Children�s Case Management,Transport-Related Expenditure - Contract Hire and Operating Leases,21/07/2021,3255248,"1,408.00",Revenue,1003978,Shrewsbury Taxi Service
Shropshire,00GG,Children's Services - Looked After Children (LAC) Service,Transport-Related Expenditure - Contract Hire and Operating Leases,21/07/2021,3255250,"3,024.00",Revenue,1003978,Shrewsbury Taxi Service
Shropshire,00GG,Children's Services - Looked After Children (LAC) Service,Transport-Related Expenditure - Contract Hire and Operating Leases,21/07/2021,3255256,"2,304.00",Revenue,1003978,Shrewsbury Taxi Service
Shropshire,00GG,Children's Services - Children�s Case Management,Transport-Related Expenditure - Contract Hire and Operating Leases,21/07/2021,3255424,"1,728.00",Revenue,1003978,Shrewsbury Taxi Service
Shropshire,00GG,Children's Services - Home to School Transport,Transport-Related Expenditure - Contract Hire and Operating Leases,21/07/2021,3255445,"1,044.00",Revenue,1003978,Shrewsbury Taxi Service
Shropshire,00GG,Children's Services - Home to School Transport,Transport-Related Expenditure - Contract Hire and Operating Leases,21/07/2021,3255450,"3,724.00",Revenue,1003978,Shrewsbury Taxi Service
Shropshire,00GG,Children's Services - Home to School Transport,Transport-Related Expenditure - Contract Hire and Operating Leases,21/07/2021,3255457,"1,584.00",Revenue,1003978,Shrewsbury Taxi Service
Shropshire,00GG,Children's Services - Home to School Transport,Transport-Related Expenditure - Contract Hire and Operating Leases,21/07/2021,3255481,"3,096.00",Revenue,1003978,Shrewsbury Taxi Service
Shropshire,00GG,Children's Services - Home to School Transport,Transport-Related Expenditure - Contract Hire and Operating Leases,21/07/2021,3255488,"1,539.00",Revenue,1003978,Shrewsbury Taxi Service
Shropshire,00GG,Children's Services - Home to School Transport,Transport-Related Expenditure - Contract Hire and Operating Leases,21/07/2021,3255491,"1,140.00",Revenue,1003978,Shrewsbury Taxi Service
Shropshire,00GG,Children's Services - Home to School Transport,Transport-Related Expenditure - Contract Hire and Operating Leases,21/07/2021,3255492,"1,260.00",Revenue,1003978,Shrewsbury Taxi Service
Shropshire,00GG,Children's Services - Home to School Transport,Transport-Related Expenditure - Contract Hire and Operating Leases,21/07/2021,3255497,"1,044.00",Revenue,1003978,Shrewsbury Taxi Service
Shropshire,00GG,Children's Services - Home to School Transport,Transport-Related Expenditure - Contract Hire and Operating Leases,21/07/2021,3255508,"1,540.00",Revenue,1003978,Shrewsbury Taxi Service
Shropshire,00GG,Children's Services - Home to School Transport,Transport-Related Expenditure - Contract Hire and Operating Leases,21/07/2021,3255511,"3,492.00",Revenue,1003978,Shrewsbury Taxi Service
Shropshire,00GG,Children's Services - Children�s Case Management,Transport-Related Expenditure - Contract Hire and Operating Leases,21/07/2021,3255514,"2,736.00",Revenue,1003978,Shrewsbury Taxi Service
Shropshire,00GG,Children's Services - Home to School Transport,Transport-Related Expenditure - Contract Hire and Operating Leases,21/07/2021,3255519,"1,368.00",Revenue,1003978,Shrewsbury Taxi Service
Shropshire,00GG,Children's Services - Home to School Transport,Transport-Related Expenditure - Contract Hire and Operating Leases,21/07/2021,3255527,"2,340.00",Revenue,1003978,Shrewsbury Taxi Service
Shropshire,00GG,Adult Services - Care Management - Transport,Transport-Related Expenditure - Contract Hire and Operating Leases,21/07/2021,3255528,"1,258.00",Revenue,1003978,Shrewsbury Taxi Service
Shropshire,00GG,Children's Services - Home to School Transport,Transport-Related Expenditure - Contract Hire and Operating Leases,21/07/2021,3255532,"6,580.00",Revenue,1003978,Shrewsbury Taxi Service
Shropshire,00GG,Children's Services - Home to School Transport,Transport-Related Expenditure - Contract Hire and Operating Leases,21/07/2021,3255534,"4,302.00",Revenue,1003978,Shrewsbury Taxi Service
Shropshire,00GG,Children's Services - Home to School Transport,Transport-Related Expenditure - Contract Hire and Operating Leases,21/07/2021,3255539,"3,420.00",Revenue,1003978,Shrewsbury Taxi Service
Shropshire,00GG,Children's Services - Home to School Transport,Transport-Related Expenditure - Contract Hire and Operating Leases,21/07/2021,3255601,"3,040.00",Revenue,1003978,Shrewsbury Taxi Service
Shropshire,00GG,Children's Services - Home to School Transport,Transport-Related Expenditure - Contract Hire and Operating Leases,21/07/2021,3255602,"1,274.00",Revenue,1003978,Shrewsbury Taxi Service
Shropshire,00GG,Children's Services - Home to School Transport,Transport-Related Expenditure - Contract Hire and Operating Leases,21/07/2021,3255610,"1,370.00",Revenue,1003978,Shrewsbury Taxi Service
Shropshire,00GG,Children's Services - Home to School Transport,Transport-Related Expenditure - Contract Hire and Operating Leases,21/07/2021,3255631,"2,808.00",Revenue,1003978,Shrewsbury Taxi Service
Shropshire,00GG,Children's Services - Special Educational Needs & Disability,Third Party Payments - Other Establishments,21/07/2021,3257729,"2,342.37",Revenue,1004004,Bridgnorth Endowed School
Shropshire,00GG,Children's Services - Special Educational Needs & Disability,Third Party Payments - Other Establishments,21/07/2021,3257811,"9,158.58",Revenue,1004073,Woodside Primary School
Shropshire,00GG,"Finance, Governance & Assurance - Commissioning Development & Procurement",Employees - Direct Employee Expenses,21/07/2021,3256403,"307,204.36",Revenue,1004129,Matrix Scm Ltd
Shropshire,00GG,Children's Services - Home to School Transport,Transport-Related Expenditure - Contract Hire and Operating Leases,21/07/2021,3253210,"3,726.00",Revenue,1004193,Happy Days Coaches
Shropshire,00GG,Children's Services - Home to School Transport,Transport-Related Expenditure - Contract Hire and Operating Leases,21/07/2021,3253215,"4,176.00",Revenue,1004193,Happy Days Coaches
Shropshire,00GG,Children's Services - Home to School Transport,Transport-Related Expenditure - Contract Hire and Operating Leases,21/07/2021,3253346,"4,302.00",Revenue,1004193,Happy Days Coaches
Shropshire,00GG,Children's Services - Home to School Transport,Transport-Related Expenditure - Contract Hire and Operating Leases,21/07/2021,3253356,"4,122.00",Revenue,1004193,Happy Days Coaches
Shropshire,00GG,Children's Services - Home to School Transport,Transport-Related Expenditure - Contract Hire and Operating Leases,21/07/2021,3253323,600.00,Revenue,1004269,Teakys Taxis
Shropshire,00GG,Children's Services - Home to School Transport,Transport-Related Expenditure - Contract Hire and Operating Leases,21/07/2021,3253341,540.00,Revenue,1004269,Teakys Taxis
Shropshire,00GG,Children's Services - Special Educational Needs & Disability,Third Party Payments - Other Establishments,21/07/2021,3257805,"10,380.80",Revenue,1004277,The Priory School
Shropshire,00GG,Children's Services - Home to School Transport,Transport-Related Expenditure - Contract Hire and Operating Leases,21/07/2021,3255565,"1,580.00",Revenue,1004315,A Rashid
Shropshire,00GG,Children's Services - Special Educational Needs & Disability,Third Party Payments - Other Establishments,21/07/2021,3257731,"7,588.63",Revenue,1004516,Idsall School
Shropshire,00GG,Children's Services - Special Educational Needs & Disability,Third Party Payments - Other Establishments,21/07/2021,3257819,"15,851.07",Revenue,1004555,Sir John Talbots
Shropshire,00GG,Children's Services - Special Educational Needs & Disability,Third Party Payments - Other Establishments,21/07/2021,3257739,"17,199.24",Revenue,1004607,Lacon Childe School
Shropshire,00GG,Children's Services - Special Educational Needs & Disability,Third Party Payments - Other Establishments,21/07/2021,3257812,"1,000.00",Revenue,1004656,Stokesay Primary School
Shropshire,00GG,Children's Services - Children�s Case Management,Transport-Related Expenditure - Contract Hire and Operating Leases,21/07/2021,3256537,"5,720.00",Revenue,1004684,Telford Taxi Hire Ltd
Shropshire,00GG,Children's Services - Children�s Case Management,Transport-Related Expenditure - Contract Hire and Operating Leases,21/07/2021,3256545,"6,650.00",Revenue,1004684,Telford Taxi Hire Ltd
Shropshire,00GG,Adult Services - Care Management - Transport,Transport-Related Expenditure - Contract Hire and Operating Leases,21/07/2021,3256570,"2,432.00",Revenue,1004684,Telford Taxi Hire Ltd
Shropshire,00GG,Adult Services - Care Management - Transport,Transport-Related Expenditure - Contract Hire and Operating Leases,21/07/2021,3256572,"4,256.00",Revenue,1004684,Telford Taxi Hire Ltd
Shropshire,00GG,Children's Services - Home to School Transport,Transport-Related Expenditure - Contract Hire and Operating Leases,21/07/2021,3256608,"4,160.00",Revenue,1004684,Telford Taxi Hire Ltd
Shropshire,00GG,Children's Services - Home to School Transport,Transport-Related Expenditure - Contract Hire and Operating Leases,21/07/2021,3256625,"4,760.00",Revenue,1004684,Telford Taxi Hire Ltd
Shropshire,00GG,Children's Services - Home to School Transport,Transport-Related Expenditure - Contract Hire and Operating Leases,21/07/2021,3256659,"4,800.00",Revenue,1004684,Telford Taxi Hire Ltd
Shropshire,00GG,Children's Services - Home to School Transport,Transport-Related Expenditure - Contract Hire and Operating Leases,21/07/2021,3256676,"1,800.00",Revenue,1004684,Telford Taxi Hire Ltd
Shropshire,00GG,Children's Services - Home to School Transport,Transport-Related Expenditure - Contract Hire and Operating Leases,21/07/2021,3256705,"4,320.00",Revenue,1004684,Telford Taxi Hire Ltd
Shropshire,00GG,Children's Services - Home to School Transport,Transport-Related Expenditure - Contract Hire and Operating Leases,21/07/2021,3257022,"1,680.00",Revenue,1004684,Telford Taxi Hire Ltd
Shropshire,00GG,Adult Services - Care Management - Transport,Transport-Related Expenditure - Contract Hire and Operating Leases,21/07/2021,3257215,"1,120.00",Revenue,1004684,Telford Taxi Hire Ltd
Shropshire,00GG,Children's Services - Home to School Transport,Transport-Related Expenditure - Contract Hire and Operating Leases,21/07/2021,3252639,"1,656.00",Revenue,1004698,Bugsy'S Airports And Schools
Shropshire,00GG,Adult Services - Care Management - Transport,Transport-Related Expenditure - Contract Hire and Operating Leases,21/07/2021,3252640,"1,050.00",Revenue,1004698,Bugsy'S Airports And Schools
Shropshire,00GG,Children's Services - Home to School Transport,Transport-Related Expenditure - Contract Hire and Operating Leases,21/07/2021,3252641,468.00,Revenue,1004698,Bugsy'S Airports And Schools
Shropshire,00GG,Children's Services - Home to School Transport,Transport-Related Expenditure - Contract Hire and Operating Leases,21/07/2021,3252646,597.00,Revenue,1004698,Bugsy'S Airports And Schools
Shropshire,00GG,Children's Services - Home to School Transport,Transport-Related Expenditure - Contract Hire and Operating Leases,21/07/2021,3252697,"1,440.00",Revenue,1004698,Bugsy'S Airports And Schools
Shropshire,00GG,Children's Services - Home to School Transport,Transport-Related Expenditure - Contract Hire and Operating Leases,21/07/2021,3252716,612.00,Revenue,1004698,Bugsy'S Airports And Schools
Shropshire,00GG,Children's Services - Home to School Transport,Transport-Related Expenditure - Contract Hire and Operating Leases,21/07/2021,3252732,"1,122.00",Revenue,1004698,Bugsy'S Airports And Schools
Shropshire,00GG,Children's Services - Home to School Transport,Transport-Related Expenditure - Contract Hire and Operating Leases,21/07/2021,3252788,868.00,Revenue,1004698,Bugsy'S Airports And Schools
Shropshire,00GG,Children's Services - Home to School Transport,Transport-Related Expenditure - Contract Hire and Operating Leases,21/07/2021,3253239,972.00,Revenue,1004698,Bugsy'S Airports And Schools
Shropshire,00GG,Children's Services - Home to School Transport,Transport-Related Expenditure - Contract Hire and Operating Leases,21/07/2021,3255031,468.00,Revenue,1004698,Bugsy'S Airports And Schools
Shropshire,00GG,Children's Services - Special Educational Needs & Disability,Third Party Payments - Other Establishments,21/07/2021,3257724,"5,209.36",Revenue,1004737,Longlands Primary School
Shropshire,00GG,Children's Services - Home to School Transport,Transport-Related Expenditure - Contract Hire and Operating Leases,21/07/2021,3255883,"1,078.00",Revenue,1004739,G F Ratcliff
Shropshire,00GG,Children's Services - Home to School Transport,Transport-Related Expenditure - Contract Hire and Operating Leases,21/07/2021,3254700,900.00,Revenue,1004744,R A H Travel Ltd
Shropshire,00GG,Children's Services - Home to School Transport,Transport-Related Expenditure - Contract Hire and Operating Leases,21/07/2021,3254724,"1,080.00",Revenue,1004744,R A H Travel Ltd
Shropshire,00GG,Children's Services - Home to School Transport,Transport-Related Expenditure - Contract Hire and Operating Leases,21/07/2021,3253755,720.00,Revenue,1004748,Boomerang Of Cleobury Mortimer
Shropshire,00GG,Children's Services - Home to School Transport,Transport-Related Expenditure - Contract Hire and Operating Leases,21/07/2021,3253770,720.00,Revenue,1004748,Boomerang Of Cleobury Mortimer
Shropshire,00GG,Children's Services - Home to School Transport,Transport-Related Expenditure - Contract Hire and Operating Leases,21/07/2021,3252553,"1,782.00",Revenue,1004752,001 Travel
Shropshire,00GG,Children's Services - Home to School Transport,Transport-Related Expenditure - Contract Hire and Operating Leases,21/07/2021,3252570,"2,160.00",Revenue,1004752,001 Travel
Shropshire,00GG,Children's Services - Home to School Transport,Transport-Related Expenditure - Contract Hire and Operating Leases,21/07/2021,3253064,900.00,Revenue,1004760,Alexanders Of Wem Taxis
Shropshire,00GG,Children's Services - Home to School Transport,Transport-Related Expenditure - Contract Hire and Operating Leases,21/07/2021,3253072,900.00,Revenue,1004760,Alexanders Of Wem Taxis
Shropshire,00GG,Adult Services - Care Management - Transport,Transport-Related Expenditure - Contract Hire and Operating Leases,21/07/2021,3253078,639.00,Revenue,1004760,Alexanders Of Wem Taxis
Shropshire,00GG,Children's Services - Home to School Transport,Transport-Related Expenditure - Contract Hire and Operating Leases,21/07/2021,3253530,"1,260.00",Revenue,1004760,Alexanders Of Wem Taxis
Shropshire,00GG,Children's Services - Home to School Transport,Transport-Related Expenditure - Contract Hire and Operating Leases,21/07/2021,3253563,"1,791.00",Revenue,1004760,Alexanders Of Wem Taxis
Shropshire,00GG,Children's Services - Home to School Transport,Transport-Related Expenditure - Contract Hire and Operating Leases,21/07/2021,3255003,"1,460.00",Revenue,1004760,Alexanders Of Wem Taxis
Shropshire,00GG,Children's Services - Home to School Transport,Transport-Related Expenditure - Contract Hire and Operating Leases,21/07/2021,3255032,"1,008.00",Revenue,1004760,Alexanders Of Wem Taxis
Shropshire,00GG,Capital - Housing Services Capital,Non Revenue - Non Revenue,21/07/2021,3257520,"17,996.58",Capital,1004765,M W Knight & Sons Ltd
Shropshire,00GG,Children's Services - Special Educational Needs & Disability,Third Party Payments - Other Establishments,21/07/2021,3257821,"7,131.34",Revenue,1004837,The 3-18 Education Trust T/A William Brookes School
Shropshire,00GG,Children's Services - Home to School Transport,Transport-Related Expenditure - Contract Hire and Operating Leases,21/07/2021,3255205,"1,800.00",Revenue,1004872,Anthony'S Private Hire
Shropshire,00GG,Children's Services - Home to School Transport,Transport-Related Expenditure - Contract Hire and Operating Leases,21/07/2021,3255217,720.00,Revenue,1004872,Anthony'S Private Hire
Shropshire,00GG,Children's Services - Special Educational Needs & Disability,Third Party Payments - Other Establishments,21/07/2021,3257831,"8,972.26",Revenue,1004946,Oldbury Wells School
Shropshire,00GG,Children's Services - Special Educational Needs & Disability,Third Party Payments - Other Establishments,21/07/2021,3257715,"1,083.33",Revenue,1004947,Bitterley C Of E Primary School
Shropshire,00GG,Children's Services - Home to School Transport,Transport-Related Expenditure - Contract Hire and Operating Leases,21/07/2021,3254283,"1,235.00",Revenue,1004996,Royal Cabs
Shropshire,00GG,Children's Services - Home to School Transport,Transport-Related Expenditure - Contract Hire and Operating Leases,21/07/2021,3254372,"3,070.00",Revenue,1004996,Royal Cabs
Shropshire,00GG,Children's Services - Special Educational Needs & Disability,Third Party Payments - Other Establishments,21/07/2021,3257836,"3,337.76",Revenue,1005016,Shropshire Gateway Educational Trust (Stottesdon)
